Workbook

Sheet チーム表
B1: 第２０回 加賀地域少年少女ドッジボール大会
B3: 番号 | C3: ﾌﾞﾛｯｸ | D3: チ ー ム 名 | E3: 代表者名 | F3: 県名
B4: 1 | C4: A1 | D4: 鞍月アタッカーズ | E4: 廣岡 俊和 | F4: 石川
B5: 2 | C5: A2 | D5: 針原パイレーツ | E5: 木原 清志 | F5: 富山
B6: 3 | C6: A3 | D6: 小木クラブ | E6: 福田 陽三 | F6: 石川
B7: 4 | C7: A4 | D7: NISHIファイヤースターズ | E7: 足滝 信雄 | F7: 石川
B8: 5 | C8: B1 | D8: 呉羽ドッジボールクラブ | E8: 久郷 巌 | F8: 富山
B9: 6 | C9: B2 | D9: 鳳至ドッジボールクラブ | E9: 中野 悟 | F9: 石川
B10: 7 | C10: B3 | D10: 千坂ドッジファイヤーズ | E10: 成瀬 章宏 | F10: 石川
B11: 8 | C11: B4 | D11: 松任の大魔陣 | E11: 吉岡 正敏 | F11: 石川
B12: 9 | C12: C1 | D12: 光陽マーリンズ | E12: 上野 まどか | F12: 富山
B13: 10 | C13: C2 | D13: 中郷ドッジボールクラブ | E13: 野崎 珠美 | F13: 福井
B14: 11 | C14: C3 | D14: 鵜川ミラクルフェニックス | E14: 新谷 信之 | F14: 石川
B15: 12 | C15: C4 | D15: 向本折クラブA | E15: 中嶋 大樹 | F15: 石川
B16: 13 | C16: D1 | D16: 飯野マジックス | E16: 村田 和孝 | F16: 富山
B17: 14 | C17: D2 | D17: 三馬パワフル | E17: 石田 一栄 | F17: 石川
B18: 15 | C18: D3 | D18: 寺井クラブ | E18: 端野 智博 | F18: 石川
B19: 16 | C19: D4 | D19: 大門ドッジボールクラブ | E19: 大橋 潤子 | F19: 富山
B20: 17 | C20: D5 | D20: 田上闘球DREAMS | E20: 盛一 純平 | F20: 石川
B21: Jr1 | C21: E1 | D21: 鞍月アタッカーズジュニア | E21: 廣岡 俊和 | F21: 石川
B22: Jr2 | C22: E2 | D22: 鳳至ジュニア | E22: 中野 悟 | F22: 石川
B23: Jr3 | C23: E3 | D23: 中郷ミラクルジュニア | E23: 野崎 珠美 | F23: 福井
B24: Jr4 | C24: E4 | D24: ドッジの王子様 | E24: 石田 一栄 | F24: 石川
B25: Jr5 | C25: F1 | D25: 九十九クラブ | E25: 福田 陽三 | F25: 石川
B26: Jr6 | C26: F2 | D26: 千坂ロータスルート | E26: 成瀬 章宏 | F26: 石川
B27: Jr7 | C27: F3 | D27: 向本折クラブNew | E27: 中嶋 大樹 | F27: 石川
B28: Jr8 | C28: F4 | D28: 寺井クラブＪｒ A | E28: 端野 智博 | F28: 石川
B29: Jr9 | C29: G1 | D29: 鞍月アタッカーズキッズ | E29: 廣岡 俊和 | F29: 石川
B30: Jr10 | C30: G2 | D30: 松任の大魔陣Jr. | E30: 吉岡 正敏 | F30: 石川
B31: Jr11 | C31: G3 | D31: 鵜川フェニックスジュニア | E31: 新谷 信之 | F31: 石川
B32: Jr12 | C32: G4 | D32: 大門ドッジボールクラブJr | E32: 大橋 潤子 | F32: 富山
B33: Jr13 | C33: H1 | D33: 呉羽DBCジュニア | E33: 久郷 巌 | F33: 富山
B34: Jr14 | C34: H2 | D34: NISHI Jrスターズ | E34: 足滝 信雄 | F34: 石川
B35: Jr15 | C35: H3 | D35: 寺井クラブＪｒ B | E35: 端野 智博 | F35: 石川
B36: Jr16 | C36: H4 | D36: 田上闘球FUTURES | E36: 盛一 純平 | F36: 石川
B37: 一5 | C37: G5 | D37: 魔陣一家 | E37: 由水 伸弥
B38: 女１ | C38: H1 | D38: 鞍月マミーズ | E38: 廣岡 俊和
B39: 女２ | C39: H2 | D39: NISHIヤングスターズ | E39: 足滝 信雄
B40: 女３ | C40: H3 | D40: 山中Oba | E40: 中田 勝博
B41: 女４ | C41: H4 | D41: 田上闘球HAPPYS | E41: 盛一 純平
B42: 女５ | C42: I1 | D42: チーム新米ママ | E42: 山田 ユカ子
B43: 女６ | C43: I2 | D43: 千坂Ｍファイヤーズ | E43: 下野 高広
B44: 女７ | C44: I3 | D44: 寺井Ｐ．P♪ | E44: 山田 幸嗣
B45: 女８ | C45: I4 | D45: 魔舞陣 | E45: 由水 伸弥

Sheet 対戦表
K1: =チーム表!$B$1 -> 第２０回 加賀地域少年少女ドッジボール大会 | Y1: 予選試合数 | Z1: 26
A3: 試合スケジュール
B5: 時間 | E5: 点 | F5: Ａコート | J5: 点 | K5: Ａコート | O5: 点 | P5: Ｂコート | T5: 点 | U5: Ｂコート
A6: 1 | B6: 09:30:00 | C6: =組合表!AG4 -> D1 | D6: =CONCATENATE(C6,H6) -> D1D2 | E6: 10 | F6: =VLOOKUP(C6,チーム表!C:D,2,FALSE) -> 飯野マジックス | G6: × | H6: =組合表!AH4 -> D2 | I6: =CONCATENATE(H6,C6) -> D2D1 | J6: 7 | K6: =VLOOKUP(H6,チーム表!C:D,2,FALSE) -> 三馬パワフル | M6: =組合表!AI4 -> A1 | N6: =CONCATENATE(M6,R6) -> A1A2 | O6: 7 | P6: =VLOOKUP(M6,チーム表!C:D,2,FALSE) -> 鞍月アタッカーズ | Q6: × | R6: =組合表!AJ4 -> A2 | S6: =CONCATENATE(R6,M6) -> A2A1 | T6: 9 | U6: =VLOOKUP(R6,チーム表!C:D,2,FALSE) -> 針原パイレーツ | AG6: =D6 -> D1D2 | AH6: =IF(E6="","",E6) -> 10
A7: 2 | B7: 09:40:00 | C7: =組合表!AG5 -> B1 | D7: =CONCATENATE(C7,H7) -> B1B2 | E7: 10 | F7: =VLOOKUP(C7,チーム表!C:D,2,FALSE) -> 呉羽ドッジボールクラブ | G7: × | H7: =組合表!AH5 -> B2 | I7: =CONCATENATE(H7,C7) -> B2B1 | J7: 9 | K7: =VLOOKUP(H7,チーム表!C:D,2,FALSE) -> 鳳至ドッジボールクラブ | M7: =組合表!AI5 -> C1 | N7: =CONCATENATE(M7,R7) -> C1C2 | O7: 11 | P7: =VLOOKUP(M7,チーム表!C:D,2,FALSE) -> 光陽マーリンズ | Q7: × | R7: =組合表!AJ5 -> C2 | S7: =CONCATENATE(R7,M7) -> C2C1 | T7: 1 | U7: =VLOOKUP(R7,チーム表!C:D,2,FALSE) -> 中郷ドッジボールクラブ | AG7: B1B2 | AH7: =IF(E7="","",E7) -> 10
A8: 3 | B8: 09:50:00 | C8: D3 | D8: D3D4 | E8: 9 | F8: =VLOOKUP(C8,チーム表!C:D,2,FALSE) -> 寺井クラブ | G8: × | H8: D4 | I8: D4D3 | J8: 9 | K8: =VLOOKUP(H8,チーム表!C:D,2,FALSE) -> 大門ドッジボールクラブ | M8: A3 | N8: A3A4 | O8: 8 | P8: =VLOOKUP(M8,チーム表!C:D,2,FALSE) -> 小木クラブ | Q8: × | R8: A4 | S8: A4A3 | T8: 9 | U8: =VLOOKUP(R8,チーム表!C:D,2,FALSE) -> NISHIファイヤースターズ | AG8: D3D4 | AH8: 9
A9: 4 | B9: 10:00:00 | C9: B3 | D9: B3B4 | E9: 6 | F9: =VLOOKUP(C9,チーム表!C:D,2,FALSE) -> 千坂ドッジファイヤーズ | G9: × | H9: B4 | I9: B4B3 | J9: 9 | K9: =VLOOKUP(H9,チーム表!C:D,2,FALSE) -> 松任の大魔陣 | M9: C3 | N9: C3C4 | O9: 7 | P9: =VLOOKUP(M9,チーム表!C:D,2,FALSE) -> 鵜川ミラクルフェニックス | Q9: × | R9: C4 | S9: C4C3 | T9: 7 | U9: =VLOOKUP(R9,チーム表!C:D,2,FALSE) -> 向本折クラブA | AG9: B3B4 | AH9: 6
A10: 5 | B10: 10:10:00 | C10: D1 | D10: D1D5 | E10: 2 | F10: =VLOOKUP(C10,チーム表!C:D,2,FALSE) -> 飯野マジックス | G10: × | H10: D5 | I10: D5D1 | J10: 10 | K10: =VLOOKUP(H10,チーム表!C:D,2,FALSE) -> 田上闘球DREAMS | M10: A2 | N10: A2A3 | O10: 8 | P10: =VLOOKUP(M10,チーム表!C:D,2,FALSE) -> 針原パイレーツ | Q10: × | R10: A3 | S10: A3A2 | T10: 8 | U10: =VLOOKUP(R10,チーム表!C:D,2,FALSE) -> 小木クラブ | AG10: D1D5 | AH10: 2
A11: 6 | B11: 10:20:00 | C11: B2 | D11: B2B3 | E11: 5 | F11: =VLOOKUP(C11,チーム表!C:D,2,FALSE) -> 鳳至ドッジボールクラブ | G11: × | H11: B3 | I11: B3B2 | J11: 7 | K11: =VLOOKUP(H11,チーム表!C:D,2,FALSE) -> 千坂ドッジファイヤーズ | M11: C2 | N11: C2C3 | O11: 6 | P11: =VLOOKUP(M11,チーム表!C:D,2,FALSE) -> 中郷ドッジボールクラブ | Q11: × | R11: C3 | S11: C3C2 | T11: 10 | U11: =VLOOKUP(R11,チーム表!C:D,2,FALSE) -> 鵜川ミラクルフェニックス | AG11: B2B3 | AH11: 5
A12: 7 | B12: 10:30:00 | C12: D2 | D12: D2D3 | E12: 0 | F12: =VLOOKUP(C12,チーム表!C:D,2,FALSE) -> 三馬パワフル | G12: × | H12: D3 | I12: D3D2 | J12: 7 | K12: =VLOOKUP(H12,チーム表!C:D,2,FALSE) -> 寺井クラブ | M12: A1 | N12: A1A4 | O12: 8 | P12: =VLOOKUP(M12,チーム表!C:D,2,FALSE) -> 鞍月アタッカーズ | Q12: × | R12: A4 | S12: A4A1 | T12: 8 | U12: =VLOOKUP(R12,チーム表!C:D,2,FALSE) -> NISHIファイヤースターズ | AG12: D2D3 | AH12: 00:00:00
A13: 8 | B13: 10:40:00 | C13: E1 | D13: E1E2 | E13: 8 | F13: =VLOOKUP(C13,チーム表!C:D,2,FALSE) -> 鞍月アタッカーズジュニア | G13: × | H13: E2 | I13: E2E1 | J13: 4 | K13: =VLOOKUP(H13,チーム表!C:D,2,FALSE) -> 鳳至ジュニア | M13: F1 | N13: F1F2 | O13: 6 | P13: =VLOOKUP(M13,チーム表!C:D,2,FALSE) -> 九十九クラブ | Q13: × | R13: F2 | S13: F2F1 | T13: 3 | U13: =VLOOKUP(R13,チーム表!C:D,2,FALSE) -> 千坂ロータスルート | AG13: E1E2 | AH13: 8
A14: 9 | B14: 10:50:00 | C14: G1 | D14: G1G2 | E14: 3 | F14: =VLOOKUP(C14,チーム表!C:D,2,FALSE) -> 鞍月アタッカーズキッズ | G14: × | H14: G2 | I14: G2G1 | J14: 6 | K14: =VLOOKUP(H14,チーム表!C:D,2,FALSE) -> 松任の大魔陣Jr. | M14: H1 | N14: H1H2 | O14: 3 | P14: =VLOOKUP(M14,チーム表!C:D,2,FALSE) -> 呉羽DBCジュニア | Q14: × | R14: H2 | S14: H2H1 | T14: 1 | U14: =VLOOKUP(R14,チーム表!C:D,2,FALSE) -> NISHI Jrスターズ | AG14: G1G2 | AH14: 3
A15: 10 | B15: 11:00:00 | C15: E3 | D15: E3E4 | E15: 5 | F15: =VLOOKUP(C15,チーム表!C:D,2,FALSE) -> 中郷ミラクルジュニア | G15: × | H15: E4 | I15: E4E3 | J15: 9 | K15: =VLOOKUP(H15,チーム表!C:D,2,FALSE) -> ドッジの王子様 | M15: F3 | N15: F3F4 | O15: 5 | P15: =VLOOKUP(M15,チーム表!C:D,2,FALSE) -> 向本折クラブNew | Q15: × | R15: F4 | S15: F4F3 | T15: 1 | U15: =VLOOKUP(R15,チーム表!C:D,2,FALSE) -> 寺井クラブＪｒ A | AG15: E3E4 | AH15: 5
A16: 11 | B16: 11:10:00 | C16: G3 | D16: G3G4 | E16: 9 | F16: =VLOOKUP(C16,チーム表!C:D,2,FALSE) -> 鵜川フェニックスジュニア | G16: × | H16: G4 | I16: G4G3 | J16: 2 | K16: =VLOOKUP(H16,チーム表!C:D,2,FALSE) -> 大門ドッジボールクラブJr | M16: H3 | N16: H3H4 | O16: 2 | P16: =VLOOKUP(M16,チーム表!C:D,2,FALSE) -> 寺井クラブＪｒ B | Q16: × | R16: H4 | S16: H4H3 | T16: 8 | U16: =VLOOKUP(R16,チーム表!C:D,2,FALSE) -> 田上闘球FUTURES | AG16: G3G4 | AH16: 9
A17: 12 | B17: 11:20:00 | C17: E2 | D17: E2E3 | E17: 8 | F17: =VLOOKUP(C17,チーム表!C:D,2,FALSE) -> 鳳至ジュニア | G17: × | H17: E3 | I17: E3E2 | J17: 2 | K17: =VLOOKUP(H17,チーム表!C:D,2,FALSE) -> 中郷ミラクルジュニア | M17: F2 | N17: F2F3 | O17: 0 | P17: =VLOOKUP(M17,チーム表!C:D,2,FALSE) -> 千坂ロータスルート | Q17: × | R17: F3 | S17: F3F2 | T17: 6 | U17: =VLOOKUP(R17,チーム表!C:D,2,FALSE) -> 向本折クラブNew | AG17: E2E3 | AH17: 8
A18: 13 | B18: 11:30:00 | C18: G2 | D18: G2G3 | E18: 4 | F18: =VLOOKUP(C18,チーム表!C:D,2,FALSE) -> 松任の大魔陣Jr. | G18: × | H18: G3 | I18: G3G2 | J18: 9 | K18: =VLOOKUP(H18,チーム表!C:D,2,FALSE) -> 鵜川フェニックスジュニア | M18: H2 | N18: H2H3 | O18: 2 | P18: =VLOOKUP(M18,チーム表!C:D,2,FALSE) -> NISHI Jrスターズ | Q18: × | R18: H3 | S18: H3H2 | T18: 3 | U18: =VLOOKUP(R18,チーム表!C:D,2,FALSE) -> 寺井クラブＪｒ B | AG18: G2G3 | AH18: 4
A19: 14 | B19: 11:40:00 | C19: E1 | D19: E1E4 | E19: 6 | F19: =VLOOKUP(C19,チーム表!C:D,2,FALSE) -> 鞍月アタッカーズジュニア | G19: × | H19: E4 | I19: E4E1 | J19: 5 | K19: =VLOOKUP(H19,チーム表!C:D,2,FALSE) -> ドッジの王子様 | M19: F1 | N19: F1F4 | O19: 7 | P19: =VLOOKUP(M19,チーム表!C:D,2,FALSE) -> 九十九クラブ | Q19: × | R19: F4 | S19: F4F1 | T19: 3 | U19: =VLOOKUP(R19,チーム表!C:D,2,FALSE) -> 寺井クラブＪｒ A | AG19: E1E4 | AH19: 6
A20: 15 | B20: 11:50:00 | C20: G1 | D20: G1G4 | E20: 3 | F20: =VLOOKUP(C20,チーム表!C:D,2,FALSE) -> 鞍月アタッカーズキッズ | G20: × | H20: G4 | I20: G4G1 | J20: 4 | K20: =VLOOKUP(H20,チーム表!C:D,2,FALSE) -> 大門ドッジボールクラブJr | M20: H1 | N20: H1H4 | O20: 2 | P20: =VLOOKUP(M20,チーム表!C:D,2,FALSE) -> 呉羽DBCジュニア | Q20: × | R20: H4 | S20: H4H1 | T20: 8 | U20: =VLOOKUP(R20,チーム表!C:D,2,FALSE) -> 田上闘球FUTURES | AG20: =D20 -> G1G4 | AH20: =IF(E20="","",E20) -> 3
AG21: =D22 -> B1B4 | AH21: =IF(E22="","",E22) -> 9
A22: 16 | B22: 12:30:00 | C22: B1 | D22: B1B4 | E22: 9 | F22: =VLOOKUP(C22,チーム表!C:D,2,FALSE) -> 呉羽ドッジボールクラブ | G22: × | H22: B4 | I22: B4B1 | J22: 9 | K22: =VLOOKUP(H22,チーム表!C:D,2,FALSE) -> 松任の大魔陣 | M22: C1 | N22: C1C4 | O22: 4 | P22: =VLOOKUP(M22,チーム表!C:D,2,FALSE) -> 光陽マーリンズ | Q22: × | R22: C4 | S22: C4C1 | T22: 10 | U22: =VLOOKUP(R22,チーム表!C:D,2,FALSE) -> 向本折クラブA | AG22: D4D5 | AH22: 4
A23: 17 | B23: 12:40:00 | C23: D4 | D23: D4D5 | E23: 4 | F23: =VLOOKUP(C23,チーム表!C:D,2,FALSE) -> 大門ドッジボールクラブ | G23: × | H23: D5 | I23: D5D4 | J23: 8 | K23: =VLOOKUP(H23,チーム表!C:D,2,FALSE) -> 田上闘球DREAMS | M23: A1 | N23: A1A3 | O23: 7 | P23: =VLOOKUP(M23,チーム表!C:D,2,FALSE) -> 鞍月アタッカーズ | Q23: × | R23: A3 | S23: A3A1 | T23: 10 | U23: =VLOOKUP(R23,チーム表!C:D,2,FALSE) -> 小木クラブ | AG23: B1B3 | AH23: 7
A24: 18 | B24: 12:50:00 | C24: B1 | D24: B1B3 | E24: 7 | F24: =VLOOKUP(C24,チーム表!C:D,2,FALSE) -> 呉羽ドッジボールクラブ | G24: × | H24: B3 | I24: B3B1 | J24: 9 | K24: =VLOOKUP(H24,チーム表!C:D,2,FALSE) -> 千坂ドッジファイヤーズ | M24: C1 | N24: C1C3 | O24: 5 | P24: =VLOOKUP(M24,チーム表!C:D,2,FALSE) -> 光陽マーリンズ | Q24: × | R24: C3 | S24: C3C1 | T24: 8 | U24: =VLOOKUP(R24,チーム表!C:D,2,FALSE) -> 鵜川ミラクルフェニックス | AG24: D2D5 | AH24: 2
A25: 19 | B25: 13:00:00 | C25: D2 | D25: D2D5 | E25: 2 | F25: =VLOOKUP(C25,チーム表!C:D,2,FALSE) -> 三馬パワフル | G25: × | H25: D5 | I25: D5D2 | J25: 11 | K25: =VLOOKUP(H25,チーム表!C:D,2,FALSE) -> 田上闘球DREAMS | M25: A2 | N25: A2A4 | O25: 9 | P25: =VLOOKUP(M25,チーム表!C:D,2,FALSE) -> 針原パイレーツ | Q25: × | R25: A4 | S25: A4A2 | T25: 8 | U25: =VLOOKUP(R25,チーム表!C:D,2,FALSE) -> NISHIファイヤースターズ | AG25: D1D4 | AH25: 9
A26: 20 | B26: 13:10:00 | C26: D1 | D26: D1D4 | E26: 9 | F26: =VLOOKUP(C26,チーム表!C:D,2,FALSE) -> 飯野マジックス | G26: × | H26: D4 | I26: D4D1 | J26: 6 | K26: =VLOOKUP(H26,チーム表!C:D,2,FALSE) -> 大門ドッジボールクラブ | M26: C2 | N26: C2C4 | O26: 3 | P26: =VLOOKUP(M26,チーム表!C:D,2,FALSE) -> 中郷ドッジボールクラブ | Q26: × | R26: C4 | S26: C4C2 | T26: 10 | U26: =VLOOKUP(R26,チーム表!C:D,2,FALSE) -> 向本折クラブA | AG26: B2B4 | AH26: 8
A27: 21 | B27: 13:20:00 | C27: B2 | D27: B2B4 | E27: 8 | F27: =VLOOKUP(C27,チーム表!C:D,2,FALSE) -> 鳳至ドッジボールクラブ | G27: × | H27: B4 | I27: B4B2 | J27: 10 | K27: =VLOOKUP(H27,チーム表!C:D,2,FALSE) -> 松任の大魔陣 | M27: D3 | N27: D3D5 | O27: 5 | P27: =VLOOKUP(M27,チーム表!C:D,2,FALSE) -> 寺井クラブ | Q27: × | R27: D5 | S27: D5D3 | T27: 9 | U27: =VLOOKUP(R27,チーム表!C:D,2,FALSE) -> 田上闘球DREAMS | AG27: D2D4 | AH27: 6
A28: 22 | B28: 13:30:00 | C28: D2 | D28: D2D4 | E28: 6 | F28: =VLOOKUP(C28,チーム表!C:D,2,FALSE) -> 三馬パワフル | G28: × | H28: D4 | I28: D4D2 | J28: 9 | K28: =VLOOKUP(H28,チーム表!C:D,2,FALSE) -> 大門ドッジボールクラブ | M28: D1 | N28: D1D3 | O28: 6 | P28: =VLOOKUP(M28,チーム表!C:D,2,FALSE) -> 飯野マジックス | Q28: × | R28: D3 | S28: D3D1 | T28: 9 | U28: =VLOOKUP(R28,チーム表!C:D,2,FALSE) -> 寺井クラブ | AG28: E1E3 | AH28: 8
A29: 23 | B29: 13:40:00 | C29: E1 | D29: E1E3 | E29: 8 | F29: =VLOOKUP(C29,チーム表!C:D,2,FALSE) -> 鞍月アタッカーズジュニア | G29: × | H29: E3 | I29: E3E1 | J29: 4 | K29: =VLOOKUP(H29,チーム表!C:D,2,FALSE) -> 中郷ミラクルジュニア | M29: F1 | N29: F1F3 | O29: 6 | P29: =VLOOKUP(M29,チーム表!C:D,2,FALSE) -> 九十九クラブ | Q29: × | R29: F3 | S29: F3F1 | T29: 2 | U29: =VLOOKUP(R29,チーム表!C:D,2,FALSE) -> 向本折クラブNew | AG29: G1G3 | AH29: 00:00:00
A30: 24 | B30: 13:50:00 | C30: G1 | D30: G1G3 | E30: 0 | F30: =VLOOKUP(C30,チーム表!C:D,2,FALSE) -> 鞍月アタッカーズキッズ | G30: × | H30: G3 | I30: G3G1 | J30: 8 | K30: =VLOOKUP(H30,チーム表!C:D,2,FALSE) -> 鵜川フェニックスジュニア | M30: H1 | N30: H1H3 | O30: 6 | P30: =VLOOKUP(M30,チーム表!C:D,2,FALSE) -> 呉羽DBCジュニア | Q30: × | R30: H3 | S30: H3H1 | T30: 3 | U30: =VLOOKUP(R30,チーム表!C:D,2,FALSE) -> 寺井クラブＪｒ B | AG30: E2E4 | AH30: 7
A31: 25 | B31: 14:00:00 | C31: E2 | D31: E2E4 | E31: 7 | F31: =VLOOKUP(C31,チーム表!C:D,2,FALSE) -> 鳳至ジュニア | G31: × | H31: E4 | I31: E4E2 | J31: 5 | K31: =VLOOKUP(H31,チーム表!C:D,2,FALSE) -> ドッジの王子様 | M31: F2 | N31: F2F4 | O31: 2 | P31: =VLOOKUP(M31,チーム表!C:D,2,FALSE) -> 千坂ロータスルート | Q31: × | R31: F4 | S31: F4F2 | T31: 6 | U31: =VLOOKUP(R31,チーム表!C:D,2,FALSE) -> 寺井クラブＪｒ A | AG31: G2G4 | AH31: 6
A32: 26 | B32: 14:10:00 | C32: G2 | D32: G2G4 | E32: 6 | F32: =VLOOKUP(C32,チーム表!C:D,2,FALSE) -> 松任の大魔陣Jr. | G32: × | H32: G4 | I32: G4G2 | J32: 4 | K32: =VLOOKUP(H32,チーム表!C:D,2,FALSE) -> 大門ドッジボールクラブJr | M32: H2 | N32: H2H4 | O32: 2 | P32: =VLOOKUP(M32,チーム表!C:D,2,FALSE) -> NISHI Jrスターズ | Q32: × | R32: H4 | S32: H4H2 | T32: 4 | U32: =VLOOKUP(R32,チーム表!C:D,2,FALSE) -> 田上闘球FUTURES | AG32: =#REF! ->  | AH32: =IF(#REF!="","",#REF!) -> 
A33: 27 | B33: 14:30:00 | C33: 1 | F33: 決勝トーナメント ジュニアの部 ① | P33: 決勝トーナメント ジュニアの部 ① | AG33: =#REF! ->  | AH33: =IF(#REF!="","",#REF!) -> 
A34: 28 | B34: 14:40:00 | C34: 2 | F34: 決勝トーナメント ジュニアの部 ② | P34: 決勝トーナメント ジュニアの部 ② | AG34: =#REF! ->  | AH34: =IF(#REF!="","",#REF!) -> 
A35: 29 | B35: 14:50:00 | C35: 3 | F35: 交流トーナメント レギュラーの部 ③ | AG35: =#REF! ->  | AH35: =IF(#REF!="","",#REF!) -> 
A36: 30 | B36: 15:00:00 | C36: 4 | F36: 交流トーナメント レギュラーの部 ④ | P36: 交流トーナメント レギュラーの部 ④ | AG36: =#REF! ->  | AH36: =IF(#REF!="","",#REF!) -> 
A37: 31 | B37: 15:10:00 | C37: 5 | F37: 交流トーナメント レギュラーの部 ⑤ | P37: 交流トーナメント レギュラーの部 ⑤ | AG37: =#REF! ->  | AH37: =IF(#REF!="","",#REF!) -> 
A38: 32 | B38: 15:20:00 | C38: 6 | F38: 決勝トーナメント ジュニアの部 準決勝 ⑥ | P38: 決勝トーナメント ジュニアの部 準決勝 ⑥ | AG38: =#REF! ->  | AH38: =IF(#REF!="","",#REF!) -> 
A39: 33 | B39: 15:30:00 | C39: 7 | F39: 決勝トーナメント レギュラーの部 ⑦ | P39: 決勝トーナメント レギュラーの部 ⑦ | AG39: =#REF! ->  | AH39: =IF(#REF!="","",#REF!) -> 
A40: 34 | B40: 15:40:00 | C40: 8 | F40: 決勝トーナメント レギュラーの部 ⑧ | P40: 決勝トーナメント レギュラーの部 ⑧ | AG40: =#REF! ->  | AH40: =IF(#REF!="","",#REF!) -> 
A41: 35 | B41: 15:50:00 | C41: 9 | F41: 交流トーナメント レギュラーの部 準決勝 ⑨ | P41: 交流トーナメント レギュラーの部 準決勝 ⑨ | AG41: =#REF! ->  | AH41: =IF(#REF!="","",#REF!) -> 
A42: 36 | B42: 16:00:00 | C42: 10 | F42: 決勝トーナメント ジュニアの部 ３位決定戦 ⑩ | P42: 決勝トーナメント ジュニアの部 決 勝 ⑩ | AG42: =#REF! ->  | AH42: =IF(#REF!="","",#REF!) -> 
A43: 37 | B43: 16:10:00 | C43: 11 | P43: 交流トーナメント レギュラーの部 決 勝 ⑪ | AG43: =#REF! ->  | AH43: =IF(#REF!="","",#REF!) -> 
A44: 38 | B44: 16:20:00 | C44: 12 | F44: 決勝トーナメント レギュラーの部 準決勝 ⑫ | P44: 決勝トーナメント レギュラーの部 準決勝 ⑫ | AG44: =#REF! ->  | AH44: =IF(#REF!="","",#REF!) -> 
A45: 39 | B45: 16:30:00 | C45: 13 | F45: 決勝トーナメント レギュラーの部 決 勝 ⑬ | P45: 決勝トーナメント レギュラーの部 ３位決定戦 ⑬ | AG45: =I6 -> D2D1 | AH45: =IF(J6="","",J6) -> 7
AG46: B2B1 | AH46: =IF(J7="","",J7) -> 9
AG47: D4D3 | AH47: 9
AG48: B4B3 | AH48: 9
AG49: D5D1 | AH49: 10
AG50: B3B2 | AH50: 7
AG51: D3D2 | AH51: 7
AG52: E2E1 | AH52: 4
AG53: G2G1 | AH53: 6
AG54: E4E3 | AH54: 9
AG55: G4G3 | AH55: 2
AG56: E3E2 | AH56: 2
AG57: G3G2 | AH57: 9
AG58: E4E1 | AH58: 5
AG59: =I20 -> G4G1 | AH59: =IF(J20="","",J20) -> 4
AG60: =I22 -> B4B1 | AH60: =IF(J22="","",J22) -> 9
AG61: D5D4 | AH61: 8
AG62: B3B1 | AH62: 9
AG63: D5D2 | AH63: 11
AG64: D4D1 | AH64: 6
AG65: B4B2 | AH65: 10
AG66: D4D2 | AH66: 9
AG67: E3E1 | AH67: 4
AG68: G3G1 | AH68: 8
AG69: E4E2 | AH69: 5
AG70: G4G2 | AH70: 4
AG71: =#REF! ->  | AH71: =IF(#REF!="","",#REF!) -> 
AG72: =#REF! ->  | AH72: =IF(#REF!="","",#REF!) -> 
AG73: =#REF! ->  | AH73: =IF(#REF!="","",#REF!) -> 
AG74: =#REF! ->  | AH74: =IF(#REF!="","",#REF!) -> 
AG75: =#REF! ->  | AH75: =IF(#REF!="","",#REF!) -> 
AG76: =#REF! ->  | AH76: =IF(#REF!="","",#REF!) -> 
AG77: =#REF! ->  | AH77: =IF(#REF!="","",#REF!) -> 
AG78: =#REF! ->  | AH78: =IF(#REF!="","",#REF!) -> 
AG79: =#REF! ->  | AH79: =IF(#REF!="","",#REF!) -> 
AG80: =#REF! ->  | AH80: =IF(#REF!="","",#REF!) -> 
AG81: =#REF! ->  | AH81: =IF(#REF!="","",#REF!) -> 
AG82: =#REF! ->  | AH82: =IF(#REF!="","",#REF!) -> 
AG83: =#REF! ->  | AH83: =IF(#REF!="","",#REF!) -> 
AG84: =#REF! ->  | AH84: =IF(#REF!="","",#REF!) -> 
AG85: =N6 -> A1A2 | AH85: =IF(O6="","",O6) -> 7
AG86: C1C2 | AH86: =IF(O7="","",O7) -> 11
AG87: A3A4 | AH87: 8
AG88: C3C4 | AH88: 7
AG89: A2A3 | AH89: 8
AG90: C2C3 | AH90: 6
AG91: A1A4 | AH91: 8
AG92: F1F2 | AH92: 6
AG93: H1H2 | AH93: 3
AG94: F3F4 | AH94: 5
AG95: H3H4 | AH95: 2
AG96: F2F3 | AH96: 00:00:00
AG97: H2H3 | AH97: 2
AG98: F1F4 | AH98: 7
AG99: =N20 -> H1H4 | AH99: =IF(O20="","",O20) -> 2
AG100: =N22 -> C1C4 | AH100: =IF(O22="","",O22) -> 4
AG101: A1A3 | AH101: 7
AG102: C1C3 | AH102: 5
AG103: A2A4 | AH103: 9
AG104: C2C4 | AH104: 3
AG105: D3D5 | AH105: 5
AG106: D1D3 | AH106: 6
AG107: F1F3 | AH107: 6
AG108: H1H3 | AH108: 6
AG109: F2F4 | AH109: 2
AG110: H2H4 | AH110: 2
AG111: =#REF! ->  | AH111: =IF(#REF!="","",#REF!) -> 
AG112: =#REF! ->  | AH112: =IF(#REF!="","",#REF!) -> 
AG113: =#REF! ->  | AH113: =IF(#REF!="","",#REF!) -> 
AG114: =#REF! ->  | AH114: =IF(#REF!="","",#REF!) -> 
AG115: =#REF! ->  | AH115: =IF(#REF!="","",#REF!) -> 
AG116: =#REF! ->  | AH116: =IF(#REF!="","",#REF!) -> 
AG117: =#REF! ->  | AH117: =IF(#REF!="","",#REF!) -> 
AG118: =#REF! ->  | AH118: =IF(#REF!="","",#REF!) -> 
AG119: =#REF! ->  | AH119: =IF(#REF!="","",#REF!) -> 
AG120: =#REF! ->  | AH120: =IF(#REF!="","",#REF!) -> 
AG121: =#REF! ->  | AH121: =IF(#REF!="","",#REF!) -> 
AG122: =#REF! ->  | AH122: =IF(#REF!="","",#REF!) -> 
AG123: =#REF! ->  | AH123: =IF(#REF!="","",#REF!) -> 
AG124: =#REF! ->  | AH124: =IF(#REF!="","",#REF!) -> 
AG125: =S6 -> A2A1 | AH125: =IF(T6="","",T6) -> 9
AG126: C2C1 | AH126: =IF(T7="","",T7) -> 1
AG127: A4A3 | AH127: 9
AG128: C4C3 | AH128: 7
AG129: A3A2 | AH129: 8
AG130: C3C2 | AH130: 10
AG131: A4A1 | AH131: 8
AG132: F2F1 | AH132: 3
AG133: H2H1 | AH133: 1
AG134: F4F3 | AH134: 1
AG135: H4H3 | AH135: 8
AG136: F3F2 | AH136: 6
AG137: H3H2 | AH137: 3
AG138: F4F1 | AH138: 3
AG139: =S20 -> H4H1 | AH139: =IF(T20="","",T20) -> 8
AG140: =S22 -> C4C1 | AH140: =IF(T22="","",T22) -> 10
AG141: A3A1 | AH141: 10
AG142: C3C1 | AH142: 8
AG143: A4A2 | AH143: 8
AG144: C4C2 | AH144: 10
AG145: D5D3 | AH145: 9
AG146: D3D1 | AH146: 9
AG147: F3F1 | AH147: 2
AG148: H3H1 | AH148: 3
AG149: F4F2 | AH149: 6
AG150: H4H2 | AH150: 4
AG151: =#REF! ->  | AH151: =IF(#REF!="","",#REF!) -> 
AG152: =#REF! ->  | AH152: =IF(#REF!="","",#REF!) -> 
AG153: =#REF! ->  | AH153: =IF(#REF!="","",#REF!) -> 
AG154: =#REF! ->  | AH154: =IF(#REF!="","",#REF!) -> 
AG155: =#REF! ->  | AH155: =IF(#REF!="","",#REF!) -> 
AG156: =#REF! ->  | AH156: =IF(#REF!="","",#REF!) -> 
AG157: =#REF! ->  | AH157: =IF(#REF!="","",#REF!) -> 
AG158: =#REF! ->  | AH158: =IF(#REF!="","",#REF!) -> 
AG159: =#REF! ->  | AH159: =IF(#REF!="","",#REF!) -> 
AG160: =#REF! ->  | AH160: =IF(#REF!="","",#REF!) -> 
AG161: =#REF! ->  | AH161: =IF(#REF!="","",#REF!) -> 
AG162: =#REF! ->  | AH162: =IF(#REF!="","",#REF!) -> 
AG163: =#REF! ->  | AH163: =IF(#REF!="","",#REF!) -> 
AG164: =#REF! ->  | AH164: =IF(#REF!="","",#REF!) -> 

Sheet リーグ戦表
C1: =チーム表!$B$1 -> 第２０回 加賀地域少年少女ドッジボール大会
C2: リーグ戦表
B3: レギュラーの部
E4: =CONCATENATE(A5,"1") -> A1 | H4: =CONCATENATE(A5,"2") -> A2 | K4: =CONCATENATE(A5,"3") -> A3 | N4: =CONCATENATE(A5,"4") -> A4
A5: A | B5: チーム名 | D5: =B7 -> 鞍月アタッカーズ | G5: =B9 -> 針原パイレーツ | J5: =B11 -> 小木クラブ | M5: =B13 -> NISHIファイヤースターズ | Y5: 勝 | Z5: 負 | AA5: 分 | AB5: 点 | AC5: 内野 | AD5: 順位決定点 | AE5: 相手内野 | AF5: 順位 | AG5: kaku
A7: =CONCATENATE(A5,1) -> A1 | B7: =VLOOKUP(A7,チーム表!C:D,2,FALSE) -> 鞍月アタッカーズ | G7: =CONCATENATE($A7,H4) -> A1A2 | H7: =IF(G8="","",IF(G8=I8,"△",IF(G8>I8,"〇","×"))) -> × | I7: =CONCATENATE(H4,$A7) -> A2A1 | J7: =CONCATENATE($A7,K4) -> A1A3 | K7: =IF(J8="","",IF(J8=L8,"△",IF(J8>L8,"〇","×"))) -> × | L7: =CONCATENATE(K4,$A7) -> A3A1 | M7: =CONCATENATE($A7,N4) -> A1A4 | N7: =IF(M8="","",IF(M8=O8,"△",IF(M8>O8,"〇","×"))) -> △ | O7: =CONCATENATE(N4,$A7) -> A4A1 | Y7: =COUNTIF($E7:$N7,"〇") -> 0 | Z7: =COUNTIF($E7:$N7,"×") -> 2 | AA7: =COUNTIF($E7:$N7,"△") -> 1 | AB7: =Y7*2+AA7 -> 1 | AC7: =IF(G8="","",D8+G8+M8+J8) -> 22 | AD7: =IF(AC7="","",AB7*100+AC7) -> 122 | AE7: =IF(AC7="","",F8+I8+L8+O8) -> 27 | AF7: =IF(AD7="","",RANK(AD7,AD7:AD14,0)) -> 4 | AH7: =CONCATENATE(A5,AF7) -> A4 | AI7: =B7 -> 鞍月アタッカーズ
G8: =VLOOKUP(G7,対戦表!$AG:$AH,2,0) -> 7 | H8: - | I8: =VLOOKUP(I7,対戦表!$AG:$AH,2,0) -> 9 | J8: =VLOOKUP(J7,対戦表!$AG:$AH,2,0) -> 7 | K8: - | L8: =VLOOKUP(L7,対戦表!$AG:$AH,2,0) -> 10 | M8: =VLOOKUP(M7,対戦表!$AG:$AH,2,0) -> 8 | N8: - | O8: =VLOOKUP(O7,対戦表!$AG:$AH,2,0) -> 8
A9: =CONCATENATE(A5,2) -> A2 | B9: =VLOOKUP(A9,チーム表!C:D,2,FALSE) -> 針原パイレーツ | E9: =IF(D10="","",IF(D10=F10,"△",IF(D10>F10,"〇","×"))) -> 〇 | J9: =CONCATENATE($A9,K4) -> A2A3 | K9: =IF(J10="","",IF(J10=L10,"△",IF(J10>L10,"〇","×"))) -> △ | L9: =CONCATENATE(K4,$A9) -> A3A2 | M9: =CONCATENATE($A9,N4) -> A2A4 | N9: =IF(M10="","",IF(M10=O10,"△",IF(M10>O10,"〇","×"))) -> 〇 | O9: =CONCATENATE(N4,$A9) -> A4A2 | Y9: =COUNTIF($E9:$N9,"〇") -> 2 | Z9: =COUNTIF($E9:$N9,"×") -> 0 | AA9: =COUNTIF($E9:$N9,"△") -> 1 | AB9: =Y9*2+AA9 -> 5 | AC9: =IF(D10="","",D10+G10+M10+J10) -> 26 | AD9: =IF(AC9="","",AB9*100+AC9) -> 526 | AE9: =IF(AC9="","",F10+I10+L10+O10) -> 23 | AF9: =IF(AD9="","",RANK(AD9,AD7:AD14,0)) -> 1 | AH9: =CONCATENATE(A5,AF9) -> A1 | AI9: =B9 -> 針原パイレーツ
D10: =IF(I8="","",I8) -> 9 | E10: - | F10: =IF(G8="","",G8) -> 7 | J10: =VLOOKUP(J9,対戦表!$AG:$AH,2,0) -> 8 | K10: - | L10: =VLOOKUP(L9,対戦表!$AG:$AH,2,0) -> 8 | M10: =VLOOKUP(M9,対戦表!$AG:$AH,2,0) -> 9 | N10: - | O10: =VLOOKUP(O9,対戦表!$AG:$AH,2,0) -> 8
A11: =CONCATENATE(A5,3) -> A3 | B11: =VLOOKUP(A11,チーム表!C:D,2,FALSE) -> 小木クラブ | E11: =IF(D12="","",IF(D12=F12,"△",IF(D12>F12,"〇","×"))) -> 〇 | H11: =IF(G12="","",IF(G12=I12,"△",IF(G12>I12,"〇","×"))) -> △ | M11: =CONCATENATE($A11,N4) -> A3A4 | N11: =IF(M12="","",IF(M12=O12,"△",IF(M12>O12,"〇","×"))) -> × | O11: =CONCATENATE(N4,$A11) -> A4A3 | Y11: =COUNTIF($E11:$N11,"〇") -> 1 | Z11: =COUNTIF($E11:$N11,"×") -> 1 | AA11: =COUNTIF($E11:$N11,"△") -> 1 | AB11: =Y11*2+AA11 -> 3 | AC11: =IF(G12="","",D12+G12+M12+J12) -> 26 | AD11: =IF(AC11="","",AB11*100+AC11) -> 326 | AE11: =IF(AC11="","",F12+I12+L12+O12) -> 24 | AF11: =IF(AD11="","",RANK(AD11,AD7:AD14,0)) -> 2 | AH11: =CONCATENATE(A5,AF11) -> A2 | AI11: =B11 -> 小木クラブ
D12: =IF(L8="","",L8) -> 10 | E12: - | F12: =IF(J8="","",J8) -> 7 | G12: =IF(L10="","",L10) -> 8 | H12: - | I12: =IF(J10="","",J10) -> 8 | M12: =VLOOKUP(M11,対戦表!$AG:$AH,2,0) -> 8 | N12: - | O12: =VLOOKUP(O11,対戦表!$AG:$AH,2,0) -> 9
A13: =CONCATENATE(A5,4) -> A4 | B13: =VLOOKUP(A13,チーム表!C:D,2,FALSE) -> NISHIファイヤースターズ | E13: =IF(D14="","",IF(D14=F14,"△",IF(D14>F14,"〇","×"))) -> △ | H13: =IF(G14="","",IF(G14=I14,"△",IF(G14>I14,"〇","×"))) -> × | K13: =IF(J14="","",IF(J14=L14,"△",IF(J14>L14,"〇","×"))) -> 〇 | Y13: =COUNTIF($E13:$N13,"〇") -> 1 | Z13: =COUNTIF($E13:$N13,"×") -> 1 | AA13: =COUNTIF($E13:$N13,"△") -> 1 | AB13: =Y13*2+AA13 -> 3 | AC13: =IF(G14="","",D14+G14+M14+J14) -> 25 | AD13: =IF(AC13="","",AB13*100+AC13) -> 325 | AE13: =IF(AC13="","",F14+I14+L14+O14) -> 25 | AF13: =IF(AD13="","",RANK(AD13,AD7:AD14,0)) -> 3 | AH13: =CONCATENATE(A5,AF13) -> A3 | AI13: =B13 -> NISHIファイヤースターズ
D14: =IF(O8="","",O8) -> 8 | E14: - | F14: =IF(M8="","",M8) -> 8 | G14: =IF(O10="","",O10) -> 8 | H14: - | I14: =IF(M10="","",M10) -> 9 | J14: =IF(O12="","",O12) -> 9 | K14: - | L14: =IF(M12="","",M12) -> 8
E16: =CONCATENATE(A17,"1") -> B1 | H16: =CONCATENATE(A17,"2") -> B2 | K16: =CONCATENATE(A17,"3") -> B3 | N16: =CONCATENATE(A17,"4") -> B4
A17: B | B17: チーム名 | D17: =B19 -> 呉羽ドッジボールクラブ | G17: =B21 -> 鳳至ドッジボールクラブ | J17: =B23 -> 千坂ドッジファイヤーズ | M17: =B25 -> 松任の大魔陣 | Y17: 勝 | Z17: 負 | AA17: 分 | AB17: 点 | AC17: 内野 | AD17: 順位決定点 | AE17: 相手内野 | AF17: 順位 | AG17: kaku
A19: =CONCATENATE(A17,1) -> B1 | B19: =VLOOKUP(A19,チーム表!C:D,2,FALSE) -> 呉羽ドッジボールクラブ | G19: =CONCATENATE($A19,H16) -> B1B2 | H19: =IF(G20="","",IF(G20=I20,"△",IF(G20>I20,"〇","×"))) -> 〇 | I19: =CONCATENATE(H16,$A19) -> B2B1 | J19: =CONCATENATE($A19,K16) -> B1B3 | K19: =IF(J20="","",IF(J20=L20,"△",IF(J20>L20,"〇","×"))) -> × | L19: =CONCATENATE(K16,$A19) -> B3B1 | M19: =CONCATENATE($A19,N16) -> B1B4 | N19: =IF(M20="","",IF(M20=O20,"△",IF(M20>O20,"〇","×"))) -> △ | O19: =CONCATENATE(N16,$A19) -> B4B1 | Y19: =COUNTIF($E19:$N19,"〇") -> 1 | Z19: =COUNTIF($E19:$N19,"×") -> 1 | AA19: =COUNTIF($E19:$N19,"△") -> 1 | AB19: =Y19*2+AA19 -> 3 | AC19: =IF(G20="","",D20+G20+M20+J20) -> 26 | AD19: =IF(AC19="","",AB19*100+AC19) -> 326 | AE19: =IF(AC19="","",F20+I20+L20+O20) -> 27 | AF19: =IF(AD19="","",RANK(AD19,AD19:AD26,0)) -> 3 | AH19: =CONCATENATE(A17,AF19) -> B3 | AI19: =B19 -> 呉羽ドッジボールクラブ
G20: =VLOOKUP(G19,対戦表!$AG:$AH,2,0) -> 10 | H20: - | I20: =VLOOKUP(I19,対戦表!$AG:$AH,2,0) -> 9 | J20: =VLOOKUP(J19,対戦表!$AG:$AH,2,0) -> 7 | K20: - | L20: =VLOOKUP(L19,対戦表!$AG:$AH,2,0) -> 9 | M20: =VLOOKUP(M19,対戦表!$AG:$AH,2,0) -> 9 | N20: - | O20: =VLOOKUP(O19,対戦表!$AG:$AH,2,0) -> 9
A21: =CONCATENATE(A17,2) -> B2 | B21: =VLOOKUP(A21,チーム表!C:D,2,FALSE) -> 鳳至ドッジボールクラブ | E21: =IF(D22="","",IF(D22=F22,"△",IF(D22>F22,"〇","×"))) -> × | J21: =CONCATENATE($A21,K16) -> B2B3 | K21: =IF(J22="","",IF(J22=L22,"△",IF(J22>L22,"〇","×"))) -> × | L21: =CONCATENATE(K16,$A21) -> B3B2 | M21: =CONCATENATE($A21,N16) -> B2B4 | N21: =IF(M22="","",IF(M22=O22,"△",IF(M22>O22,"〇","×"))) -> × | O21: =CONCATENATE(N16,$A21) -> B4B2 | Y21: =COUNTIF($E21:$N21,"〇") -> 0 | Z21: =COUNTIF($E21:$N21,"×") -> 3 | AA21: =COUNTIF($E21:$N21,"△") -> 0 | AB21: =Y21*2+AA21 -> 0 | AC21: =IF(D22="","",D22+G22+M22+J22) -> 22 | AD21: =IF(AC21="","",AB21*100+AC21) -> 22 | AE21: =IF(AC21="","",F22+I22+L22+O22) -> 27 | AF21: =IF(AD21="","",RANK(AD21,AD19:AD26,0)) -> 4 | AH21: =CONCATENATE(A17,AF21) -> B4 | AI21: =B21 -> 鳳至ドッジボールクラブ
D22: =IF(I20="","",I20) -> 9 | E22: - | F22: =IF(G20="","",G20) -> 10 | J22: =VLOOKUP(J21,対戦表!$AG:$AH,2,0) -> 5 | K22: - | L22: =VLOOKUP(L21,対戦表!$AG:$AH,2,0) -> 7 | M22: =VLOOKUP(M21,対戦表!$AG:$AH,2,0) -> 8 | N22: - | O22: =VLOOKUP(O21,対戦表!$AG:$AH,2,0) -> 10
A23: =CONCATENATE(A17,3) -> B3 | B23: =VLOOKUP(A23,チーム表!C:D,2,FALSE) -> 千坂ドッジファイヤーズ | E23: =IF(D24="","",IF(D24=F24,"△",IF(D24>F24,"〇","×"))) -> 〇 | H23: =IF(G24="","",IF(G24=I24,"△",IF(G24>I24,"〇","×"))) -> 〇 | M23: =CONCATENATE($A23,N16) -> B3B4 | N23: =IF(M24="","",IF(M24=O24,"△",IF(M24>O24,"〇","×"))) -> × | O23: =CONCATENATE(N16,$A23) -> B4B3 | Y23: =COUNTIF($E23:$N23,"〇") -> 2 | Z23: =COUNTIF($E23:$N23,"×") -> 1 | AA23: =COUNTIF($E23:$N23,"△") -> 0 | AB23: =Y23*2+AA23 -> 4 | AC23: =IF(G24="","",D24+G24+M24+J24) -> 22 | AD23: =IF(AC23="","",AB23*100+AC23) -> 422 | AE23: =IF(AC23="","",F24+I24+L24+O24) -> 21 | AF23: =IF(AD23="","",RANK(AD23,AD19:AD26,0)) -> 2 | AH23: =CONCATENATE(A17,AF23) -> B2 | AI23: =B23 -> 千坂ドッジファイヤーズ
D24: =IF(L20="","",L20) -> 9 | E24: - | F24: =IF(J20="","",J20) -> 7 | G24: =IF(L22="","",L22) -> 7 | H24: - | I24: =IF(J22="","",J22) -> 5 | M24: =VLOOKUP(M23,対戦表!$AG:$AH,2,0) -> 6 | N24: - | O24: =VLOOKUP(O23,対戦表!$AG:$AH,2,0) -> 9
A25: =CONCATENATE(A17,4) -> B4 | B25: =VLOOKUP(A25,チーム表!C:D,2,FALSE) -> 松任の大魔陣 | E25: =IF(D26="","",IF(D26=F26,"△",IF(D26>F26,"〇","×"))) -> △ | H25: =IF(G26="","",IF(G26=I26,"△",IF(G26>I26,"〇","×"))) -> 〇 | K25: =IF(J26="","",IF(J26=L26,"△",IF(J26>L26,"〇","×"))) -> 〇 | Y25: =COUNTIF($E25:$N25,"〇") -> 2 | Z25: =COUNTIF($E25:$N25,"×") -> 0 | AA25: =COUNTIF($E25:$N25,"△") -> 1 | AB25: =Y25*2+AA25 -> 5 | AC25: =IF(G26="","",D26+G26+M26+J26) -> 28 | AD25: =IF(AC25="","",AB25*100+AC25) -> 528 | AE25: =IF(AC25="","",F26+I26+L26+O26) -> 23 | AF25: =IF(AD25="","",RANK(AD25,AD19:AD26,0)) -> 1 | AH25: =CONCATENATE(A17,AF25) -> B1 | AI25: =B25 -> 松任の大魔陣
D26: =IF(O20="","",O20) -> 9 | E26: - | F26: =IF(M20="","",M20) -> 9 | G26: =IF(O22="","",O22) -> 10 | H26: - | I26: =IF(M22="","",M22) -> 8 | J26: =IF(O24="","",O24) -> 9 | K26: - | L26: =IF(M24="","",M24) -> 6
E28: =CONCATENATE(A29,"1") -> C1 | H28: =CONCATENATE(A29,"2") -> C2 | K28: =CONCATENATE(A29,"3") -> C3 | N28: =CONCATENATE(A29,"4") -> C4
A29: C | B29: チーム名 | D29: =B31 -> 光陽マーリンズ | G29: =B33 -> 中郷ドッジボールクラブ | J29: =B35 -> 鵜川ミラクルフェニックス | M29: =B37 -> 向本折クラブA | Y29: 勝 | Z29: 負 | AA29: 分 | AB29: 点 | AC29: 内野 | AD29: 順位決定点 | AE29: 相手内野 | AF29: 順位 | AG29: kaku
A31: =CONCATENATE(A29,1) -> C1 | B31: =VLOOKUP(A31,チーム表!C:D,2,FALSE) -> 光陽マーリンズ | G31: =CONCATENATE($A31,H28) -> C1C2 | H31: =IF(G32="","",IF(G32=I32,"△",IF(G32>I32,"〇","×"))) -> 〇 | I31: =CONCATENATE(H28,$A31) -> C2C1 | J31: =CONCATENATE($A31,K28) -> C1C3 | K31: =IF(J32="","",IF(J32=L32,"△",IF(J32>L32,"〇","×"))) -> × | L31: =CONCATENATE(K28,$A31) -> C3C1 | M31: =CONCATENATE($A31,N28) -> C1C4 | N31: =IF(M32="","",IF(M32=O32,"△",IF(M32>O32,"〇","×"))) -> × | O31: =CONCATENATE(N28,$A31) -> C4C1 | Y31: =COUNTIF($E31:$N31,"〇") -> 1 | Z31: =COUNTIF($E31:$N31,"×") -> 2 | AA31: =COUNTIF($E31:$N31,"△") -> 0 | AB31: =Y31*2+AA31 -> 2 | AC31: =IF(G32="","",D32+G32+M32+J32) -> 20 | AD31: =IF(AC31="","",AB31*100+AC31) -> 220 | AE31: =IF(AC31="","",F32+I32+L32+O32) -> 19 | AF31: =IF(AD31="","",RANK(AD31,AD31:AD38,0)) -> 3 | AH31: =CONCATENATE(A29,AF31) -> C3 | AI31: =B31 -> 光陽マーリンズ
G32: =VLOOKUP(G31,対戦表!$AG:$AH,2,0) -> 11 | H32: - | I32: =VLOOKUP(I31,対戦表!$AG:$AH,2,0) -> 1 | J32: =VLOOKUP(J31,対戦表!$AG:$AH,2,0) -> 5 | K32: - | L32: =VLOOKUP(L31,対戦表!$AG:$AH,2,0) -> 8 | M32: =VLOOKUP(M31,対戦表!$AG:$AH,2,0) -> 4 | N32: - | O32: =VLOOKUP(O31,対戦表!$AG:$AH,2,0) -> 10
A33: =CONCATENATE(A29,2) -> C2 | B33: =VLOOKUP(A33,チーム表!C:D,2,FALSE) -> 中郷ドッジボールクラブ | E33: =IF(D34="","",IF(D34=F34,"△",IF(D34>F34,"〇","×"))) -> × | J33: =CONCATENATE($A33,K28) -> C2C3 | K33: =IF(J34="","",IF(J34=L34,"△",IF(J34>L34,"〇","×"))) -> × | L33: =CONCATENATE(K28,$A33) -> C3C2 | M33: =CONCATENATE($A33,N28) -> C2C4 | N33: =IF(M34="","",IF(M34=O34,"△",IF(M34>O34,"〇","×"))) -> × | O33: =CONCATENATE(N28,$A33) -> C4C2 | Y33: =COUNTIF($E33:$N33,"〇") -> 0 | Z33: =COUNTIF($E33:$N33,"×") -> 3 | AA33: =COUNTIF($E33:$N33,"△") -> 0 | AB33: =Y33*2+AA33 -> 0 | AC33: =IF(D34="","",D34+G34+M34+J34) -> 10 | AD33: =IF(AC33="","",AB33*100+AC33) -> 10 | AE33: =IF(AC33="","",F34+I34+L34+O34) -> 31 | AF33: =IF(AD33="","",RANK(AD33,AD31:AD38,0)) -> 4 | AH33: =CONCATENATE(A29,AF33) -> C4 | AI33: =B33 -> 中郷ドッジボールクラブ
D34: =IF(I32="","",I32) -> 1 | E34: - | F34: =IF(G32="","",G32) -> 11 | J34: =VLOOKUP(J33,対戦表!$AG:$AH,2,0) -> 6 | K34: - | L34: =VLOOKUP(L33,対戦表!$AG:$AH,2,0) -> 10 | M34: =VLOOKUP(M33,対戦表!$AG:$AH,2,0) -> 3 | N34: - | O34: =VLOOKUP(O33,対戦表!$AG:$AH,2,0) -> 10
A35: =CONCATENATE(A29,3) -> C3 | B35: =VLOOKUP(A35,チーム表!C:D,2,FALSE) -> 鵜川ミラクルフェニックス | E35: =IF(D36="","",IF(D36=F36,"△",IF(D36>F36,"〇","×"))) -> 〇 | H35: =IF(G36="","",IF(G36=I36,"△",IF(G36>I36,"〇","×"))) -> 〇 | M35: =CONCATENATE($A35,N28) -> C3C4 | N35: =IF(M36="","",IF(M36=O36,"△",IF(M36>O36,"〇","×"))) -> △ | O35: =CONCATENATE(N28,$A35) -> C4C3 | Y35: =COUNTIF($E35:$N35,"〇") -> 2 | Z35: =COUNTIF($E35:$N35,"×") -> 0 | AA35: =COUNTIF($E35:$N35,"△") -> 1 | AB35: =Y35*2+AA35 -> 5 | AC35: =IF(G36="","",D36+G36+M36+J36) -> 25 | AD35: =IF(AC35="","",AB35*100+AC35) -> 525 | AE35: =IF(AC35="","",F36+I36+L36+O36) -> 18 | AF35: =IF(AD35="","",RANK(AD35,AD31:AD38,0)) -> 2 | AH35: =CONCATENATE(A29,AF35) -> C2 | AI35: =B35 -> 鵜川ミラクルフェニックス
D36: =IF(L32="","",L32) -> 8 | E36: - | F36: =IF(J32="","",J32) -> 5 | G36: =IF(L34="","",L34) -> 10 | H36: - | I36: =IF(J34="","",J34) -> 6 | M36: =VLOOKUP(M35,対戦表!$AG:$AH,2,0) -> 7 | N36: - | O36: =VLOOKUP(O35,対戦表!$AG:$AH,2,0) -> 7
A37: =CONCATENATE(A29,4) -> C4 | B37: =VLOOKUP(A37,チーム表!C:D,2,FALSE) -> 向本折クラブA | E37: =IF(D38="","",IF(D38=F38,"△",IF(D38>F38,"〇","×"))) -> 〇 | H37: =IF(G38="","",IF(G38=I38,"△",IF(G38>I38,"〇","×"))) -> 〇 | K37: =IF(J38="","",IF(J38=L38,"△",IF(J38>L38,"〇","×"))) -> △ | Y37: =COUNTIF($E37:$N37,"〇") -> 2 | Z37: =COUNTIF($E37:$N37,"×") -> 0 | AA37: =COUNTIF($E37:$N37,"△") -> 1 | AB37: =Y37*2+AA37 -> 5 | AC37: =IF(G38="","",D38+G38+M38+J38) -> 27 | AD37: =IF(AC37="","",AB37*100+AC37) -> 527 | AE37: =IF(AC37="","",F38+I38+L38+O38) -> 14 | AF37: =IF(AD37="","",RANK(AD37,AD31:AD38,0)) -> 1 | AH37: =CONCATENATE(A29,AF37) -> C1 | AI37: =B37 -> 向本折クラブA
D38: =IF(O32="","",O32) -> 10 | E38: - | F38: =IF(M32="","",M32) -> 4 | G38: =IF(O34="","",O34) -> 10 | H38: - | I38: =IF(M34="","",M34) -> 3 | J38: =IF(O36="","",O36) -> 7 | K38: - | L38: =IF(M36="","",M36) -> 7
E40: =CONCATENATE(A41,"1") -> D1 | H40: =CONCATENATE(A41,"2") -> D2 | K40: =CONCATENATE(A41,"3") -> D3 | N40: =CONCATENATE(A41,"4") -> D4 | Q40: =CONCATENATE(A41,"5") -> D5
A41: D | B41: チーム名 | D41: =B43 -> 飯野マジックス | G41: =B45 -> 三馬パワフル | J41: =B47 -> 寺井クラブ | M41: =B49 -> 大門ドッジボールクラブ | P41: =B51 -> 田上闘球DREAMS | Y41: 勝 | Z41: 負 | AA41: 分 | AB41: 点 | AC41: 内野 | AD41: 順位決定点 | AE41: 相手内野 | AF41: 順位 | AG41: kaku
A43: =CONCATENATE(A41,1) -> D1 | B43: =VLOOKUP(A43,チーム表!C:D,2,FALSE) -> 飯野マジックス | G43: =CONCATENATE($A43,H40) -> D1D2 | H43: =IF(G44="","",IF(G44=I44,"△",IF(G44>I44,"〇","×"))) -> 〇 | I43: =CONCATENATE(H40,$A43) -> D2D1 | J43: =CONCATENATE($A43,K40) -> D1D3 | K43: =IF(J44="","",IF(J44=L44,"△",IF(J44>L44,"〇","×"))) -> × | L43: =CONCATENATE(K40,$A43) -> D3D1 | M43: =CONCATENATE($A43,N40) -> D1D4 | N43: =IF(M44="","",IF(M44=O44,"△",IF(M44>O44,"〇","×"))) -> 〇 | O43: =CONCATENATE(N40,$A43) -> D4D1 | P43: =CONCATENATE($A43,Q40) -> D1D5 | Q43: =IF(P44="","",IF(P44=R44,"△",IF(P44>R44,"〇","×"))) -> × | R43: =CONCATENATE(Q40,$A43) -> D5D1 | Y43: =COUNTIF($E43:$Q43,"〇") -> 2 | Z43: =COUNTIF($E43:$Q43,"×") -> 2 | AA43: =COUNTIF($E43:$Q43,"△") -> 0 | AB43: =Y43*2+AA43 -> 4 | AC43: =IF(G44="","",D44+G44+M44+P44+J44) -> 27 | AD43: =IF(AC43="","",AB43*100+AC43) -> 427 | AE43: =IF(AC43="","",F44+I44+L44+O44+R44) -> 32 | AF43: =IF(AD43="","",RANK(AD43,AD43:AD52,0)) -> 3 | AH43: =CONCATENATE(A41,AF43) -> D3 | AI43: =B43 -> 飯野マジックス
G44: =VLOOKUP(G43,対戦表!$AG:$AH,2,0) -> 10 | H44: - | I44: =VLOOKUP(I43,対戦表!$AG:$AH,2,0) -> 7 | J44: =VLOOKUP(J43,対戦表!$AG:$AH,2,0) -> 6 | K44: - | L44: =VLOOKUP(L43,対戦表!$AG:$AH,2,0) -> 9 | M44: =VLOOKUP(M43,対戦表!$AG:$AH,2,0) -> 9 | N44: - | O44: =VLOOKUP(O43,対戦表!$AG:$AH,2,0) -> 6 | P44: =VLOOKUP(P43,対戦表!$AG:$AH,2,0) -> 2 | Q44: - | R44: =VLOOKUP(R43,対戦表!$AG:$AH,2,0) -> 10
A45: =CONCATENATE(A41,2) -> D2 | B45: =VLOOKUP(A45,チーム表!C:D,2,FALSE) -> 三馬パワフル | E45: =IF(D46="","",IF(D46=F46,"△",IF(D46>F46,"〇","×"))) -> × | J45: =CONCATENATE($A45,K40) -> D2D3 | K45: =IF(J46="","",IF(J46=L46,"△",IF(J46>L46,"〇","×"))) -> × | L45: =CONCATENATE(K40,$A45) -> D3D2 | M45: =CONCATENATE($A45,N40) -> D2D4 | N45: =IF(M46="","",IF(M46=O46,"△",IF(M46>O46,"〇","×"))) -> × | O45: =CONCATENATE(N40,$A45) -> D4D2 | P45: =CONCATENATE($A45,Q40) -> D2D5 | Q45: =IF(P46="","",IF(P46=R46,"△",IF(P46>R46,"〇","×"))) -> × | R45: =CONCATENATE(Q40,$A45) -> D5D2 | Y45: =COUNTIF($E45:$Q45,"〇") -> 0 | Z45: =COUNTIF($E45:$Q45,"×") -> 4 | AA45: =COUNTIF($E45:$Q45,"△") -> 0 | AB45: =Y45*2+AA45 -> 0 | AC45: =IF(D46="","",D46+G46+M46+P46+J46) -> 15 | AD45: =IF(AC45="","",AB45*100+AC45) -> 15 | AE45: =IF(AC45="","",F46+I46+L46+O46+R46) -> 37 | AF45: =IF(AD45="","",RANK(AD45,AD43:AD52,0)) -> 5 | AH45: =CONCATENATE(A41,AF45) -> D5 | AI45: =B45 -> 三馬パワフル
D46: =IF(I44="","",I44) -> 7 | E46: - | F46: =IF(G44="","",G44) -> 10 | J46: =VLOOKUP(J45,対戦表!$AG:$AH,2,0) -> 0 | K46: - | L46: =VLOOKUP(L45,対戦表!$AG:$AH,2,0) -> 7 | M46: =VLOOKUP(M45,対戦表!$AG:$AH,2,0) -> 6 | N46: - | O46: =VLOOKUP(O45,対戦表!$AG:$AH,2,0) -> 9 | P46: =VLOOKUP(P45,対戦表!$AG:$AH,2,0) -> 2 | Q46: - | R46: =VLOOKUP(R45,対戦表!$AG:$AH,2,0) -> 11
A47: =CONCATENATE(A41,3) -> D3 | B47: =VLOOKUP(A47,チーム表!C:D,2,FALSE) -> 寺井クラブ | E47: =IF(D48="","",IF(D48=F48,"△",IF(D48>F48,"〇","×"))) -> 〇 | H47: =IF(G48="","",IF(G48=I48,"△",IF(G48>I48,"〇","×"))) -> 〇 | M47: =CONCATENATE($A47,N40) -> D3D4 | N47: =IF(M48="","",IF(M48=O48,"△",IF(M48>O48,"〇","×"))) -> △ | O47: =CONCATENATE(N40,$A47) -> D4D3 | P47: =CONCATENATE($A47,Q40) -> D3D5 | Q47: =IF(P48="","",IF(P48=R48,"△",IF(P48>R48,"〇","×"))) -> × | R47: =CONCATENATE(Q40,$A47) -> D5D3 | Y47: =COUNTIF($E47:$Q47,"〇") -> 2 | Z47: =COUNTIF($E47:$Q47,"×") -> 1 | AA47: =COUNTIF($E47:$Q47,"△") -> 1 | AB47: =Y47*2+AA47 -> 5 | AC47: =IF(G48="","",D48+G48+M48+P48+J48) -> 30 | AD47: =IF(AC47="","",AB47*100+AC47) -> 530 | AE47: =IF(AC47="","",F48+I48+L48+O48+R48) -> 24 | AF47: =IF(AD47="","",RANK(AD47,AD43:AD52,0)) -> 2 | AH47: =CONCATENATE(A41,AF47) -> D2 | AI47: =B47 -> 寺井クラブ
D48: =IF(L44="","",L44) -> 9 | E48: - | F48: =IF(J44="","",J44) -> 6 | G48: =IF(L46="","",L46) -> 7 | H48: - | I48: =IF(J46="","",J46) -> 0 | M48: =VLOOKUP(M47,対戦表!$AG:$AH,2,0) -> 9 | N48: - | O48: =VLOOKUP(O47,対戦表!$AG:$AH,2,0) -> 9 | P48: =VLOOKUP(P47,対戦表!$AG:$AH,2,0) -> 5 | Q48: - | R48: =VLOOKUP(R47,対戦表!$AG:$AH,2,0) -> 9
A49: =CONCATENATE(A41,4) -> D4 | B49: =VLOOKUP(A49,チーム表!C:D,2,FALSE) -> 大門ドッジボールクラブ | E49: =IF(D50="","",IF(D50=F50,"△",IF(D50>F50,"〇","×"))) -> × | H49: =IF(G50="","",IF(G50=I50,"△",IF(G50>I50,"〇","×"))) -> 〇 | K49: =IF(J50="","",IF(J50=L50,"△",IF(J50>L50,"〇","×"))) -> △ | P49: =CONCATENATE($A49,Q40) -> D4D5 | Q49: =IF(P50="","",IF(P50=R50,"△",IF(P50>R50,"〇","×"))) -> × | R49: =CONCATENATE(Q40,$A49) -> D5D4 | Y49: =COUNTIF($E49:$Q49,"〇") -> 1 | Z49: =COUNTIF($E49:$Q49,"×") -> 2 | AA49: =COUNTIF($E49:$Q49,"△") -> 1 | AB49: =Y49*2+AA49 -> 3 | AC49: =IF(G50="","",D50+G50+M50+P50+J50) -> 28 | AD49: =IF(AC49="","",AB49*100+AC49) -> 328 | AE49: =IF(AC49="","",F50+I50+L50+O50+R50) -> 32 | AF49: =IF(AD49="","",RANK(AD49,AD43:AD52,0)) -> 4 | AH49: =CONCATENATE(A41,AF49) -> D4 | AI49: =B49 -> 大門ドッジボールクラブ
D50: =IF(O44="","",O44) -> 6 | E50: - | F50: =IF(M44="","",M44) -> 9 | G50: =IF(O46="","",O46) -> 9 | H50: - | I50: =IF(M46="","",M46) -> 6 | J50: =IF(O48="","",O48) -> 9 | K50: - | L50: =IF(M48="","",M48) -> 9 | P50: =VLOOKUP(P49,対戦表!$AG:$AH,2,0) -> 4 | Q50: - | R50: =VLOOKUP(R49,対戦表!$AG:$AH,2,0) -> 8
A51: =CONCATENATE(A41,5) -> D5 | B51: =VLOOKUP(A51,チーム表!C:D,2,FALSE) -> 田上闘球DREAMS | E51: =IF(D52="","",IF(D52=F52,"△",IF(D52>F52,"〇","×"))) -> 〇 | H51: =IF(G52="","",IF(G52=I52,"△",IF(G52>I52,"〇","×"))) -> 〇 | K51: =IF(J52="","",IF(J52=L52,"△",IF(J52>L52,"〇","×"))) -> 〇 | N51: =IF(M52="","",IF(M52=O52,"△",IF(M52>O52,"〇","×"))) -> 〇 | P51: =IF(P52="","",IF(P52=R52,"△",IF(P52>R52,"〇","×"))) ->  | Y51: =COUNTIF($E51:$Q51,"〇") -> 4 | Z51: =COUNTIF($E51:$Q51,"×") -> 0 | AA51: =COUNTIF($E51:$Q51,"△") -> 0 | AB51: =Y51*2+AA51 -> 8 | AC51: =IF(G52="","",D52+G52+M52+P52+J52) -> 38 | AD51: =IF(AC51="","",AB51*100+AC51) -> 838 | AE51: =IF(AC51="","",F52+I52+L52+O52+R52) -> 13 | AF51: =IF(AD51="","",RANK(AD51,AD43:AD52,0)) -> 1 | AH51: =CONCATENATE(A41,AF51) -> D1 | AI51: =B51 -> 田上闘球DREAMS
D52: =IF($R44="","",$R44) -> 10 | E52: - | F52: =IF($P44="","",$P44) -> 2 | G52: =IF($R46="","",$R46) -> 11 | H52: - | I52: =IF($P46="","",$P46) -> 2 | J52: =IF($R48="","",$R48) -> 9 | K52: - | L52: =IF($P48="","",$P48) -> 5 | M52: =IF($R50="","",$R50) -> 8 | N52: - | O52: =IF($P50="","",$P50) -> 4
B53: ジュニアの部
E54: =CONCATENATE(A55,"1") -> E1 | H54: =CONCATENATE(A55,"2") -> E2 | K54: =CONCATENATE(A55,"3") -> E3 | N54: =CONCATENATE(A55,"4") -> E4
A55: E | B55: チーム名 | D55: =B57 -> 鞍月アタッカーズジュニア | G55: =B59 -> 鳳至ジュニア | J55: =B61 -> 中郷ミラクルジュニア | M55: =B63 -> ドッジの王子様 | Y55: 勝 | Z55: 負 | AA55: 分 | AB55: 点 | AC55: 内野 | AD55: 順位決定点 | AE55: 相手内野 | AF55: 順位 | AG55: kaku
A57: =CONCATENATE(A55,1) -> E1 | B57: =VLOOKUP(A57,チーム表!C:D,2,FALSE) -> 鞍月アタッカーズジュニア | G57: =CONCATENATE($A57,H54) -> E1E2 | H57: =IF(G58="","",IF(G58=I58,"△",IF(G58>I58,"〇","×"))) -> 〇 | I57: =CONCATENATE(H54,$A57) -> E2E1 | J57: =CONCATENATE($A57,K54) -> E1E3 | K57: =IF(J58="","",IF(J58=L58,"△",IF(J58>L58,"〇","×"))) -> 〇 | L57: =CONCATENATE(K54,$A57) -> E3E1 | M57: =CONCATENATE($A57,N54) -> E1E4 | N57: =IF(M58="","",IF(M58=O58,"△",IF(M58>O58,"〇","×"))) -> 〇 | O57: =CONCATENATE(N54,$A57) -> E4E1 | Y57: =COUNTIF($E57:$N57,"〇") -> 3 | Z57: =COUNTIF($E57:$N57,"×") -> 0 | AA57: =COUNTIF($E57:$N57,"△") -> 0 | AB57: =Y57*2+AA57 -> 6 | AC57: =IF(G58="","",D58+G58+M58+J58) -> 22 | AD57: =IF(AC57="","",AB57*100+AC57) -> 622 | AE57: =IF(AC57="","",F58+I58+L58+O58) -> 13 | AF57: =IF(AD57="","",RANK(AD57,AD57:AD64,0)) -> 1 | AH57: =CONCATENATE(A55,AF57) -> E1 | AI57: =B57 -> 鞍月アタッカーズジュニア
G58: =VLOOKUP(G57,対戦表!$AG:$AH,2,0) -> 8 | H58: - | I58: =VLOOKUP(I57,対戦表!$AG:$AH,2,0) -> 4 | J58: =VLOOKUP(J57,対戦表!$AG:$AH,2,0) -> 8 | K58: - | L58: =VLOOKUP(L57,対戦表!$AG:$AH,2,0) -> 4 | M58: =VLOOKUP(M57,対戦表!$AG:$AH,2,0) -> 6 | N58: - | O58: =VLOOKUP(O57,対戦表!$AG:$AH,2,0) -> 5
A59: =CONCATENATE(A55,2) -> E2 | B59: =VLOOKUP(A59,チーム表!C:D,2,FALSE) -> 鳳至ジュニア | E59: =IF(D60="","",IF(D60=F60,"△",IF(D60>F60,"〇","×"))) -> × | J59: =CONCATENATE($A59,K54) -> E2E3 | K59: =IF(J60="","",IF(J60=L60,"△",IF(J60>L60,"〇","×"))) -> 〇 | L59: =CONCATENATE(K54,$A59) -> E3E2 | M59: =CONCATENATE($A59,N54) -> E2E4 | N59: =IF(M60="","",IF(M60=O60,"△",IF(M60>O60,"〇","×"))) -> 〇 | O59: =CONCATENATE(N54,$A59) -> E4E2 | Y59: =COUNTIF($E59:$N59,"〇") -> 2 | Z59: =COUNTIF($E59:$N59,"×") -> 1 | AA59: =COUNTIF($E59:$N59,"△") -> 0 | AB59: =Y59*2+AA59 -> 4 | AC59: =IF(D60="","",D60+G60+M60+J60) -> 19 | AD59: =IF(AC59="","",AB59*100+AC59) -> 419 | AE59: =IF(AC59="","",F60+I60+L60+O60) -> 15 | AF59: =IF(AD59="","",RANK(AD59,AD57:AD64,0)) -> 2 | AH59: =CONCATENATE(A55,AF59) -> E2 | AI59: =B59 -> 鳳至ジュニア
D60: =IF(I58="","",I58) -> 4 | E60: - | F60: =IF(G58="","",G58) -> 8 | J60: =VLOOKUP(J59,対戦表!$AG:$AH,2,0) -> 8 | K60: - | L60: =VLOOKUP(L59,対戦表!$AG:$AH,2,0) -> 2 | M60: =VLOOKUP(M59,対戦表!$AG:$AH,2,0) -> 7 | N60: - | O60: =VLOOKUP(O59,対戦表!$AG:$AH,2,0) -> 5
A61: =CONCATENATE(A55,3) -> E3 | B61: =VLOOKUP(A61,チーム表!C:D,2,FALSE) -> 中郷ミラクルジュニア | E61: =IF(D62="","",IF(D62=F62,"△",IF(D62>F62,"〇","×"))) -> × | H61: =IF(G62="","",IF(G62=I62,"△",IF(G62>I62,"〇","×"))) -> × | M61: =CONCATENATE($A61,N54) -> E3E4 | N61: =IF(M62="","",IF(M62=O62,"△",IF(M62>O62,"〇","×"))) -> × | O61: =CONCATENATE(N54,$A61) -> E4E3 | Y61: =COUNTIF($E61:$N61,"〇") -> 0 | Z61: =COUNTIF($E61:$N61,"×") -> 3 | AA61: =COUNTIF($E61:$N61,"△") -> 0 | AB61: =Y61*2+AA61 -> 0 | AC61: =IF(G62="","",D62+G62+M62+J62) -> 11 | AD61: =IF(AC61="","",AB61*100+AC61) -> 11 | AE61: =IF(AC61="","",F62+I62+L62+O62) -> 25 | AF61: =IF(AD61="","",RANK(AD61,AD57:AD64,0)) -> 4 | AH61: =CONCATENATE(A55,AF61) -> E4 | AI61: =B61 -> 中郷ミラクルジュニア
D62: =IF(L58="","",L58) -> 4 | E62: - | F62: =IF(J58="","",J58) -> 8 | G62: =IF(L60="","",L60) -> 2 | H62: - | I62: =IF(J60="","",J60) -> 8 | M62: =VLOOKUP(M61,対戦表!$AG:$AH,2,0) -> 5 | N62: - | O62: =VLOOKUP(O61,対戦表!$AG:$AH,2,0) -> 9
A63: =CONCATENATE(A55,4) -> E4 | B63: =VLOOKUP(A63,チーム表!C:D,2,FALSE) -> ドッジの王子様 | E63: =IF(D64="","",IF(D64=F64,"△",IF(D64>F64,"〇","×"))) -> × | H63: =IF(G64="","",IF(G64=I64,"△",IF(G64>I64,"〇","×"))) -> × | K63: =IF(J64="","",IF(J64=L64,"△",IF(J64>L64,"〇","×"))) -> 〇 | Y63: =COUNTIF($E63:$N63,"〇") -> 1 | Z63: =COUNTIF($E63:$N63,"×") -> 2 | AA63: =COUNTIF($E63:$N63,"△") -> 0 | AB63: =Y63*2+AA63 -> 2 | AC63: =IF(G64="","",D64+G64+M64+J64) -> 19 | AD63: =IF(AC63="","",AB63*100+AC63) -> 219 | AE63: =IF(AC63="","",F64+I64+L64+O64) -> 18 | AF63: =IF(AD63="","",RANK(AD63,AD57:AD64,0)) -> 3 | AH63: =CONCATENATE(A55,AF63) -> E3 | AI63: =B63 -> ドッジの王子様
D64: =IF(O58="","",O58) -> 5 | E64: - | F64: =IF(M58="","",M58) -> 6 | G64: =IF(O60="","",O60) -> 5 | H64: - | I64: =IF(M60="","",M60) -> 7 | J64: =IF(O62="","",O62) -> 9 | K64: - | L64: =IF(M62="","",M62) -> 5
E66: =CONCATENATE(A67,"1") -> F1 | H66: =CONCATENATE(A67,"2") -> F2 | K66: =CONCATENATE(A67,"3") -> F3 | N66: =CONCATENATE(A67,"4") -> F4
A67: F | B67: チーム名 | D67: =B69 -> 九十九クラブ | G67: =B71 -> 千坂ロータスルート | J67: =B73 -> 向本折クラブNew | M67: =B75 -> 寺井クラブＪｒ A | Y67: 勝 | Z67: 負 | AA67: 分 | AB67: 点 | AC67: 内野 | AD67: 順位決定点 | AE67: 相手内野 | AF67: 順位 | AG67: kaku
A69: =CONCATENATE(A67,1) -> F1 | B69: =VLOOKUP(A69,チーム表!C:D,2,FALSE) -> 九十九クラブ | G69: =CONCATENATE($A69,H66) -> F1F2 | H69: =IF(G70="","",IF(G70=I70,"△",IF(G70>I70,"〇","×"))) -> 〇 | I69: =CONCATENATE(H66,$A69) -> F2F1 | J69: =CONCATENATE($A69,K66) -> F1F3 | K69: =IF(J70="","",IF(J70=L70,"△",IF(J70>L70,"〇","×"))) -> 〇 | L69: =CONCATENATE(K66,$A69) -> F3F1 | M69: =CONCATENATE($A69,N66) -> F1F4 | N69: =IF(M70="","",IF(M70=O70,"△",IF(M70>O70,"〇","×"))) -> 〇 | O69: =CONCATENATE(N66,$A69) -> F4F1 | Y69: =COUNTIF($E69:$N69,"〇") -> 3 | Z69: =COUNTIF($E69:$N69,"×") -> 0 | AA69: =COUNTIF($E69:$N69,"△") -> 0 | AB69: =Y69*2+AA69 -> 6 | AC69: =IF(G70="","",D70+G70+M70+J70) -> 19 | AD69: =IF(AC69="","",AB69*100+AC69) -> 619 | AE69: =IF(AC69="","",F70+I70+L70+O70) -> 8 | AF69: =IF(AD69="","",RANK(AD69,AD69:AD76,0)) -> 1 | AH69: =CONCATENATE(A67,AF69) -> F1 | AI69: =B69 -> 九十九クラブ
G70: =VLOOKUP(G69,対戦表!$AG:$AH,2,0) -> 6 | H70: - | I70: =VLOOKUP(I69,対戦表!$AG:$AH,2,0) -> 3 | J70: =VLOOKUP(J69,対戦表!$AG:$AH,2,0) -> 6 | K70: - | L70: =VLOOKUP(L69,対戦表!$AG:$AH,2,0) -> 2 | M70: =VLOOKUP(M69,対戦表!$AG:$AH,2,0) -> 7 | N70: - | O70: =VLOOKUP(O69,対戦表!$AG:$AH,2,0) -> 3
A71: =CONCATENATE(A67,2) -> F2 | B71: =VLOOKUP(A71,チーム表!C:D,2,FALSE) -> 千坂ロータスルート | E71: =IF(D72="","",IF(D72=F72,"△",IF(D72>F72,"〇","×"))) -> × | J71: =CONCATENATE($A71,K66) -> F2F3 | K71: =IF(J72="","",IF(J72=L72,"△",IF(J72>L72,"〇","×"))) -> × | L71: =CONCATENATE(K66,$A71) -> F3F2 | M71: =CONCATENATE($A71,N66) -> F2F4 | N71: =IF(M72="","",IF(M72=O72,"△",IF(M72>O72,"〇","×"))) -> × | O71: =CONCATENATE(N66,$A71) -> F4F2 | Y71: =COUNTIF($E71:$N71,"〇") -> 0 | Z71: =COUNTIF($E71:$N71,"×") -> 3 | AA71: =COUNTIF($E71:$N71,"△") -> 0 | AB71: =Y71*2+AA71 -> 0 | AC71: =IF(D72="","",D72+G72+M72+J72) -> 5 | AD71: =IF(AC71="","",AB71*100+AC71) -> 5 | AE71: =IF(AC71="","",F72+I72+L72+O72) -> 18 | AF71: =IF(AD71="","",RANK(AD71,AD69:AD76,0)) -> 4 | AH71: =CONCATENATE(A67,AF71) -> F4 | AI71: =B71 -> 千坂ロータスルート
D72: =IF(I70="","",I70) -> 3 | E72: - | F72: =IF(G70="","",G70) -> 6 | J72: =VLOOKUP(J71,対戦表!$AG:$AH,2,0) -> 0 | K72: - | L72: =VLOOKUP(L71,対戦表!$AG:$AH,2,0) -> 6 | M72: =VLOOKUP(M71,対戦表!$AG:$AH,2,0) -> 2 | N72: - | O72: =VLOOKUP(O71,対戦表!$AG:$AH,2,0) -> 6
A73: =CONCATENATE(A67,3) -> F3 | B73: =VLOOKUP(A73,チーム表!C:D,2,FALSE) -> 向本折クラブNew | E73: =IF(D74="","",IF(D74=F74,"△",IF(D74>F74,"〇","×"))) -> × | H73: =IF(G74="","",IF(G74=I74,"△",IF(G74>I74,"〇","×"))) -> 〇 | M73: =CONCATENATE($A73,N66) -> F3F4 | N73: =IF(M74="","",IF(M74=O74,"△",IF(M74>O74,"〇","×"))) -> 〇 | O73: =CONCATENATE(N66,$A73) -> F4F3 | Y73: =COUNTIF($E73:$N73,"〇") -> 2 | Z73: =COUNTIF($E73:$N73,"×") -> 1 | AA73: =COUNTIF($E73:$N73,"△") -> 0 | AB73: =Y73*2+AA73 -> 4 | AC73: =IF(G74="","",D74+G74+M74+J74) -> 13 | AD73: =IF(AC73="","",AB73*100+AC73) -> 413 | AE73: =IF(AC73="","",F74+I74+L74+O74) -> 7 | AF73: =IF(AD73="","",RANK(AD73,AD69:AD76,0)) -> 2 | AH73: =CONCATENATE(A67,AF73) -> F2 | AI73: =B73 -> 向本折クラブNew
D74: =IF(L70="","",L70) -> 2 | E74: - | F74: =IF(J70="","",J70) -> 6 | G74: =IF(L72="","",L72) -> 6 | H74: - | I74: =IF(J72="","",J72) -> 0 | M74: =VLOOKUP(M73,対戦表!$AG:$AH,2,0) -> 5 | N74: - | O74: =VLOOKUP(O73,対戦表!$AG:$AH,2,0) -> 1
A75: =CONCATENATE(A67,4) -> F4 | B75: =VLOOKUP(A75,チーム表!C:D,2,FALSE) -> 寺井クラブＪｒ A | E75: =IF(D76="","",IF(D76=F76,"△",IF(D76>F76,"〇","×"))) -> × | H75: =IF(G76="","",IF(G76=I76,"△",IF(G76>I76,"〇","×"))) -> 〇 | K75: =IF(J76="","",IF(J76=L76,"△",IF(J76>L76,"〇","×"))) -> × | Y75: =COUNTIF($E75:$N75,"〇") -> 1 | Z75: =COUNTIF($E75:$N75,"×") -> 2 | AA75: =COUNTIF($E75:$N75,"△") -> 0 | AB75: =Y75*2+AA75 -> 2 | AC75: =IF(G76="","",D76+G76+M76+J76) -> 10 | AD75: =IF(AC75="","",AB75*100+AC75) -> 210 | AE75: =IF(AC75="","",F76+I76+L76+O76) -> 14 | AF75: =IF(AD75="","",RANK(AD75,AD69:AD76,0)) -> 3 | AH75: =CONCATENATE(A67,AF75) -> F3 | AI75: =B75 -> 寺井クラブＪｒ A
D76: =IF(O70="","",O70) -> 3 | E76: - | F76: =IF(M70="","",M70) -> 7 | G76: =IF(O72="","",O72) -> 6 | H76: - | I76: =IF(M72="","",M72) -> 2 | J76: =IF(O74="","",O74) -> 1 | K76: - | L76: =IF(M74="","",M74) -> 5
E78: =CONCATENATE(A79,"1") -> G1 | H78: =CONCATENATE(A79,"2") -> G2 | K78: =CONCATENATE(A79,"3") -> G3 | N78: =CONCATENATE(A79,"4") -> G4
A79: G | B79: チーム名 | D79: =B81 -> 鞍月アタッカーズキッズ | G79: =B83 -> 松任の大魔陣Jr. | J79: =B85 -> 鵜川フェニックスジュニア | M79: =B87 -> 大門ドッジボールクラブJr | Y79: 勝 | Z79: 負 | AA79: 分 | AB79: 点 | AC79: 内野 | AD79: 順位決定点 | AE79: 相手内野 | AF79: 順位 | AG79: kaku
A81: =CONCATENATE(A79,1) -> G1 | B81: =VLOOKUP(A81,チーム表!C:D,2,FALSE) -> 鞍月アタッカーズキッズ | G81: =CONCATENATE($A81,H78) -> G1G2 | H81: =IF(G82="","",IF(G82=I82,"△",IF(G82>I82,"〇","×"))) -> × | I81: =CONCATENATE(H78,$A81) -> G2G1 | J81: =CONCATENATE($A81,K78) -> G1G3 | K81: =IF(J82="","",IF(J82=L82,"△",IF(J82>L82,"〇","×"))) -> × | L81: =CONCATENATE(K78,$A81) -> G3G1 | M81: =CONCATENATE($A81,N78) -> G1G4 | N81: =IF(M82="","",IF(M82=O82,"△",IF(M82>O82,"〇","×"))) -> × | O81: =CONCATENATE(N78,$A81) -> G4G1 | Y81: =COUNTIF($E81:$N81,"〇") -> 0 | Z81: =COUNTIF($E81:$N81,"×") -> 3 | AA81: =COUNTIF($E81:$N81,"△") -> 0 | AB81: =Y81*2+AA81 -> 0 | AC81: =IF(G82="","",D82+G82+M82+J82) -> 6 | AD81: =IF(AC81="","",AB81*100+AC81) -> 6 | AE81: =IF(AC81="","",F82+I82+L82+O82) -> 18 | AF81: =IF(AD81="","",RANK(AD81,AD81:AD88,0)) -> 4 | AH81: =CONCATENATE(A79,AF81) -> G4 | AI81: =B81 -> 鞍月アタッカーズキッズ
G82: =VLOOKUP(G81,対戦表!$AG:$AH,2,0) -> 3 | H82: - | I82: =VLOOKUP(I81,対戦表!$AG:$AH,2,0) -> 6 | J82: =VLOOKUP(J81,対戦表!$AG:$AH,2,0) -> 0 | K82: - | L82: =VLOOKUP(L81,対戦表!$AG:$AH,2,0) -> 8 | M82: =VLOOKUP(M81,対戦表!$AG:$AH,2,0) -> 3 | N82: - | O82: =VLOOKUP(O81,対戦表!$AG:$AH,2,0) -> 4
A83: =CONCATENATE(A79,2) -> G2 | B83: =VLOOKUP(A83,チーム表!C:D,2,FALSE) -> 松任の大魔陣Jr. | E83: =IF(D84="","",IF(D84=F84,"△",IF(D84>F84,"〇","×"))) -> 〇 | J83: =CONCATENATE($A83,K78) -> G2G3 | K83: =IF(J84="","",IF(J84=L84,"△",IF(J84>L84,"〇","×"))) -> × | L83: =CONCATENATE(K78,$A83) -> G3G2 | M83: =CONCATENATE($A83,N78) -> G2G4 | N83: =IF(M84="","",IF(M84=O84,"△",IF(M84>O84,"〇","×"))) -> 〇 | O83: =CONCATENATE(N78,$A83) -> G4G2 | Y83: =COUNTIF($E83:$N83,"〇") -> 2 | Z83: =COUNTIF($E83:$N83,"×") -> 1 | AA83: =COUNTIF($E83:$N83,"△") -> 0 | AB83: =Y83*2+AA83 -> 4 | AC83: =IF(D84="","",D84+G84+M84+J84) -> 16 | AD83: =IF(AC83="","",AB83*100+AC83) -> 416 | AE83: =IF(AC83="","",F84+I84+L84+O84) -> 16 | AF83: =IF(AD83="","",RANK(AD83,AD81:AD88,0)) -> 2 | AH83: =CONCATENATE(A79,AF83) -> G2 | AI83: =B83 -> 松任の大魔陣Jr.
D84: =IF(I82="","",I82) -> 6 | E84: - | F84: =IF(G82="","",G82) -> 3 | J84: =VLOOKUP(J83,対戦表!$AG:$AH,2,0) -> 4 | K84: - | L84: =VLOOKUP(L83,対戦表!$AG:$AH,2,0) -> 9 | M84: =VLOOKUP(M83,対戦表!$AG:$AH,2,0) -> 6 | N84: - | O84: =VLOOKUP(O83,対戦表!$AG:$AH,2,0) -> 4
A85: =CONCATENATE(A79,3) -> G3 | B85: =VLOOKUP(A85,チーム表!C:D,2,FALSE) -> 鵜川フェニックスジュニア | E85: =IF(D86="","",IF(D86=F86,"△",IF(D86>F86,"〇","×"))) -> 〇 | H85: =IF(G86="","",IF(G86=I86,"△",IF(G86>I86,"〇","×"))) -> 〇 | M85: =CONCATENATE($A85,N78) -> G3G4 | N85: =IF(M86="","",IF(M86=O86,"△",IF(M86>O86,"〇","×"))) -> 〇 | O85: =CONCATENATE(N78,$A85) -> G4G3 | Y85: =COUNTIF($E85:$N85,"〇") -> 3 | Z85: =COUNTIF($E85:$N85,"×") -> 0 | AA85: =COUNTIF($E85:$N85,"△") -> 0 | AB85: =Y85*2+AA85 -> 6 | AC85: =IF(G86="","",D86+G86+M86+J86) -> 26 | AD85: =IF(AC85="","",AB85*100+AC85) -> 626 | AE85: =IF(AC85="","",F86+I86+L86+O86) -> 6 | AF85: =IF(AD85="","",RANK(AD85,AD81:AD88,0)) -> 1 | AH85: =CONCATENATE(A79,AF85) -> G1 | AI85: =B85 -> 鵜川フェニックスジュニア
D86: =IF(L82="","",L82) -> 8 | E86: - | F86: =IF(J82="","",J82) -> 0 | G86: =IF(L84="","",L84) -> 9 | H86: - | I86: =IF(J84="","",J84) -> 4 | M86: =VLOOKUP(M85,対戦表!$AG:$AH,2,0) -> 9 | N86: - | O86: =VLOOKUP(O85,対戦表!$AG:$AH,2,0) -> 2
A87: =CONCATENATE(A79,4) -> G4 | B87: =VLOOKUP(A87,チーム表!C:D,2,FALSE) -> 大門ドッジボールクラブJr | E87: =IF(D88="","",IF(D88=F88,"△",IF(D88>F88,"〇","×"))) -> 〇 | H87: =IF(G88="","",IF(G88=I88,"△",IF(G88>I88,"〇","×"))) -> × | K87: =IF(J88="","",IF(J88=L88,"△",IF(J88>L88,"〇","×"))) -> × | Y87: =COUNTIF($E87:$N87,"〇") -> 1 | Z87: =COUNTIF($E87:$N87,"×") -> 2 | AA87: =COUNTIF($E87:$N87,"△") -> 0 | AB87: =Y87*2+AA87 -> 2 | AC87: =IF(G88="","",D88+G88+M88+J88) -> 10 | AD87: =IF(AC87="","",AB87*100+AC87) -> 210 | AE87: =IF(AC87="","",F88+I88+L88+O88) -> 18 | AF87: =IF(AD87="","",RANK(AD87,AD81:AD88,0)) -> 3 | AH87: =CONCATENATE(A79,AF87) -> G3 | AI87: =B87 -> 大門ドッジボールクラブJr
D88: =IF(O82="","",O82) -> 4 | E88: - | F88: =IF(M82="","",M82) -> 3 | G88: =IF(O84="","",O84) -> 4 | H88: - | I88: =IF(M84="","",M84) -> 6 | J88: =IF(O86="","",O86) -> 2 | K88: - | L88: =IF(M86="","",M86) -> 9
E90: =CONCATENATE(A91,"1") -> H1 | H90: =CONCATENATE(A91,"2") -> H2 | K90: =CONCATENATE(A91,"3") -> H3 | N90: =CONCATENATE(A91,"4") -> H4
A91: H | B91: チーム名 | D91: =B93 -> 呉羽DBCジュニア | G91: =B95 -> NISHI Jrスターズ | J91: =B97 -> 寺井クラブＪｒ B | M91: =B99 -> 田上闘球FUTURES | Y91: 勝 | Z91: 負 | AA91: 分 | AB91: 点 | AC91: 内野 | AD91: 順位決定点 | AE91: 相手内野 | AF91: 順位 | AG91: kaku
A93: =CONCATENATE(A91,1) -> H1 | B93: =VLOOKUP(A93,チーム表!C:D,2,FALSE) -> 呉羽DBCジュニア | G93: =CONCATENATE($A93,H90) -> H1H2 | H93: =IF(G94="","",IF(G94=I94,"△",IF(G94>I94,"〇","×"))) -> 〇 | I93: =CONCATENATE(H90,$A93) -> H2H1 | J93: =CONCATENATE($A93,K90) -> H1H3 | K93: =IF(J94="","",IF(J94=L94,"△",IF(J94>L94,"〇","×"))) -> 〇 | L93: =CONCATENATE(K90,$A93) -> H3H1 | M93: =CONCATENATE($A93,N90) -> H1H4 | N93: =IF(M94="","",IF(M94=O94,"△",IF(M94>O94,"〇","×"))) -> × | O93: =CONCATENATE(N90,$A93) -> H4H1 | Y93: =COUNTIF($E93:$N93,"〇") -> 2 | Z93: =COUNTIF($E93:$N93,"×") -> 1 | AA93: =COUNTIF($E93:$N93,"△") -> 0 | AB93: =Y93*2+AA93 -> 4 | AC93: =IF(G94="","",D94+G94+M94+J94) -> 11 | AD93: =IF(AC93="","",AB93*100+AC93) -> 411 | AE93: =IF(AC93="","",F94+I94+L94+O94) -> 12 | AF93: =IF(AD93="","",RANK(AD93,AD93:AD100,0)) -> 2 | AH93: =CONCATENATE(A91,AF93) -> H2 | AI93: =B93 -> 呉羽DBCジュニア
G94: =VLOOKUP(G93,対戦表!$AG:$AH,2,0) -> 3 | H94: - | I94: =VLOOKUP(I93,対戦表!$AG:$AH,2,0) -> 1 | J94: =VLOOKUP(J93,対戦表!$AG:$AH,2,0) -> 6 | K94: - | L94: =VLOOKUP(L93,対戦表!$AG:$AH,2,0) -> 3 | M94: =VLOOKUP(M93,対戦表!$AG:$AH,2,0) -> 2 | N94: - | O94: =VLOOKUP(O93,対戦表!$AG:$AH,2,0) -> 8
A95: =CONCATENATE(A91,2) -> H2 | B95: =VLOOKUP(A95,チーム表!C:D,2,FALSE) -> NISHI Jrスターズ | E95: =IF(D96="","",IF(D96=F96,"△",IF(D96>F96,"〇","×"))) -> × | J95: =CONCATENATE($A95,K90) -> H2H3 | K95: =IF(J96="","",IF(J96=L96,"△",IF(J96>L96,"〇","×"))) -> × | L95: =CONCATENATE(K90,$A95) -> H3H2 | M95: =CONCATENATE($A95,N90) -> H2H4 | N95: =IF(M96="","",IF(M96=O96,"△",IF(M96>O96,"〇","×"))) -> × | O95: =CONCATENATE(N90,$A95) -> H4H2 | Y95: =COUNTIF($E95:$N95,"〇") -> 0 | Z95: =COUNTIF($E95:$N95,"×") -> 3 | AA95: =COUNTIF($E95:$N95,"△") -> 0 | AB95: =Y95*2+AA95 -> 0 | AC95: =IF(D96="","",D96+G96+M96+J96) -> 5 | AD95: =IF(AC95="","",AB95*100+AC95) -> 5 | AE95: =IF(AC95="","",F96+I96+L96+O96) -> 10 | AF95: =IF(AD95="","",RANK(AD95,AD93:AD100,0)) -> 4 | AH95: =CONCATENATE(A91,AF95) -> H4 | AI95: =B95 -> NISHI Jrスターズ
D96: =IF(I94="","",I94) -> 1 | E96: - | F96: =IF(G94="","",G94) -> 3 | J96: =VLOOKUP(J95,対戦表!$AG:$AH,2,0) -> 2 | K96: - | L96: =VLOOKUP(L95,対戦表!$AG:$AH,2,0) -> 3 | M96: =VLOOKUP(M95,対戦表!$AG:$AH,2,0) -> 2 | N96: - | O96: =VLOOKUP(O95,対戦表!$AG:$AH,2,0) -> 4
A97: =CONCATENATE(A91,3) -> H3 | B97: =VLOOKUP(A97,チーム表!C:D,2,FALSE) -> 寺井クラブＪｒ B | E97: =IF(D98="","",IF(D98=F98,"△",IF(D98>F98,"〇","×"))) -> × | H97: =IF(G98="","",IF(G98=I98,"△",IF(G98>I98,"〇","×"))) -> 〇 | M97: =CONCATENATE($A97,N90) -> H3H4 | N97: =IF(M98="","",IF(M98=O98,"△",IF(M98>O98,"〇","×"))) -> × | O97: =CONCATENATE(N90,$A97) -> H4H3 | Y97: =COUNTIF($E97:$N97,"〇") -> 1 | Z97: =COUNTIF($E97:$N97,"×") -> 2 | AA97: =COUNTIF($E97:$N97,"△") -> 0 | AB97: =Y97*2+AA97 -> 2 | AC97: =IF(G98="","",D98+G98+M98+J98) -> 8 | AD97: =IF(AC97="","",AB97*100+AC97) -> 208 | AE97: =IF(AC97="","",F98+I98+L98+O98) -> 16 | AF97: =IF(AD97="","",RANK(AD97,AD93:AD100,0)) -> 3 | AH97: =CONCATENATE(A91,AF97) -> H3 | AI97: =B97 -> 寺井クラブＪｒ B
D98: =IF(L94="","",L94) -> 3 | E98: - | F98: =IF(J94="","",J94) -> 6 | G98: =IF(L96="","",L96) -> 3 | H98: - | I98: =IF(J96="","",J96) -> 2 | M98: =VLOOKUP(M97,対戦表!$AG:$AH,2,0) -> 2 | N98: - | O98: =VLOOKUP(O97,対戦表!$AG:$AH,2,0) -> 8
A99: =CONCATENATE(A91,4) -> H4 | B99: =VLOOKUP(A99,チーム表!C:D,2,FALSE) -> 田上闘球FUTURES | E99: =IF(D100="","",IF(D100=F100,"△",IF(D100>F100,"〇","×"))) -> 〇 | H99: =IF(G100="","",IF(G100=I100,"△",IF(G100>I100,"〇","×"))) -> 〇 | K99: =IF(J100="","",IF(J100=L100,"△",IF(J100>L100,"〇","×"))) -> 〇 | Y99: =COUNTIF($E99:$N99,"〇") -> 3 | Z99: =COUNTIF($E99:$N99,"×") -> 0 | AA99: =COUNTIF($E99:$N99,"△") -> 0 | AB99: =Y99*2+AA99 -> 6 | AC99: =IF(G100="","",D100+G100+M100+J100) -> 20 | AD99: =IF(AC99="","",AB99*100+AC99) -> 620 | AE99: =IF(AC99="","",F100+I100+L100+O100) -> 6 | AF99: =IF(AD99="","",RANK(AD99,AD93:AD100,0)) -> 1 | AH99: =CONCATENATE(A91,AF99) -> H1 | AI99: =B99 -> 田上闘球FUTURES
D100: =IF(O94="","",O94) -> 8 | E100: - | F100: =IF(M94="","",M94) -> 2 | G100: =IF(O96="","",O96) -> 4 | H100: - | I100: =IF(M96="","",M96) -> 2 | J100: =IF(O98="","",O98) -> 8 | K100: - | L100: =IF(M98="","",M98) -> 2

Sheet トーナメント表
B1: レギュラーの部 | H1: 決勝トーナメント
B4: A1 | V4: 優勝 | W4: 松任の大魔陣
A5: Ａ1位 | B5: =VLOOKUP(B4,リーグ戦表!AH:AI,2,0) -> 針原パイレーツ | J5: 8
V6: 準優勝 | W6: 千坂ドッジファイヤーズ | AN6: A1 | AO6: =VLOOKUP(AN6,リーグ戦表!AH:AI,2,0) -> 針原パイレーツ
K7: A⑦ | O7: 6 | AN7: A2 | AO7: =VLOOKUP(AN7,リーグ戦表!AH:AI,2,0) -> 小木クラブ
B8: D2 | V8: ３位 | W8: 針原パイレーツ | AN8: B1 | AO8: =VLOOKUP(AN8,リーグ戦表!AH:AI,2,0) -> 松任の大魔陣
A9: D２位 | B9: =VLOOKUP(B8,リーグ戦表!AH:AI,2,0) -> 寺井クラブ | AN9: B2 | AO9: =VLOOKUP(AN9,リーグ戦表!AH:AI,2,0) -> 千坂ドッジファイヤーズ
J10: 7 | AN10: C1 | AO10: =VLOOKUP(AN10,リーグ戦表!AH:AI,2,0) -> 向本折クラブA
N11: A⑫ | Q11: 5 | R11: 8 | AN11: C2 | AO11: =VLOOKUP(AN11,リーグ戦表!AH:AI,2,0) -> 鵜川ミラクルフェニックス
B12: B2 | AN12: D1 | AO12: =VLOOKUP(AN12,リーグ戦表!AH:AI,2,0) -> 田上闘球DREAMS
A13: B２位 | B13: =VLOOKUP(B12,リーグ戦表!AH:AI,2,0) -> 千坂ドッジファイヤーズ | J13: 10 | AN13: D2 | AO13: =VLOOKUP(AN13,リーグ戦表!AH:AI,2,0) -> 寺井クラブ
K15: A⑧
B16: C1 | O16: 9 | U16: 優 勝
A17: C１位 | B17: =VLOOKUP(B16,リーグ戦表!AH:AI,2,0) -> 向本折クラブA
J18: 4 | Q18: A⑬ | V18: 松任の大魔陣
B20: D1
A21: D１位 | B21: =VLOOKUP(B20,リーグ戦表!AH:AI,2,0) -> 田上闘球DREAMS | J21: 8
K23: B⑦ | O23: 8
B24: A2
A25: A２位 | B25: =VLOOKUP(B24,リーグ戦表!AH:AI,2,0) -> 小木クラブ
J26: 10
N27: B⑫
B28: C2 | Q28: 10 | R28: 9
A29: C２位 | B29: =VLOOKUP(B28,リーグ戦表!AH:AI,2,0) -> 鵜川ミラクルフェニックス | J29: 8 | K29: 7
K31: B⑧
B32: B1 | O32: 9
A33: Ｂ1位 | B33: =VLOOKUP(B32,リーグ戦表!AH:AI,2,0) -> 松任の大魔陣
J34: 8 | K34: 8
J37: 針原パイレーツ | P37: 9 | V37: ３位
Q39: B⑬ | V39: 針原パイレーツ
J41: 小木クラブ
P42: 4
C45: 交流トーナメント
B47: A3
A48: A３位 | B48: =VLOOKUP(B47,リーグ戦表!AH:AI,2,0) -> NISHIファイヤースターズ | J48: 10
AN49: A1 | AO49: =VLOOKUP(AN49,リーグ戦表!AH:AI,2,0) -> 針原パイレーツ
M50: A④ | Q50: 10 | V50: 敢闘賞 | W50: 呉羽ドッジボールクラブ | AN50: A2 | AO50: =VLOOKUP(AN50,リーグ戦表!AH:AI,2,0) -> 小木クラブ
B51: D4 | AN51: B1 | AO51: =VLOOKUP(AN51,リーグ戦表!AH:AI,2,0) -> 松任の大魔陣
A52: D４位 | B52: =VLOOKUP(B51,リーグ戦表!AH:AI,2,0) -> 大門ドッジボールクラブ | AN52: B2 | AO52: =VLOOKUP(AN52,リーグ戦表!AH:AI,2,0) -> 千坂ドッジファイヤーズ
J53: 5 | AN53: C1 | AO53: =VLOOKUP(AN53,リーグ戦表!AH:AI,2,0) -> 向本折クラブA
AN54: C2 | AO54: =VLOOKUP(AN54,リーグ戦表!AH:AI,2,0) -> 鵜川ミラクルフェニックス
B55: C3 | P55: A⑨ | T55: 5 | AN55: D1 | AO55: =VLOOKUP(AN55,リーグ戦表!AH:AI,2,0) -> 田上闘球DREAMS
A56: C3位 | B56: =VLOOKUP(B55,リーグ戦表!AH:AI,2,0) -> 光陽マーリンズ | N56: 5 | AN56: D2 | AO56: =VLOOKUP(AN56,リーグ戦表!AH:AI,2,0) -> 寺井クラブ
B59: B4 | M59: A⑤
A60: B4位 | B60: =VLOOKUP(B59,リーグ戦表!AH:AI,2,0) -> 鳳至ドッジボールクラブ | J60: 10 | Q60: 4
W61: 敢闘賞
J62: A③
B63: D5 | N63: 7
A64: D５位 | B64: =VLOOKUP(B63,リーグ戦表!AH:AI,2,0) -> 三馬パワフル | S64: B⑪ | W64: 呉羽ドッジボールクラブ
J65: 3
B67: D3
A68: D３位 | B68: =VLOOKUP(B67,リーグ戦表!AH:AI,2,0) -> 飯野マジックス | J68: 8
M70: B④ | Q70: 8
B71: A4
A72: A４位 | B72: =VLOOKUP(B71,リーグ戦表!AH:AI,2,0) -> 鞍月アタッカーズ
J73: 9
P74: B⑨
B75: C4 | T75: 9
A76: C４位 | B76: =VLOOKUP(B75,リーグ戦表!AH:AI,2,0) -> 中郷ドッジボールクラブ | J76: 1
M78: B⑤
B79: B3 | Q79: 9
A80: B３位 | B80: =VLOOKUP(B79,リーグ戦表!AH:AI,2,0) -> 呉羽ドッジボールクラブ
J81: 9
C85: ジュニアの部 決勝トーナメント
B86: E1 | V86: 優勝 | W86: 鵜川フェニックスジュニア
A87: E１位 | B87: =VLOOKUP(B86,リーグ戦表!AH:AI,2,0) -> 鞍月アタッカーズジュニア | J87: 7
V88: 準優勝 | W88: 松任の大魔陣Jr. | AN88: A1 | AO88: =VLOOKUP(AN88,リーグ戦表!AH:AI,2,0) -> 針原パイレーツ
K89: A① | N89: 6 | O89: 5 | AN89: A2 | AO89: =VLOOKUP(AN89,リーグ戦表!AH:AI,2,0) -> 小木クラブ
B90: H2 | V90: ３位 | W90: 鞍月アタッカーズジュニア | AN90: B1 | AO90: =VLOOKUP(AN90,リーグ戦表!AH:AI,2,0) -> 松任の大魔陣
A91: H２位 | B91: =VLOOKUP(B90,リーグ戦表!AH:AI,2,0) -> 呉羽DBCジュニア | AN91: B2 | AO91: =VLOOKUP(AN91,リーグ戦表!AH:AI,2,0) -> 千坂ドッジファイヤーズ
J92: 0 | AN92: C1 | AO92: =VLOOKUP(AN92,リーグ戦表!AH:AI,2,0) -> 向本折クラブA
N93: A⑥ | R93: 9 | AN93: C2 | AO93: =VLOOKUP(AN93,リーグ戦表!AH:AI,2,0) -> 鵜川ミラクルフェニックス
B94: F2 | AN94: D1 | AO94: =VLOOKUP(AN94,リーグ戦表!AH:AI,2,0) -> 田上闘球DREAMS
A95: F２位 | B95: =VLOOKUP(B94,リーグ戦表!AH:AI,2,0) -> 向本折クラブNew | J95: 0 | AN95: D2 | AO95: =VLOOKUP(AN95,リーグ戦表!AH:AI,2,0) -> 寺井クラブ
K97: A②
B98: G1 | N98: 6 | O98: 6 | V98: 優 勝
A99: G１位 | B99: =VLOOKUP(B98,リーグ戦表!AH:AI,2,0) -> 鵜川フェニックスジュニア
J100: 9 | Q100: B⑩ | V100: 鵜川フェニックスジュニア
B102: H1
A103: H１位 | B103: =VLOOKUP(B102,リーグ戦表!AH:AI,2,0) -> 田上闘球FUTURES | J103: 5
K105: B① | O105: 4
B106: E2
A107: E２位 | B107: =VLOOKUP(B106,リーグ戦表!AH:AI,2,0) -> 鳳至ジュニア
J108: 1
N109: B⑥
B110: G2 | R110: 3
A111: G２位 | B111: =VLOOKUP(B110,リーグ戦表!AH:AI,2,0) -> 松任の大魔陣Jr. | J111: 7
K113: B②
B114: F1 | O114: 5
A115: F１位 | B115: =VLOOKUP(B114,リーグ戦表!AH:AI,2,0) -> 九十九クラブ
J116: 4
J119: 鞍月アタッカーズジュニア | P119: 6 | V119: ３ 位
Q121: A⑩ | V121: 鞍月アタッカーズジュニア
J123: 田上闘球FUTURES
P124: 1

Sheet 優秀選手
B1: 第２０回 加賀地域少年少女ドッジボール大会優秀選手
B3: 番号 | C3: ﾌﾞﾛｯｸ | D3: チ ー ム 名 | E3: 氏名 | F3: ふりがな | G3: 学年 | H3: 性別
B4: =チーム表!B4 -> 1 | C4: =チーム表!C4 -> A1 | D4: =チーム表!D4 -> 鞍月アタッカーズ
B5: =チーム表!B5 -> 2 | C5: =チーム表!C5 -> A2 | D5: =チーム表!D5 -> 針原パイレーツ | E5: 深井 良映 | F5: ふかいりょうえい | G5: 6 | H5: 女
B6: =チーム表!B6 -> 3 | C6: =チーム表!C6 -> A3 | D6: =チーム表!D6 -> 小木クラブ | E6: 谷口 拓矢 | F6: たにぐち たくや | G6: 4 | H6: 男
B7: =チーム表!B7 -> 4 | C7: =チーム表!C7 -> A4 | D7: =チーム表!D7 -> NISHIファイヤースターズ
B8: =チーム表!B8 -> 5 | C8: =チーム表!C8 -> B1 | D8: =チーム表!D8 -> 呉羽ドッジボールクラブ
B9: =チーム表!B9 -> 6 | C9: =チーム表!C9 -> B2 | D9: =チーム表!D9 -> 鳳至ドッジボールクラブ
B10: =チーム表!B10 -> 7 | C10: =チーム表!C10 -> B3 | D10: =チーム表!D10 -> 千坂ドッジファイヤーズ | E10: 森田 陸斗 | F10: もりた りくと | G10: 6 | H10: 男
B11: =チーム表!B11 -> 8 | C11: =チーム表!C11 -> B4 | D11: =チーム表!D11 -> 松任の大魔陣 | E11: 佐藤 圭太 | F11: さとう けいた | G11: 5 | H11: 男
B12: =チーム表!B12 -> 9 | C12: =チーム表!C12 -> C1 | D12: =チーム表!D12 -> 光陽マーリンズ
B13: =チーム表!B13 -> 10 | C13: =チーム表!C13 -> C2 | D13: =チーム表!D13 -> 中郷ドッジボールクラブ
B14: =チーム表!B14 -> 11 | C14: =チーム表!C14 -> C3 | D14: =チーム表!D14 -> 鵜川ミラクルフェニックス
B15: =チーム表!B15 -> 12 | C15: =チーム表!C15 -> C4 | D15: =チーム表!D15 -> 向本折クラブA
B16: =チーム表!B16 -> 13 | C16: =チーム表!C16 -> D1 | D16: =チーム表!D16 -> 飯野マジックス
B17: =チーム表!B17 -> 14 | C17: =チーム表!C17 -> D2 | D17: =チーム表!D17 -> 三馬パワフル
B18: =チーム表!B18 -> 15 | C18: =チーム表!C18 -> D3 | D18: =チーム表!D18 -> 寺井クラブ
B19: =チーム表!B19 -> 16 | C19: =チーム表!C19 -> D4 | D19: =チーム表!D19 -> 大門ドッジボールクラブ
B20: =チーム表!B20 -> 17 | C20: =チーム表!C20 -> D5 | D20: =チーム表!D20 -> 田上闘球DREAMS
B21: =チーム表!B21 -> Jr1 | C21: =チーム表!C21 -> E1 | D21: =チーム表!D21 -> 鞍月アタッカーズジュニア | E21: 竹松 蓮介 | F21: たけまつれんすけ | G21: 2 | H21: 男
B22: =チーム表!B22 -> Jr2 | C22: =チーム表!C22 -> E2 | D22: =チーム表!D22 -> 鳳至ジュニア
B23: =チーム表!B23 -> Jr3 | C23: =チーム表!C23 -> E3 | D23: =チーム表!D23 -> 中郷ミラクルジュニア
B24: =チーム表!B24 -> Jr4 | C24: =チーム表!C24 -> E4 | D24: =チーム表!D24 -> ドッジの王子様
B25: =チーム表!B25 -> Jr5 | C25: =チーム表!C25 -> F1 | D25: =チーム表!D25 -> 九十九クラブ
B26: =チーム表!B26 -> Jr6 | C26: =チーム表!C26 -> F2 | D26: =チーム表!D26 -> 千坂ロータスルート
B27: =チーム表!B27 -> Jr7 | C27: =チーム表!C27 -> F3 | D27: =チーム表!D27 -> 向本折クラブNew
B28: =チーム表!B28 -> Jr8 | C28: =チーム表!C28 -> F4 | D28: =チーム表!D28 -> 寺井クラブＪｒ A
B29: =チーム表!B29 -> Jr9 | C29: =チーム表!C29 -> G1 | D29: =チーム表!D29 -> 鞍月アタッカーズキッズ
B30: =チーム表!B30 -> Jr10 | C30: =チーム表!C30 -> G2 | D30: =チーム表!D30 -> 松任の大魔陣Jr. | E30: 類家 楓 | F30: るいけ かえで | G30: 3 | H30: 男
B31: =チーム表!B31 -> Jr11 | C31: =チーム表!C31 -> G3 | D31: =チーム表!D31 -> 鵜川フェニックスジュニア | E31: 崎山 伊吹 | F31: さきやま いぶき | G31: 4 | H31: 男
B32: =チーム表!B32 -> Jr12 | C32: =チーム表!C32 -> G4 | D32: =チーム表!D32 -> 大門ドッジボールクラブJr
B33: =チーム表!B33 -> Jr13 | C33: =チーム表!C33 -> H1 | D33: =チーム表!D33 -> 呉羽DBCジュニア
B34: =チーム表!B34 -> Jr14 | C34: =チーム表!C34 -> H2 | D34: =チーム表!D34 -> NISHI Jrスターズ
B35: =チーム表!B35 -> Jr15 | C35: =チーム表!C35 -> H3 | D35: =チーム表!D35 -> 寺井クラブＪｒ B
B36: =チーム表!B36 -> Jr16 | C36: =チーム表!C36 -> H4 | D36: =チーム表!D36 -> 田上闘球FUTURES | E36: 関野 伽音 | F36: せきの かおん | G36: 4 | H36: 男
B37: 一5 | C37: G5 | D37: 魔陣一家 | F37: 由水 伸弥
B38: 女１ | C38: H1 | D38: 鞍月マミーズ | F38: 廣岡 俊和
B39: 女２ | C39: H2 | D39: NISHIヤングスターズ | F39: 足滝 信雄
B40: 女３ | C40: H3 | D40: 山中Oba | F40: 中田 勝博
B41: 女４ | C41: H4 | D41: 田上闘球HAPPYS | F41: 盛一 純平
B42: 女５ | C42: I1 | D42: チーム新米ママ | F42: 山田 ユカ子
B43: 女６ | C43: I2 | D43: 千坂Ｍファイヤーズ | F43: 下野 高広
B44: 女７ | C44: I3 | D44: 寺井Ｐ．P♪ | F44: 山田 幸嗣
B45: 女８ | C45: I4 | D45: 魔舞陣 | F45: 由水 伸弥

Sheet DATA1
B70: 14チーム
U71: A1
A72: 1 | U72: A2
U73: B1 | V73: =VLOOKUP(U71,リーグ戦表!AH:AI,2,0) -> 針原パイレーツ
U74: B2 | V74: =VLOOKUP(U72,リーグ戦表!AH:AI,2,0) -> 小木クラブ
U75: C1 | V75: =VLOOKUP(U73,リーグ戦表!AH:AI,2,0) -> 松任の大魔陣
U76: C2 | V76: =VLOOKUP(U74,リーグ戦表!AH:AI,2,0) -> 千坂ドッジファイヤーズ
U77: D1 | V77: =VLOOKUP(U75,リーグ戦表!AH:AI,2,0) -> 向本折クラブA
A78: 2 | U78: D2 | V78: =VLOOKUP(U76,リーグ戦表!AH:AI,2,0) -> 鵜川ミラクルフェニックス
V79: =VLOOKUP(U77,リーグ戦表!AH:AI,2,0) -> 田上闘球DREAMS
V80: =VLOOKUP(U78,リーグ戦表!AH:AI,2,0) -> 寺井クラブ
A82: 3
A86: 4
A90: 5
A94: 6
A98: 7
Y99: 優勝
A102: 8
A106: 9
A110: 10
A114: 11
U116: E1
U117: E2
A118: 12 | U118: F1 | V118: =VLOOKUP(U116,リーグ戦表!AH:AI,2,0) -> 鞍月アタッカーズジュニア
U119: F2 | V119: =VLOOKUP(U117,リーグ戦表!AH:AI,2,0) -> 鳳至ジュニア
U120: G1 | V120: =VLOOKUP(U118,リーグ戦表!AH:AI,2,0) -> 九十九クラブ
U121: G2 | V121: =VLOOKUP(U119,リーグ戦表!AH:AI,2,0) -> 向本折クラブNew
A122: 13 | V122: =VLOOKUP(U120,リーグ戦表!AH:AI,2,0) -> 鵜川フェニックスジュニア
V123: =VLOOKUP(U121,リーグ戦表!AH:AI,2,0) -> 松任の大魔陣Jr.
A128: 14
B138: 12チーム
U139: A1
A140: 1 | U140: A2
U141: B1 | V141: =VLOOKUP(U139,リーグ戦表!AH:AI,2,0) -> 針原パイレーツ
U142: B2 | V142: =VLOOKUP(U140,リーグ戦表!AH:AI,2,0) -> 小木クラブ
U143: C1 | V143: =VLOOKUP(U141,リーグ戦表!AH:AI,2,0) -> 松任の大魔陣
U144: C2 | V144: =VLOOKUP(U142,リーグ戦表!AH:AI,2,0) -> 千坂ドッジファイヤーズ
U145: D1 | V145: =VLOOKUP(U143,リーグ戦表!AH:AI,2,0) -> 向本折クラブA
U146: D2 | V146: =VLOOKUP(U144,リーグ戦表!AH:AI,2,0) -> 鵜川ミラクルフェニックス
V147: =VLOOKUP(U145,リーグ戦表!AH:AI,2,0) -> 田上闘球DREAMS
A148: 2 | V148: =VLOOKUP(U146,リーグ戦表!AH:AI,2,0) -> 寺井クラブ
A154: 3
A158: 4
A162: 5
A166: 6
Y167: 優勝
A170: 7
A174: 8
A178: 9
A182: 10
U184: E1
U185: E2
U186: F1 | V186: =VLOOKUP(U184,リーグ戦表!AH:AI,2,0) -> 鞍月アタッカーズジュニア
U187: F2 | V187: =VLOOKUP(U185,リーグ戦表!AH:AI,2,0) -> 鳳至ジュニア
A188: 11 | V188: =VLOOKUP(U186,リーグ戦表!AH:AI,2,0) -> 九十九クラブ
V189: =VLOOKUP(U187,リーグ戦表!AH:AI,2,0) -> 向本折クラブNew
A196: 12
B206: 10チーム
U211: A1
A212: 1 | U212: A2
U213: B1 | V213: =VLOOKUP(U211,リーグ戦表!AH:AI,2,0) -> 針原パイレーツ
U214: B2 | V214: =VLOOKUP(U212,リーグ戦表!AH:AI,2,0) -> 小木クラブ
V215: =VLOOKUP(U213,リーグ戦表!AH:AI,2,0) -> 松任の大魔陣
V216: =VLOOKUP(U214,リーグ戦表!AH:AI,2,0) -> 千坂ドッジファイヤーズ
A222: 2
A226: 3
A230: 4
A234: 5
Y235: 優勝
A238: 6
A242: 7
A246: 8
A250: 9
U252: C1
U253: C2
U254: D1 | V254: =VLOOKUP(U252,リーグ戦表!AH:AI,2,0) -> 向本折クラブA
U255: D2 | V255: =VLOOKUP(U253,リーグ戦表!AH:AI,2,0) -> 鵜川ミラクルフェニックス
U256: E1 | V256: =VLOOKUP(U254,リーグ戦表!AH:AI,2,0) -> 田上闘球DREAMS
U257: E2 | V257: =VLOOKUP(U255,リーグ戦表!AH:AI,2,0) -> 寺井クラブ
V258: =VLOOKUP(U256,リーグ戦表!AH:AI,2,0) -> 鞍月アタッカーズジュニア
V259: =VLOOKUP(U257,リーグ戦表!AH:AI,2,0) -> 鳳至ジュニア
A260: 10
B274: 8チーム
U275: A1
A276: 1 | U276: A2
U277: B1 | V277: =VLOOKUP(U275,リーグ戦表!AH:AI,2,0) -> 針原パイレーツ
U278: B2 | V278: =VLOOKUP(U276,リーグ戦表!AH:AI,2,0) -> 小木クラブ
U279: C1 | V279: =VLOOKUP(U277,リーグ戦表!AH:AI,2,0) -> 松任の大魔陣
A280: 2 | U280: C2 | V280: =VLOOKUP(U278,リーグ戦表!AH:AI,2,0) -> 千坂ドッジファイヤーズ
U281: D1 | V281: =VLOOKUP(U279,リーグ戦表!AH:AI,2,0) -> 向本折クラブA
U282: D2 | V282: =VLOOKUP(U280,リーグ戦表!AH:AI,2,0) -> 鵜川ミラクルフェニックス
V283: =VLOOKUP(U281,リーグ戦表!AH:AI,2,0) -> 田上闘球DREAMS
A284: 3 | V284: =VLOOKUP(U282,リーグ戦表!AH:AI,2,0) -> 寺井クラブ
A288: 4 | V288: 優勝
A292: 5
A296: 6
A300: 7
A304: 8
B309: 6チーム
U310: A1
A311: 1 | U311: A2
U312: B1 | V312: =VLOOKUP(U310,リーグ戦表!AH:AI,2,0) -> 針原パイレーツ
U313: B2 | V313: =VLOOKUP(U311,リーグ戦表!AH:AI,2,0) -> 小木クラブ
U314: C1 | V314: =VLOOKUP(U312,リーグ戦表!AH:AI,2,0) -> 松任の大魔陣
U315: C2 | V315: =VLOOKUP(U313,リーグ戦表!AH:AI,2,0) -> 千坂ドッジファイヤーズ
V316: =VLOOKUP(U314,リーグ戦表!AH:AI,2,0) -> 向本折クラブA
A317: 2 | V317: =VLOOKUP(U315,リーグ戦表!AH:AI,2,0) -> 鵜川ミラクルフェニックス
A321: 3 | V321: 優勝
A325: 4
A329: 5
A335: 6
B342: 4チーム
A344: 1
A348: 2 | S348: 優勝
A352: 3
A356: 4
B359: 2チーム
A361: 1
Q362: 優勝
A365: 2

Sheet DATA
AB5: 点 | AC5: 内野 | AD5: 順位決定点 | AE5: 相手内野 | AF5: 順位 | AG5: kaku
AB7: =Y7*2+AA7 -> 0 | AC7: =IF(G8="","",D8+G8+M8+P8+J8+S8+V8) ->  | AD7: =IF(AC7="","",AB7*100+AC7) ->  | AE7: =IF(AC7="","",F8+I8+L8+O8+R8+U8+X8) ->  | AF7: =IF(AD7="","",RANK(AD7,AD7:AD20,0)) ->  | AH7: =CONCATENATE(A5,AF7) ->  | AI7: =B7 -> 0 | AK7: =CONCATENATE(A$5,AF7) ->  | AL7: =$B7 -> 0
AK8: =CONCATENATE(A$5,AF8) ->  | AL8: =$B8 -> 0
AB9: =Y9*2+AA9 -> 0 | AC9: =IF(D10="","",D10+G10+M10+P10+J10+S10+V10) ->  | AD9: =IF(AC9="","",AB9*100+AC9) ->  | AE9: =IF(AC9="","",F10+I10+L10+O10+R10+U10+X10) ->  | AF9: =IF(AD9="","",RANK(AD9,AD7:AD20,0)) ->  | AH9: =CONCATENATE(A5,AF9) ->  | AI9: =B9 -> 0 | AL9: 0
AL10: 0
AB11: =Y11*2+AA11 -> 0 | AC11: =IF(D12="","",D12+G12+M12+P12+J12+S12+V12) ->  | AD11: =IF(AC11="","",AB11*100+AC11) ->  | AE11: =IF(AC11="","",F12+I12+L12+O12+R12+U12+X12) ->  | AF11: =IF(AD11="","",RANK(AD11,AD7:AD20,0)) ->  | AH11: =CONCATENATE(A5,AF11) ->  | AI11: =B11 -> 0 | AL11: 0
AL12: 0
AB13: =Y13*2+AA13 -> 0 | AC13: =IF(D14="","",D14+G14+M14+P14+J14+S14+V14) ->  | AD13: =IF(AC13="","",AB13*100+AC13) ->  | AE13: =IF(AC13="","",F14+I14+L14+O14+R14+U14+X14) ->  | AF13: =IF(AD13="","",RANK(AD13,AD7:AD20,0)) ->  | AH13: =CONCATENATE(A5,AF13) ->  | AI13: =B13 -> 0 | AL13: 0
AL14: 0
AB15: =Y15*2+AA15 -> 0 | AC15: =IF(D16="","",D16+G16+M16+P16+J16+S16+V16) ->  | AD15: =IF(AC15="","",AB15*100+AC15) ->  | AE15: =IF(AC15="","",F16+I16+L16+O16+R16+U16+X16) ->  | AF15: =IF(AD15="","",RANK(AD15,AD7:AD20,0)) ->  | AH15: =CONCATENATE(A5,AF15) ->  | AI15: =B15 -> 0 | AL15: 0
AL16: 0
AB17: =Y17*2+AA17 -> 0 | AC17: =IF(D18="","",D18+G18+M18+P18+J18+S18+V18) ->  | AD17: =IF(AC17="","",AB17*100+AC17) ->  | AE17: =IF(AC17="","",F18+I18+L18+O18+R18+U18+X18) ->  | AF17: =IF(AD17="","",RANK(AD17,AD7:AD20,0)) ->  | AH17: =CONCATENATE(A5,AF17) ->  | AI17: =B17 -> 0 | AL17: 0
AL18: 0
AB19: =Y19*2+AA19 -> 0 | AC19: =IF(D20="","",D20+G20+M20+P20+J20+S20+V20) ->  | AD19: =IF(AC19="","",AB19*100+AC19) ->  | AE19: =IF(AC19="","",F20+I20+L20+O20+R20+U20+X20) ->  | AF19: =IF(AD19="","",RANK(AD19,AD7:AD20,0)) ->  | AH19: =CONCATENATE(A5,AF19) ->  | AI19: =B19 -> 0 | AL19: 0
AL20: 0
AB24: 点 | AC24: 内野 | AD24: 順位決定点 | AE24: 相手内野 | AF24: 順位 | AG24: kaku
AB26: =Y26*2+AA26 -> 0 | AC26: =IF(G27="","",D27+G27+M27+P27+J27+S27) ->  | AD26: =IF(AC26="","",AB26*100+AC26) ->  | AE26: =IF(AC26="","",F27+I27+L27+O27+R27+U27) ->  | AF26: =IF(AD26="","",RANK(AD26,AD26:AD37,0)) ->  | AH26: =CONCATENATE(A24,AF26) ->  | AI26: =B26 -> 0 | AK26: =CONCATENATE(A$5,AF26) ->  | AL26: =$B26 -> 0
AK27: =CONCATENATE(A$5,AF27) ->  | AL27: =$B27 -> 0
AB28: =Y28*2+AA28 -> 0 | AC28: =IF(D29="","",D29+G29+M29+P29+J29+S29) ->  | AD28: =IF(AC28="","",AB28*100+AC28) ->  | AE28: =IF(AC28="","",F29+I29+L29+O29+R29+U29) ->  | AF28: =IF(AD28="","",RANK(AD28,AD26:AD37,0)) ->  | AH28: =CONCATENATE(A24,AF28) ->  | AI28: =B28 -> 0 | AL28: 0
AL29: 0
AB30: =Y30*2+AA30 -> 0 | AC30: =IF(G31="","",D31+G31+M31+P31+J31+S31) ->  | AD30: =IF(AC30="","",AB30*100+AC30) ->  | AE30: =IF(AC30="","",F31+I31+L31+O31+R31+U31) ->  | AF30: =IF(AD30="","",RANK(AD30,AD26:AD37,0)) ->  | AH30: =CONCATENATE(A24,AF30) ->  | AI30: =B30 -> 0 | AL30: 0
AL31: 0
AB32: =Y32*2+AA32 -> 0 | AC32: =IF(G33="","",D33+G33+M33+P33+J33+S33) ->  | AD32: =IF(AC32="","",AB32*100+AC32) ->  | AE32: =IF(AC32="","",F33+I33+L33+O33+R33+U33) ->  | AF32: =IF(AD32="","",RANK(AD32,AD26:AD37,0)) ->  | AH32: =CONCATENATE(A24,AF32) ->  | AI32: =B32 -> 0 | AL32: 0
AL33: 0
AB34: =Y34*2+AA34 -> 0 | AC34: =IF(G35="","",D35+G35+M35+P35+J35+S35) ->  | AD34: =IF(AC34="","",AB34*100+AC34) ->  | AE34: =IF(AC34="","",F35+I35+L35+O35+R35+U35) ->  | AF34: =IF(AD34="","",RANK(AD34,AD26:AD37,0)) ->  | AH34: =CONCATENATE(A24,AF34) ->  | AI34: =B34 -> 0 | AL34: 0
AH35: =CONCATENATE($A$5,AF35) ->  | AL35: 0
AB36: =Y36*2+AA36 -> 0 | AC36: =IF(G37="","",D37+G37+M37+P37+J37+S37) ->  | AD36: =IF(AC36="","",AB36*100+AC36) ->  | AE36: =IF(AC36="","",F37+I37+L37+O37+R37+U37) ->  | AF36: =IF(AD36="","",RANK(AD36,AD26:AD37,0)) ->  | AH36: =CONCATENATE(A24,AF36) ->  | AI36: =B36 -> 0 | AL36: 0
AL37: 0
AB41: 点 | AC41: 内野 | AD41: 順位決定点 | AE41: 相手内野 | AF41: 順位 | AG41: kaku
AB43: =Y43*2+AA43 -> 0 | AC43: =IF(G44="","",D44+G44+M44+P44+J44) ->  | AD43: =IF(AC43="","",AB43*100+AC43) ->  | AE43: =IF(AC43="","",F44+I44+L44+O44+R44) ->  | AF43: =IF(AD43="","",RANK(AD43,AD43:AD52,0)) ->  | AH43: =CONCATENATE(A41,AF43) ->  | AI43: =B43 -> 0 | AK43: =CONCATENATE(A$5,AF43) ->  | AL43: =$B43 -> 0
AK44: =CONCATENATE(A$5,AF44) ->  | AL44: =$B44 -> 0
AB45: =Y45*2+AA45 -> 0 | AC45: =IF(D46="","",D46+G46+M46+P46+J46) ->  | AD45: =IF(AC45="","",AB45*100+AC45) ->  | AE45: =IF(AC45="","",F46+I46+L46+O46+R46) ->  | AF45: =IF(AD45="","",RANK(AD45,AD43:AD52,0)) ->  | AH45: =CONCATENATE(A41,AF45) ->  | AI45: =B45 -> 0 | AL45: 0
AL46: 0
AB47: =Y47*2+AA47 -> 0 | AC47: =IF(G48="","",D48+G48+M48+P48+J48) ->  | AD47: =IF(AC47="","",AB47*100+AC47) ->  | AE47: =IF(AC47="","",F48+I48+L48+O48+R48) ->  | AF47: =IF(AD47="","",RANK(AD47,AD43:AD52,0)) ->  | AH47: =CONCATENATE(A41,AF47) ->  | AI47: =B47 -> 0 | AL47: 0
AL48: 0
AB49: =Y49*2+AA49 -> 0 | AC49: =IF(G50="","",D50+G50+M50+P50+J50) ->  | AD49: =IF(AC49="","",AB49*100+AC49) ->  | AE49: =IF(AC49="","",F50+I50+L50+O50+R50) ->  | AF49: =IF(AD49="","",RANK(AD49,AD43:AD52,0)) ->  | AH49: =CONCATENATE(A41,AF49) ->  | AI49: =B49 -> 0 | AL49: 0
AL50: 0
AB51: =Y51*2+AA51 -> 0 | AC51: =IF(G52="","",D52+G52+M52+P52+J52) ->  | AD51: =IF(AC51="","",AB51*100+AC51) ->  | AE51: =IF(AC51="","",F52+I52+L52+O52+R52) ->  | AF51: =IF(AD51="","",RANK(AD51,AD43:AD52,0)) ->  | AH51: =CONCATENATE(A41,AF51) ->  | AI51: =B51 -> 0 | AL51: 0
AL52: 0
AB56: 点 | AC56: 内野 | AD56: 順位決定点 | AE56: 相手内野 | AF56: 順位 | AG56: kaku
AB58: =Y58*2+AA58 -> 0 | AC58: =IF(G59="","",D59+G59+M59+J59) ->  | AD58: =IF(AC58="","",AB58*100+AC58) ->  | AE58: =IF(AC58="","",F59+I59+L59+O59) ->  | AF58: =IF(AD58="","",RANK(AD58,AD58:AD65,0)) ->  | AH58: =CONCATENATE(A56,AF58) ->  | AI58: =B58 -> 0 | AK58: =CONCATENATE(A$5,AF58) ->  | AL58: =$B58 -> 0
AK59: =CONCATENATE(A$5,AF59) ->  | AL59: =$B59 -> 0
AB60: =Y60*2+AA60 -> 0 | AC60: =IF(D61="","",D61+G61+M61+J61) ->  | AD60: =IF(AC60="","",AB60*100+AC60) ->  | AE60: =IF(AC60="","",F61+I61+L61+O61) ->  | AF60: =IF(AD60="","",RANK(AD60,AD58:AD65,0)) ->  | AH60: =CONCATENATE(A56,AF60) ->  | AI60: =B60 -> 0 | AL60: 0
AL61: 0
AB62: =Y62*2+AA62 -> 0 | AC62: =IF(G63="","",D63+G63+M63+J63) ->  | AD62: =IF(AC62="","",AB62*100+AC62) ->  | AE62: =IF(AC62="","",F63+I63+L63+O63) ->  | AF62: =IF(AD62="","",RANK(AD62,AD58:AD65,0)) ->  | AH62: =CONCATENATE(A56,AF62) ->  | AI62: =B62 -> 0 | AL62: 0
AL63: 0
AB64: =Y64*2+AA64 -> 0 | AC64: =IF(G65="","",D65+G65+M65+J65) ->  | AD64: =IF(AC64="","",AB64*100+AC64) ->  | AE64: =IF(AC64="","",F65+I65+L65+O65) ->  | AF64: =IF(AD64="","",RANK(AD64,AD58:AD65,0)) ->  | AH64: =CONCATENATE(A56,AF64) ->  | AI64: =B64 -> 0 | AL64: 0
AL65: 0
AB69: 点 | AC69: 内野 | AD69: 順位決定点 | AE69: 相手内野 | AF69: 順位 | AG69: kaku
AB71: =Y71*2+AA71 -> 0 | AC71: =IF(G72="","",D72+G72+J72) ->  | AD71: =IF(AC71="","",AB71*100+AC71) ->  | AE71: =IF(AC71="","",F72+I72+L72) ->  | AF71: =IF(AD71="","",RANK(AD71,AD71:AD76,0)) ->  | AH71: =CONCATENATE(A69,AF71) ->  | AI71: =B71 -> 0 | AK71: =CONCATENATE(A$5,AF71) ->  | AL71: =$B71 -> 0
AL72: 0
AB73: =Y73*2+AA73 -> 0 | AC73: =IF(D74="","",D74+G74+J74) ->  | AD73: =IF(AC73="","",AB73*100+AC73) ->  | AE73: =IF(AC73="","",F74+I74+L74) ->  | AF73: =IF(AD73="","",RANK(AD73,AD71:AD76,0)) ->  | AH73: =CONCATENATE(A69,AF73) ->  | AI73: =B73 -> 0 | AL73: 0
AL74: 0
AB75: =Y75*2+AA75 -> 0 | AC75: =IF(G76="","",D76+G76+J76) ->  | AD75: =IF(AC75="","",AB75*100+AC75) ->  | AE75: =IF(AC75="","",F76+I76+L76) ->  | AF75: =IF(AD75="","",RANK(AD75,AD71:AD76,0)) ->  | AH75: =CONCATENATE(A69,AF75) ->  | AI75: =B75 -> 0 | AL75: 0
AL76: 0

Sheet 対戦表1

Sheet Sheet1

Sheet 対戦表2
K1: =チーム表!$B$1 -> 第２０回 加賀地域少年少女ドッジボール大会
A3: 試合スケジュール
B5: 時間 | E5: 点 | F5: Ａコート | J5: 点 | K5: Ａコート | O5: 点 | P5: Ｂコート | T5: 点 | U5: Ｂコート
A6: 1 | C6: =組合表!AG4 -> D1 | D6: =CONCATENATE(C6,H6) -> D1D2 | F6: =VLOOKUP(C6,チーム表!C:D,2,FALSE) -> 飯野マジックス | G6: × | H6: =組合表!AH4 -> D2 | I6: =CONCATENATE(H6,C6) -> D2D1 | K6: =VLOOKUP(H6,チーム表!C:D,2,FALSE) -> 三馬パワフル | M6: =組合表!AI4 -> A1 | N6: =CONCATENATE(M6,R6) -> A1A2 | P6: =VLOOKUP(M6,チーム表!C:D,2,FALSE) -> 鞍月アタッカーズ | Q6: × | R6: =組合表!AJ4 -> A2 | S6: =CONCATENATE(R6,M6) -> A2A1 | U6: =VLOOKUP(R6,チーム表!C:D,2,FALSE) -> 針原パイレーツ | AG6: =D6 -> D1D2 | AH6: =IF(E6="","",E6) -> 
A7: 2 | C7: =組合表!AG5 -> B1 | D7: =CONCATENATE(C7,H7) -> B1B2 | F7: =VLOOKUP(C7,チーム表!C:D,2,FALSE) -> 呉羽ドッジボールクラブ | G7: × | H7: =組合表!AH5 -> B2 | I7: =CONCATENATE(H7,C7) -> B2B1 | K7: =VLOOKUP(H7,チーム表!C:D,2,FALSE) -> 鳳至ドッジボールクラブ | M7: =組合表!AI5 -> C1 | N7: =CONCATENATE(M7,R7) -> C1C2 | P7: =VLOOKUP(M7,チーム表!C:D,2,FALSE) -> 光陽マーリンズ | Q7: × | R7: =組合表!AJ5 -> C2 | S7: =CONCATENATE(R7,M7) -> C2C1 | U7: =VLOOKUP(R7,チーム表!C:D,2,FALSE) -> 中郷ドッジボールクラブ | AG7: B1B2 | AH7: =IF(E7="","",E7) -> 
A8: 3 | C8: =組合表!AG6 -> E1 | D8: E1E2 | F8: =VLOOKUP(C8,チーム表!C:D,2,FALSE) -> 鞍月アタッカーズジュニア | G8: × | H8: =組合表!AH6 -> E2 | I8: E2E1 | K8: =VLOOKUP(H8,チーム表!C:D,2,FALSE) -> 鳳至ジュニア | M8: =組合表!AI6 -> F1 | N8: F1F2 | P8: =VLOOKUP(M8,チーム表!C:D,2,FALSE) -> 九十九クラブ | Q8: × | R8: =組合表!AJ6 -> F2 | S8: F2F1 | U8: =VLOOKUP(R8,チーム表!C:D,2,FALSE) -> 千坂ロータスルート | AG8: E1E2
A9: 4 | C9: =組合表!AG7 -> G1 | D9: G1G2 | F9: =VLOOKUP(C9,チーム表!C:D,2,FALSE) -> 鞍月アタッカーズキッズ | G9: × | H9: =組合表!AH7 -> G2 | I9: G2G1 | K9: =VLOOKUP(H9,チーム表!C:D,2,FALSE) -> 松任の大魔陣Jr. | M9: =組合表!AI7 -> H1 | N9: H1H2 | P9: =VLOOKUP(M9,チーム表!C:D,2,FALSE) -> 呉羽DBCジュニア | Q9: × | R9: =組合表!AJ7 -> H2 | S9: H2H1 | U9: =VLOOKUP(R9,チーム表!C:D,2,FALSE) -> NISHI Jrスターズ | AG9: G1G2
A10: 5 | C10: =組合表!AG8 -> D3 | D10: D3D4 | F10: =VLOOKUP(C10,チーム表!C:D,2,FALSE) -> 寺井クラブ | G10: × | H10: =組合表!AH8 -> D4 | I10: D4D3 | K10: =VLOOKUP(H10,チーム表!C:D,2,FALSE) -> 大門ドッジボールクラブ | M10: =組合表!AI8 -> A3 | N10: A3A4 | P10: =VLOOKUP(M10,チーム表!C:D,2,FALSE) -> 小木クラブ | Q10: × | R10: =組合表!AJ8 -> A4 | S10: A4A3 | U10: =VLOOKUP(R10,チーム表!C:D,2,FALSE) -> NISHIファイヤースターズ | AG10: D3D4
A11: 6 | C11: =組合表!AG9 -> B3 | D11: B3B4 | F11: =VLOOKUP(C11,チーム表!C:D,2,FALSE) -> 千坂ドッジファイヤーズ | G11: × | H11: =組合表!AH9 -> B4 | I11: B4B3 | K11: =VLOOKUP(H11,チーム表!C:D,2,FALSE) -> 松任の大魔陣 | M11: =組合表!AI9 -> C3 | N11: C3C4 | P11: =VLOOKUP(M11,チーム表!C:D,2,FALSE) -> 鵜川ミラクルフェニックス | Q11: × | R11: =組合表!AJ9 -> C4 | S11: C4C3 | U11: =VLOOKUP(R11,チーム表!C:D,2,FALSE) -> 向本折クラブA | AG11: B3B4
A12: 7 | C12: =組合表!AG10 -> E3 | D12: E3E4 | F12: =VLOOKUP(C12,チーム表!C:D,2,FALSE) -> 中郷ミラクルジュニア | G12: × | H12: =組合表!AH10 -> E4 | I12: E4E3 | K12: =VLOOKUP(H12,チーム表!C:D,2,FALSE) -> ドッジの王子様 | M12: =組合表!AI10 -> F3 | N12: F3F4 | P12: =VLOOKUP(M12,チーム表!C:D,2,FALSE) -> 向本折クラブNew | Q12: × | R12: =組合表!AJ10 -> F4 | S12: F4F3 | U12: =VLOOKUP(R12,チーム表!C:D,2,FALSE) -> 寺井クラブＪｒ A | AG12: E3E4
A13: 8 | C13: =組合表!AG11 -> G3 | D13: G3G4 | F13: =VLOOKUP(C13,チーム表!C:D,2,FALSE) -> 鵜川フェニックスジュニア | G13: × | H13: =組合表!AH11 -> G4 | I13: G4G3 | K13: =VLOOKUP(H13,チーム表!C:D,2,FALSE) -> 大門ドッジボールクラブJr | M13: =組合表!AI11 -> H3 | N13: H3H4 | P13: =VLOOKUP(M13,チーム表!C:D,2,FALSE) -> 寺井クラブＪｒ B | Q13: × | R13: =組合表!AJ11 -> H4 | S13: H4H3 | U13: =VLOOKUP(R13,チーム表!C:D,2,FALSE) -> 田上闘球FUTURES | AG13: G3G4
A14: 9 | C14: =組合表!AG12 -> D1 | D14: D1D5 | F14: =VLOOKUP(C14,チーム表!C:D,2,FALSE) -> 飯野マジックス | G14: × | H14: =組合表!AH12 -> D5 | I14: D5D1 | K14: =VLOOKUP(H14,チーム表!C:D,2,FALSE) -> 田上闘球DREAMS | M14: =組合表!AI12 -> A2 | N14: A2A3 | P14: =VLOOKUP(M14,チーム表!C:D,2,FALSE) -> 針原パイレーツ | Q14: × | R14: =組合表!AJ12 -> A3 | S14: A3A2 | U14: =VLOOKUP(R14,チーム表!C:D,2,FALSE) -> 小木クラブ | AG14: D1D5
A15: 10 | C15: =組合表!AG13 -> B2 | D15: B2B3 | F15: =VLOOKUP(C15,チーム表!C:D,2,FALSE) -> 鳳至ドッジボールクラブ | G15: × | H15: =組合表!AH13 -> B3 | I15: B3B2 | K15: =VLOOKUP(H15,チーム表!C:D,2,FALSE) -> 千坂ドッジファイヤーズ | M15: =組合表!AI13 -> C2 | N15: C2C3 | P15: =VLOOKUP(M15,チーム表!C:D,2,FALSE) -> 中郷ドッジボールクラブ | Q15: × | R15: =組合表!AJ13 -> C3 | S15: C3C2 | U15: =VLOOKUP(R15,チーム表!C:D,2,FALSE) -> 鵜川ミラクルフェニックス | AG15: B2B3
A16: 11 | C16: =組合表!AG14 -> E2 | D16: E2E3 | F16: =VLOOKUP(C16,チーム表!C:D,2,FALSE) -> 鳳至ジュニア | G16: × | H16: =組合表!AH14 -> E3 | I16: E3E2 | K16: =VLOOKUP(H16,チーム表!C:D,2,FALSE) -> 中郷ミラクルジュニア | M16: =組合表!AI14 -> F2 | N16: F2F3 | P16: =VLOOKUP(M16,チーム表!C:D,2,FALSE) -> 千坂ロータスルート | Q16: × | R16: =組合表!AJ14 -> F3 | S16: F3F2 | U16: =VLOOKUP(R16,チーム表!C:D,2,FALSE) -> 向本折クラブNew | AG16: E2E3
A17: 12 | C17: =組合表!AG15 -> G2 | D17: G2G3 | F17: =VLOOKUP(C17,チーム表!C:D,2,FALSE) -> 松任の大魔陣Jr. | G17: × | H17: =組合表!AH15 -> G3 | I17: G3G2 | K17: =VLOOKUP(H17,チーム表!C:D,2,FALSE) -> 鵜川フェニックスジュニア | M17: =組合表!AI15 -> H2 | N17: H2H3 | P17: =VLOOKUP(M17,チーム表!C:D,2,FALSE) -> NISHI Jrスターズ | Q17: × | R17: =組合表!AJ15 -> H3 | S17: H3H2 | U17: =VLOOKUP(R17,チーム表!C:D,2,FALSE) -> 寺井クラブＪｒ B | AG17: G2G3
A18: 13 | C18: =組合表!AG16 -> D2 | D18: D2D3 | F18: =VLOOKUP(C18,チーム表!C:D,2,FALSE) -> 三馬パワフル | G18: × | H18: =組合表!AH16 -> D3 | I18: D3D2 | K18: =VLOOKUP(H18,チーム表!C:D,2,FALSE) -> 寺井クラブ | M18: =組合表!AI16 -> A1 | N18: A1A4 | P18: =VLOOKUP(M18,チーム表!C:D,2,FALSE) -> 鞍月アタッカーズ | Q18: × | R18: =組合表!AJ16 -> A4 | S18: A4A1 | U18: =VLOOKUP(R18,チーム表!C:D,2,FALSE) -> NISHIファイヤースターズ | AG18: D2D3
A19: 14 | C19: =組合表!AG17 -> B1 | D19: B1B4 | F19: =VLOOKUP(C19,チーム表!C:D,2,FALSE) -> 呉羽ドッジボールクラブ | G19: × | H19: =組合表!AH17 -> B4 | I19: B4B1 | K19: =VLOOKUP(H19,チーム表!C:D,2,FALSE) -> 松任の大魔陣 | M19: =組合表!AI17 -> C1 | N19: C1C4 | P19: =VLOOKUP(M19,チーム表!C:D,2,FALSE) -> 光陽マーリンズ | Q19: × | R19: =組合表!AJ17 -> C4 | S19: C4C1 | U19: =VLOOKUP(R19,チーム表!C:D,2,FALSE) -> 向本折クラブA | AG19: B1B4
A20: 15 | C20: =組合表!AG18 -> E1 | D20: E1E4 | F20: =VLOOKUP(C20,チーム表!C:D,2,FALSE) -> 鞍月アタッカーズジュニア | G20: × | H20: =組合表!AH18 -> E4 | I20: E4E1 | K20: =VLOOKUP(H20,チーム表!C:D,2,FALSE) -> ドッジの王子様 | M20: =組合表!AI18 -> F1 | N20: F1F4 | P20: =VLOOKUP(M20,チーム表!C:D,2,FALSE) -> 九十九クラブ | Q20: × | R20: =組合表!AJ18 -> F4 | S20: F4F1 | U20: =VLOOKUP(R20,チーム表!C:D,2,FALSE) -> 寺井クラブＪｒ A | AG20: E1E4
A21: 16 | C21: =組合表!AG19 -> G1 | D21: G1G4 | F21: =VLOOKUP(C21,チーム表!C:D,2,FALSE) -> 鞍月アタッカーズキッズ | G21: × | H21: =組合表!AH19 -> G4 | I21: G4G1 | K21: =VLOOKUP(H21,チーム表!C:D,2,FALSE) -> 大門ドッジボールクラブJr | M21: =組合表!AI19 -> H1 | N21: H1H4 | P21: =VLOOKUP(M21,チーム表!C:D,2,FALSE) -> 呉羽DBCジュニア | Q21: × | R21: =組合表!AJ19 -> H4 | S21: H4H1 | U21: =VLOOKUP(R21,チーム表!C:D,2,FALSE) -> 田上闘球FUTURES | AG21: G1G4
A22: 17 | C22: =組合表!AG20 -> D4 | D22: D4D5 | F22: =VLOOKUP(C22,チーム表!C:D,2,FALSE) -> 大門ドッジボールクラブ | G22: × | H22: =組合表!AH20 -> D5 | I22: D5D4 | K22: =VLOOKUP(H22,チーム表!C:D,2,FALSE) -> 田上闘球DREAMS | M22: =組合表!AI20 -> A1 | N22: A1A3 | P22: =VLOOKUP(M22,チーム表!C:D,2,FALSE) -> 鞍月アタッカーズ | Q22: × | R22: =組合表!AJ20 -> A3 | S22: A3A1 | U22: =VLOOKUP(R22,チーム表!C:D,2,FALSE) -> 小木クラブ | AG22: D4D5
A23: 18 | C23: =組合表!AG21 -> B1 | D23: B1B3 | F23: =VLOOKUP(C23,チーム表!C:D,2,FALSE) -> 呉羽ドッジボールクラブ | G23: × | H23: =組合表!AH21 -> B3 | I23: B3B1 | K23: =VLOOKUP(H23,チーム表!C:D,2,FALSE) -> 千坂ドッジファイヤーズ | M23: =組合表!AI21 -> C1 | N23: C1C3 | P23: =VLOOKUP(M23,チーム表!C:D,2,FALSE) -> 光陽マーリンズ | Q23: × | R23: =組合表!AJ21 -> C3 | S23: C3C1 | U23: =VLOOKUP(R23,チーム表!C:D,2,FALSE) -> 鵜川ミラクルフェニックス | AG23: B1B3
A24: 19 | C24: =組合表!AG22 -> E1 | D24: E1E3 | F24: =VLOOKUP(C24,チーム表!C:D,2,FALSE) -> 鞍月アタッカーズジュニア | G24: × | H24: =組合表!AH22 -> E3 | I24: E3E1 | K24: =VLOOKUP(H24,チーム表!C:D,2,FALSE) -> 中郷ミラクルジュニア | M24: =組合表!AI22 -> F1 | N24: F1F3 | P24: =VLOOKUP(M24,チーム表!C:D,2,FALSE) -> 九十九クラブ | Q24: × | R24: =組合表!AJ22 -> F3 | S24: F3F1 | U24: =VLOOKUP(R24,チーム表!C:D,2,FALSE) -> 向本折クラブNew | AG24: E1E3
A25: 20 | C25: =組合表!AG23 -> G1 | D25: G1G3 | F25: =VLOOKUP(C25,チーム表!C:D,2,FALSE) -> 鞍月アタッカーズキッズ | G25: × | H25: =組合表!AH23 -> G3 | I25: G3G1 | K25: =VLOOKUP(H25,チーム表!C:D,2,FALSE) -> 鵜川フェニックスジュニア | M25: =組合表!AI23 -> H1 | N25: H1H3 | P25: =VLOOKUP(M25,チーム表!C:D,2,FALSE) -> 呉羽DBCジュニア | Q25: × | R25: =組合表!AJ23 -> H3 | S25: H3H1 | U25: =VLOOKUP(R25,チーム表!C:D,2,FALSE) -> 寺井クラブＪｒ B | AG25: G1G3
A26: 21 | C26: =組合表!AG24 -> D1 | D26: D1D4 | F26: =VLOOKUP(C26,チーム表!C:D,2,FALSE) -> 飯野マジックス | G26: × | H26: =組合表!AH24 -> D4 | I26: D4D1 | K26: =VLOOKUP(H26,チーム表!C:D,2,FALSE) -> 大門ドッジボールクラブ | M26: =組合表!AI24 -> A2 | N26: A2A4 | P26: =VLOOKUP(M26,チーム表!C:D,2,FALSE) -> 針原パイレーツ | Q26: × | R26: =組合表!AJ24 -> A4 | S26: A4A2 | U26: =VLOOKUP(R26,チーム表!C:D,2,FALSE) -> NISHIファイヤースターズ | AG26: D1D4
A27: 22 | C27: =組合表!AG25 -> B2 | D27: B2B4 | F27: =VLOOKUP(C27,チーム表!C:D,2,FALSE) -> 鳳至ドッジボールクラブ | G27: × | H27: =組合表!AH25 -> B4 | I27: B4B2 | K27: =VLOOKUP(H27,チーム表!C:D,2,FALSE) -> 松任の大魔陣 | M27: =組合表!AI25 -> C2 | N27: C2C4 | P27: =VLOOKUP(M27,チーム表!C:D,2,FALSE) -> 中郷ドッジボールクラブ | Q27: × | R27: =組合表!AJ25 -> C4 | S27: C4C2 | U27: =VLOOKUP(R27,チーム表!C:D,2,FALSE) -> 向本折クラブA | AG27: B2B4
A28: 23 | C28: =組合表!AG26 -> E2 | D28: E2E4 | F28: =VLOOKUP(C28,チーム表!C:D,2,FALSE) -> 鳳至ジュニア | G28: × | H28: =組合表!AH26 -> E4 | I28: E4E2 | K28: =VLOOKUP(H28,チーム表!C:D,2,FALSE) -> ドッジの王子様 | M28: =組合表!AI26 -> F2 | N28: F2F4 | P28: =VLOOKUP(M28,チーム表!C:D,2,FALSE) -> 千坂ロータスルート | Q28: × | R28: =組合表!AJ26 -> F4 | S28: F4F2 | U28: =VLOOKUP(R28,チーム表!C:D,2,FALSE) -> 寺井クラブＪｒ A | AG28: E2E4
A29: 24 | C29: =組合表!AG27 -> G2 | D29: G2G4 | F29: =VLOOKUP(C29,チーム表!C:D,2,FALSE) -> 松任の大魔陣Jr. | G29: × | H29: =組合表!AH27 -> G4 | I29: G4G2 | K29: =VLOOKUP(H29,チーム表!C:D,2,FALSE) -> 大門ドッジボールクラブJr | M29: =組合表!AI27 -> H2 | N29: H2H4 | P29: =VLOOKUP(M29,チーム表!C:D,2,FALSE) -> NISHI Jrスターズ | Q29: × | R29: =組合表!AJ27 -> H4 | S29: H4H2 | U29: =VLOOKUP(R29,チーム表!C:D,2,FALSE) -> 田上闘球FUTURES | AG29: G2G4
A30: 25 | C30: =組合表!AG28 -> D2 | D30: D2D5 | F30: =VLOOKUP(C30,チーム表!C:D,2,FALSE) -> 三馬パワフル | G30: × | H30: =組合表!AH28 -> D5 | I30: D5D2 | K30: =VLOOKUP(H30,チーム表!C:D,2,FALSE) -> 田上闘球DREAMS | M30: =組合表!AI28 -> D1 | N30: D1D3 | P30: =VLOOKUP(M30,チーム表!C:D,2,FALSE) -> 飯野マジックス | Q30: × | R30: =組合表!AJ28 -> D3 | S30: D3D1 | U30: =VLOOKUP(R30,チーム表!C:D,2,FALSE) -> 寺井クラブ | AG30: D2D5
A31: 26 | C31: =組合表!AG29 -> D2 | D31: D2D4 | F31: =VLOOKUP(C31,チーム表!C:D,2,FALSE) -> 三馬パワフル | G31: × | H31: =組合表!AH29 -> D4 | I31: D4D2 | K31: =VLOOKUP(H31,チーム表!C:D,2,FALSE) -> 大門ドッジボールクラブ | M31: =組合表!AI29 -> D3 | N31: D3D5 | P31: =VLOOKUP(M31,チーム表!C:D,2,FALSE) -> 寺井クラブ | Q31: × | R31: =組合表!AJ29 -> D5 | S31: D5D3 | U31: =VLOOKUP(R31,チーム表!C:D,2,FALSE) -> 田上闘球DREAMS | AG31: D2D4
A32: 27 | C32: =組合表!AG30 ->  | F32: =VLOOKUP(C32,チーム表!C:D,2,FALSE) ->  | G32: × | H32: =組合表!AH30 ->  | K32: =VLOOKUP(H32,チーム表!C:D,2,FALSE) ->  | M32: =組合表!AI30 ->  | P32: =VLOOKUP(M32,チーム表!C:D,2,FALSE) ->  | Q32: × | R32: =組合表!AJ30 ->  | U32: =VLOOKUP(R32,チーム表!C:D,2,FALSE) -> 
A33: 28 | C33: =組合表!AG31 ->  | F33: =VLOOKUP(C33,チーム表!C:D,2,FALSE) ->  | G33: × | H33: =組合表!AH31 ->  | K33: =VLOOKUP(H33,チーム表!C:D,2,FALSE) ->  | M33: =組合表!AI31 ->  | P33: =VLOOKUP(M33,チーム表!C:D,2,FALSE) ->  | Q33: × | R33: =組合表!AJ31 ->  | U33: =VLOOKUP(R33,チーム表!C:D,2,FALSE) -> 
A34: 29 | C34: =組合表!AG32 ->  | F34: =VLOOKUP(C34,チーム表!C:D,2,FALSE) ->  | G34: × | H34: =組合表!AH32 ->  | K34: =VLOOKUP(H34,チーム表!C:D,2,FALSE) ->  | M34: =組合表!AI32 ->  | P34: =VLOOKUP(M34,チーム表!C:D,2,FALSE) ->  | Q34: × | R34: =組合表!AJ32 ->  | U34: =VLOOKUP(R34,チーム表!C:D,2,FALSE) -> 
A35: 30 | C35: =組合表!AG33 ->  | F35: =VLOOKUP(C35,チーム表!C:D,2,FALSE) ->  | G35: × | H35: =組合表!AH33 ->  | K35: =VLOOKUP(H35,チーム表!C:D,2,FALSE) ->  | M35: =組合表!AI33 ->  | P35: =VLOOKUP(M35,チーム表!C:D,2,FALSE) ->  | Q35: × | R35: =組合表!AJ33 ->  | U35: =VLOOKUP(R35,チーム表!C:D,2,FALSE) -> 
A36: 31 | C36: =組合表!AG34 ->  | F36: =VLOOKUP(C36,チーム表!C:D,2,FALSE) ->  | G36: × | H36: =組合表!AH34 ->  | K36: =VLOOKUP(H36,チーム表!C:D,2,FALSE) ->  | M36: =組合表!AI34 ->  | P36: =VLOOKUP(M36,チーム表!C:D,2,FALSE) ->  | Q36: × | R36: =組合表!AJ34 ->  | U36: =VLOOKUP(R36,チーム表!C:D,2,FALSE) -> 
A37: 32 | C37: =組合表!AG35 ->  | F37: =VLOOKUP(C37,チーム表!C:D,2,FALSE) ->  | G37: × | H37: =組合表!AH35 ->  | K37: =VLOOKUP(H37,チーム表!C:D,2,FALSE) ->  | M37: =組合表!AI35 ->  | P37: =VLOOKUP(M37,チーム表!C:D,2,FALSE) ->  | Q37: × | R37: =組合表!AJ35 ->  | U37: =VLOOKUP(R37,チーム表!C:D,2,FALSE) -> 
A38: 33 | C38: =組合表!AG36 ->  | F38: =VLOOKUP(C38,チーム表!C:D,2,FALSE) ->  | G38: × | H38: =組合表!AH36 ->  | K38: =VLOOKUP(H38,チーム表!C:D,2,FALSE) ->  | M38: =組合表!AI36 ->  | P38: =VLOOKUP(M38,チーム表!C:D,2,FALSE) ->  | Q38: × | R38: =組合表!AJ36 ->  | U38: =VLOOKUP(R38,チーム表!C:D,2,FALSE) -> 
A39: 34 | C39: =組合表!AG37 ->  | D39: =CONCATENATE(C39,H39) ->  | F39: =VLOOKUP(C39,チーム表!C:D,2,FALSE) ->  | G39: × | H39: =組合表!AH37 ->  | I39: =CONCATENATE(H39,C39) ->  | K39: =VLOOKUP(H39,チーム表!C:D,2,FALSE) ->  | M39: =組合表!AI37 ->  | N39: =CONCATENATE(M39,R39) ->  | P39: =VLOOKUP(M39,チーム表!C:D,2,FALSE) ->  | Q39: × | R39: =組合表!AJ37 ->  | S39: =CONCATENATE(R39,M39) ->  | U39: =VLOOKUP(R39,チーム表!C:D,2,FALSE) -> 
A40: 35 | C40: =組合表!AG38 ->  | D40: =CONCATENATE(C40,H40) ->  | F40: =VLOOKUP(C40,チーム表!C:D,2,FALSE) ->  | G40: × | H40: =組合表!AH38 ->  | I40: =CONCATENATE(H40,C40) ->  | K40: =VLOOKUP(H40,チーム表!C:D,2,FALSE) ->  | M40: =組合表!AI38 ->  | N40: =CONCATENATE(M40,R40) ->  | P40: =VLOOKUP(M40,チーム表!C:D,2,FALSE) ->  | Q40: × | R40: =組合表!AJ38 ->  | S40: =CONCATENATE(R40,M40) ->  | U40: =VLOOKUP(R40,チーム表!C:D,2,FALSE) -> 
A41: 36 | C41: =組合表!AG39 ->  | D41: =CONCATENATE(C41,H41) ->  | F41: =VLOOKUP(C41,チーム表!C:D,2,FALSE) ->  | G41: × | H41: =組合表!AH39 ->  | I41: =CONCATENATE(H41,C41) ->  | K41: =VLOOKUP(H41,チーム表!C:D,2,FALSE) ->  | M41: =組合表!AI39 ->  | N41: =CONCATENATE(M41,R41) ->  | P41: =VLOOKUP(M41,チーム表!C:D,2,FALSE) ->  | Q41: × | R41: =組合表!AJ39 ->  | S41: =CONCATENATE(R41,M41) ->  | U41: =VLOOKUP(R41,チーム表!C:D,2,FALSE) -> 
A42: 37 | C42: =組合表!AG40 ->  | F42: =VLOOKUP(C42,チーム表!C:D,2,FALSE) ->  | G42: × | H42: =組合表!AH40 ->  | K42: =VLOOKUP(H42,チーム表!C:D,2,FALSE) ->  | M42: =組合表!AI40 ->  | P42: =VLOOKUP(M42,チーム表!C:D,2,FALSE) ->  | Q42: × | R42: =組合表!AJ40 ->  | U42: =VLOOKUP(R42,チーム表!C:D,2,FALSE) -> 
A43: 38 | C43: =組合表!AG41 ->  | F43: =VLOOKUP(C43,チーム表!C:D,2,FALSE) ->  | G43: × | H43: =組合表!AH41 ->  | K43: =VLOOKUP(H43,チーム表!C:D,2,FALSE) ->  | M43: =組合表!AI41 ->  | P43: =VLOOKUP(M43,チーム表!C:D,2,FALSE) ->  | Q43: × | R43: =組合表!AJ41 ->  | U43: =VLOOKUP(R43,チーム表!C:D,2,FALSE) -> 
A44: 39 | C44: =組合表!AG42 ->  | F44: =VLOOKUP(C44,チーム表!C:D,2,FALSE) ->  | G44: × | H44: =組合表!AH42 ->  | K44: =VLOOKUP(H44,チーム表!C:D,2,FALSE) ->  | M44: =組合表!AI42 ->  | P44: =VLOOKUP(M44,チーム表!C:D,2,FALSE) ->  | Q44: × | R44: =組合表!AJ42 ->  | U44: =VLOOKUP(R44,チーム表!C:D,2,FALSE) -> 
A45: 40 | C45: =組合表!AG43 ->  | F45: =VLOOKUP(C45,チーム表!C:D,2,FALSE) ->  | G45: × | H45: =組合表!AH43 ->  | K45: =VLOOKUP(H45,チーム表!C:D,2,FALSE) ->  | M45: =組合表!AI43 ->  | P45: =VLOOKUP(M45,チーム表!C:D,2,FALSE) ->  | Q45: × | R45: =組合表!AJ43 ->  | U45: =VLOOKUP(R45,チーム表!C:D,2,FALSE) -> 
A46: 41 | C46: 1 | AG46: =I6 -> D2D1 | AH46: =IF(J6="","",J6) -> 
A47: 42 | C47: 2 | AG47: B2B1 | AH47: =IF(J7="","",J7) -> 
A48: 43 | C48: 3 | AG48: E2E1
A49: 44 | C49: 4 | AG49: G2G1
A50: 45 | C50: 5 | AG50: D4D3
A51: 46 | C51: 6 | AG51: B4B3
A52: 47 | C52: 7 | AG52: E4E3
A53: 48 | C53: 8 | AG53: G4G3
A54: 49 | C54: 9 | AG54: D5D1
A55: 50 | C55: 10 | AG55: B3B2
AG56: E3E2
AG57: G3G2
AG58: D3D2
AG59: B4B1
AG60: E4E1
AG61: G4G1
AG62: D5D4
AG63: B3B1
AG64: E3E1
AG65: G3G1
AG66: D4D1
AG67: B4B2
AG68: E4E2
AG69: G4G2
AG70: D5D2
AG71: D4D2
AG86: =N6 -> A1A2 | AH86: =IF(O6="","",O6) -> 
AG87: C1C2 | AH87: =IF(O7="","",O7) -> 
AG88: F1F2
AG89: H1H2
AG90: A3A4
AG91: C3C4
AG92: F3F4
AG93: H3H4
AG94: A2A3
AG95: C2C3
AG96: F2F3
AG97: H2H3
AG98: A1A4
AG99: C1C4
AG100: F1F4
AG101: H1H4
AG102: A1A3
AG103: C1C3
AG104: F1F3
AG105: H1H3
AG106: A2A4
AG107: C2C4
AG108: F2F4
AG109: H2H4
AG110: D1D3
AG111: D3D5
AG126: =S6 -> A2A1 | AH126: =IF(T6="","",T6) -> 
AG127: C2C1 | AH127: =IF(T7="","",T7) -> 
AG128: F2F1
AG129: H2H1
AG130: A4A3
AG131: C4C3
AG132: F4F3
AG133: H4H3
AG134: A3A2
AG135: C3C2
AG136: F3F2
AG137: H3H2
AG138: A4A1
AG139: C4C1
AG140: F4F1
AG141: H4H1
AG142: A3A1
AG143: C3C1
AG144: F3F1
AG145: H3H1
AG146: A4A2
AG147: C4C2
AG148: F4F2
AG149: H4H2
AG150: D3D1
AG151: D5D3

Sheet 対戦表3
P1: =チーム表!$B$1 -> 第２０回 加賀地域少年少女ドッジボール大会
A3: 試合スケジュール
B5: 時間 | E5: 点 | F5: Ａコート | J5: 点 | K5: Ａコート | O5: 点 | P5: Ｂコート | T5: 点 | U5: Ｂコート | Y5: 点 | Z5: Ｃコート | AD5: 点 | AE5: Ｃコート
A6: 1 | C6: =組合表!AG4 -> D1 | D6: =CONCATENATE(C6,H6) -> D1D2 | F6: =VLOOKUP(C6,チーム表!C:D,2,FALSE) -> 飯野マジックス | G6: × | H6: =組合表!AH4 -> D2 | I6: =CONCATENATE(H6,C6) -> D2D1 | K6: =VLOOKUP(H6,チーム表!C:D,2,FALSE) -> 三馬パワフル | M6: =組合表!AI4 -> A1 | N6: =CONCATENATE(M6,R6) -> A1A2 | P6: =VLOOKUP(M6,チーム表!C:D,2,FALSE) -> 鞍月アタッカーズ | Q6: × | R6: =組合表!AJ4 -> A2 | S6: =CONCATENATE(R6,M6) -> A2A1 | U6: =VLOOKUP(R6,チーム表!C:D,2,FALSE) -> 針原パイレーツ | W6: =組合表!AK4 ->  | X6: =CONCATENATE(W6,AB6) ->  | Z6: =VLOOKUP(W6,チーム表!C:D,2,FALSE) ->  | AA6: =Q6 -> × | AB6: =組合表!AL4 ->  | AC6: =CONCATENATE(AB6,W6) ->  | AE6: =VLOOKUP(AB6,チーム表!C:D,2,FALSE) ->  | AG6: =D6 -> D1D2 | AH6: =IF(E6="","",E6) -> 
A7: 2 | C7: =組合表!AG5 -> B1 | D7: =CONCATENATE(C7,H7) -> B1B2 | F7: =VLOOKUP(C7,チーム表!C:D,2,FALSE) -> 呉羽ドッジボールクラブ | G7: × | H7: =組合表!AH5 -> B2 | I7: =CONCATENATE(H7,C7) -> B2B1 | K7: =VLOOKUP(H7,チーム表!C:D,2,FALSE) -> 鳳至ドッジボールクラブ | M7: =組合表!AI5 -> C1 | N7: =CONCATENATE(M7,R7) -> C1C2 | P7: =VLOOKUP(M7,チーム表!C:D,2,FALSE) -> 光陽マーリンズ | Q7: × | R7: =組合表!AJ5 -> C2 | S7: =CONCATENATE(R7,M7) -> C2C1 | U7: =VLOOKUP(R7,チーム表!C:D,2,FALSE) -> 中郷ドッジボールクラブ | W7: =組合表!AK5 ->  | X7: =CONCATENATE(W7,AB7) ->  | Z7: =VLOOKUP(W7,チーム表!C:D,2,FALSE) ->  | AA7: × | AB7: =組合表!AL5 ->  | AC7: =CONCATENATE(AB7,W7) ->  | AE7: =VLOOKUP(AB7,チーム表!C:D,2,FALSE) ->  | AG7: B1B2 | AH7: =IF(E7="","",E7) -> 
A8: 3 | C8: =組合表!AG6 -> E1 | D8: E1E2 | F8: =VLOOKUP(C8,チーム表!C:D,2,FALSE) -> 鞍月アタッカーズジュニア | G8: × | H8: =組合表!AH6 -> E2 | I8: E2E1 | K8: =VLOOKUP(H8,チーム表!C:D,2,FALSE) -> 鳳至ジュニア | M8: =組合表!AI6 -> F1 | N8: F1F2 | P8: =VLOOKUP(M8,チーム表!C:D,2,FALSE) -> 九十九クラブ | Q8: × | R8: =組合表!AJ6 -> F2 | S8: F2F1 | U8: =VLOOKUP(R8,チーム表!C:D,2,FALSE) -> 千坂ロータスルート | W8: =組合表!AK6 ->  | Z8: =VLOOKUP(W8,チーム表!C:D,2,FALSE) ->  | AA8: × | AB8: =組合表!AL6 ->  | AE8: =VLOOKUP(AB8,チーム表!C:D,2,FALSE) ->  | AG8: E1E2
A9: 4 | C9: =組合表!AG7 -> G1 | D9: G1G2 | F9: =VLOOKUP(C9,チーム表!C:D,2,FALSE) -> 鞍月アタッカーズキッズ | G9: × | H9: =組合表!AH7 -> G2 | I9: G2G1 | K9: =VLOOKUP(H9,チーム表!C:D,2,FALSE) -> 松任の大魔陣Jr. | M9: =組合表!AI7 -> H1 | N9: H1H2 | P9: =VLOOKUP(M9,チーム表!C:D,2,FALSE) -> 呉羽DBCジュニア | Q9: × | R9: =組合表!AJ7 -> H2 | S9: H2H1 | U9: =VLOOKUP(R9,チーム表!C:D,2,FALSE) -> NISHI Jrスターズ | W9: =組合表!AK7 ->  | Z9: =VLOOKUP(W9,チーム表!C:D,2,FALSE) ->  | AA9: × | AB9: =組合表!AL7 ->  | AE9: =VLOOKUP(AB9,チーム表!C:D,2,FALSE) ->  | AG9: G1G2
A10: 5 | C10: =組合表!AG8 -> D3 | D10: D3D4 | F10: =VLOOKUP(C10,チーム表!C:D,2,FALSE) -> 寺井クラブ | G10: × | H10: =組合表!AH8 -> D4 | I10: D4D3 | K10: =VLOOKUP(H10,チーム表!C:D,2,FALSE) -> 大門ドッジボールクラブ | M10: =組合表!AI8 -> A3 | N10: A3A4 | P10: =VLOOKUP(M10,チーム表!C:D,2,FALSE) -> 小木クラブ | Q10: × | R10: =組合表!AJ8 -> A4 | S10: A4A3 | U10: =VLOOKUP(R10,チーム表!C:D,2,FALSE) -> NISHIファイヤースターズ | W10: =組合表!AK8 ->  | Z10: =VLOOKUP(W10,チーム表!C:D,2,FALSE) ->  | AA10: × | AB10: =組合表!AL8 ->  | AE10: =VLOOKUP(AB10,チーム表!C:D,2,FALSE) ->  | AG10: D3D4
A11: 6 | C11: =組合表!AG9 -> B3 | D11: B3B4 | F11: =VLOOKUP(C11,チーム表!C:D,2,FALSE) -> 千坂ドッジファイヤーズ | G11: × | H11: =組合表!AH9 -> B4 | I11: B4B3 | K11: =VLOOKUP(H11,チーム表!C:D,2,FALSE) -> 松任の大魔陣 | M11: =組合表!AI9 -> C3 | N11: C3C4 | P11: =VLOOKUP(M11,チーム表!C:D,2,FALSE) -> 鵜川ミラクルフェニックス | Q11: × | R11: =組合表!AJ9 -> C4 | S11: C4C3 | U11: =VLOOKUP(R11,チーム表!C:D,2,FALSE) -> 向本折クラブA | W11: =組合表!AK9 ->  | Z11: =VLOOKUP(W11,チーム表!C:D,2,FALSE) ->  | AA11: × | AB11: =組合表!AL9 ->  | AE11: =VLOOKUP(AB11,チーム表!C:D,2,FALSE) ->  | AG11: B3B4
A12: 7 | C12: =組合表!AG10 -> E3 | D12: E3E4 | F12: =VLOOKUP(C12,チーム表!C:D,2,FALSE) -> 中郷ミラクルジュニア | G12: × | H12: =組合表!AH10 -> E4 | I12: E4E3 | K12: =VLOOKUP(H12,チーム表!C:D,2,FALSE) -> ドッジの王子様 | M12: =組合表!AI10 -> F3 | N12: F3F4 | P12: =VLOOKUP(M12,チーム表!C:D,2,FALSE) -> 向本折クラブNew | Q12: × | R12: =組合表!AJ10 -> F4 | S12: F4F3 | U12: =VLOOKUP(R12,チーム表!C:D,2,FALSE) -> 寺井クラブＪｒ A | W12: =組合表!AK10 ->  | Z12: =VLOOKUP(W12,チーム表!C:D,2,FALSE) ->  | AA12: × | AB12: =組合表!AL10 ->  | AE12: =VLOOKUP(AB12,チーム表!C:D,2,FALSE) ->  | AG12: E3E4
A13: 8 | C13: =組合表!AG11 -> G3 | D13: G3G4 | F13: =VLOOKUP(C13,チーム表!C:D,2,FALSE) -> 鵜川フェニックスジュニア | G13: × | H13: =組合表!AH11 -> G4 | I13: G4G3 | K13: =VLOOKUP(H13,チーム表!C:D,2,FALSE) -> 大門ドッジボールクラブJr | M13: =組合表!AI11 -> H3 | N13: H3H4 | P13: =VLOOKUP(M13,チーム表!C:D,2,FALSE) -> 寺井クラブＪｒ B | Q13: × | R13: =組合表!AJ11 -> H4 | S13: H4H3 | U13: =VLOOKUP(R13,チーム表!C:D,2,FALSE) -> 田上闘球FUTURES | W13: =組合表!AK11 ->  | Z13: =VLOOKUP(W13,チーム表!C:D,2,FALSE) ->  | AA13: =Q14 -> × | AB13: =組合表!AL11 ->  | AE13: =VLOOKUP(AB13,チーム表!C:D,2,FALSE) ->  | AG13: G3G4
A14: 9 | C14: =組合表!AG12 -> D1 | D14: D1D5 | F14: =VLOOKUP(C14,チーム表!C:D,2,FALSE) -> 飯野マジックス | G14: × | H14: =組合表!AH12 -> D5 | I14: D5D1 | K14: =VLOOKUP(H14,チーム表!C:D,2,FALSE) -> 田上闘球DREAMS | M14: =組合表!AI12 -> A2 | N14: A2A3 | P14: =VLOOKUP(M14,チーム表!C:D,2,FALSE) -> 針原パイレーツ | Q14: × | R14: =組合表!AJ12 -> A3 | S14: A3A2 | U14: =VLOOKUP(R14,チーム表!C:D,2,FALSE) -> 小木クラブ | W14: =組合表!AK12 ->  | Z14: =VLOOKUP(W14,チーム表!C:D,2,FALSE) ->  | AA14: =Q15 -> × | AB14: =組合表!AL12 ->  | AE14: =VLOOKUP(AB14,チーム表!C:D,2,FALSE) ->  | AG14: D1D5
A15: 10 | C15: =組合表!AG13 -> B2 | D15: B2B3 | F15: =VLOOKUP(C15,チーム表!C:D,2,FALSE) -> 鳳至ドッジボールクラブ | G15: × | H15: =組合表!AH13 -> B3 | I15: B3B2 | K15: =VLOOKUP(H15,チーム表!C:D,2,FALSE) -> 千坂ドッジファイヤーズ | M15: =組合表!AI13 -> C2 | N15: C2C3 | P15: =VLOOKUP(M15,チーム表!C:D,2,FALSE) -> 中郷ドッジボールクラブ | Q15: × | R15: =組合表!AJ13 -> C3 | S15: C3C2 | U15: =VLOOKUP(R15,チーム表!C:D,2,FALSE) -> 鵜川ミラクルフェニックス | W15: =組合表!AK13 ->  | Z15: =VLOOKUP(W15,チーム表!C:D,2,FALSE) ->  | AA15: =Q16 -> × | AB15: =組合表!AL13 ->  | AE15: =VLOOKUP(AB15,チーム表!C:D,2,FALSE) ->  | AG15: B2B3
A16: 11 | C16: =組合表!AG14 -> E2 | D16: E2E3 | F16: =VLOOKUP(C16,チーム表!C:D,2,FALSE) -> 鳳至ジュニア | G16: × | H16: =組合表!AH14 -> E3 | I16: E3E2 | K16: =VLOOKUP(H16,チーム表!C:D,2,FALSE) -> 中郷ミラクルジュニア | M16: =組合表!AI14 -> F2 | N16: F2F3 | P16: =VLOOKUP(M16,チーム表!C:D,2,FALSE) -> 千坂ロータスルート | Q16: × | R16: =組合表!AJ14 -> F3 | S16: F3F2 | U16: =VLOOKUP(R16,チーム表!C:D,2,FALSE) -> 向本折クラブNew | W16: =組合表!AK14 ->  | Z16: =VLOOKUP(W16,チーム表!C:D,2,FALSE) ->  | AA16: =Q17 -> × | AB16: =組合表!AL14 ->  | AE16: =VLOOKUP(AB16,チーム表!C:D,2,FALSE) ->  | AG16: E2E3
A17: 12 | C17: =組合表!AG15 -> G2 | D17: G2G3 | F17: =VLOOKUP(C17,チーム表!C:D,2,FALSE) -> 松任の大魔陣Jr. | G17: × | H17: =組合表!AH15 -> G3 | I17: G3G2 | K17: =VLOOKUP(H17,チーム表!C:D,2,FALSE) -> 鵜川フェニックスジュニア | M17: =組合表!AI15 -> H2 | N17: H2H3 | P17: =VLOOKUP(M17,チーム表!C:D,2,FALSE) -> NISHI Jrスターズ | Q17: × | R17: =組合表!AJ15 -> H3 | S17: H3H2 | U17: =VLOOKUP(R17,チーム表!C:D,2,FALSE) -> 寺井クラブＪｒ B | W17: =組合表!AK15 ->  | Z17: =VLOOKUP(W17,チーム表!C:D,2,FALSE) ->  | AA17: =Q19 -> × | AB17: =組合表!AL15 ->  | AE17: =VLOOKUP(AB17,チーム表!C:D,2,FALSE) ->  | AG17: G2G3
A18: 13 | C18: =組合表!AG16 -> D2 | D18: D2D3 | F18: =VLOOKUP(C18,チーム表!C:D,2,FALSE) -> 三馬パワフル | G18: × | H18: =組合表!AH16 -> D3 | I18: D3D2 | K18: =VLOOKUP(H18,チーム表!C:D,2,FALSE) -> 寺井クラブ | M18: =組合表!AI16 -> A1 | N18: A1A4 | P18: =VLOOKUP(M18,チーム表!C:D,2,FALSE) -> 鞍月アタッカーズ | Q18: × | R18: =組合表!AJ16 -> A4 | S18: A4A1 | U18: =VLOOKUP(R18,チーム表!C:D,2,FALSE) -> NISHIファイヤースターズ | W18: =組合表!AK16 ->  | Z18: =VLOOKUP(W18,チーム表!C:D,2,FALSE) ->  | AA18: =Q29 -> × | AB18: =組合表!AL16 ->  | AE18: =VLOOKUP(AB18,チーム表!C:D,2,FALSE) ->  | AG18: D2D3
A19: 14 | C19: =組合表!AG17 -> B1 | D19: B1B4 | F19: =VLOOKUP(C19,チーム表!C:D,2,FALSE) -> 呉羽ドッジボールクラブ | G19: × | H19: =組合表!AH17 -> B4 | I19: B4B1 | K19: =VLOOKUP(H19,チーム表!C:D,2,FALSE) -> 松任の大魔陣 | M19: =組合表!AI17 -> C1 | N19: C1C4 | P19: =VLOOKUP(M19,チーム表!C:D,2,FALSE) -> 光陽マーリンズ | Q19: × | R19: =組合表!AJ17 -> C4 | S19: C4C1 | U19: =VLOOKUP(R19,チーム表!C:D,2,FALSE) -> 向本折クラブA | W19: =組合表!AK17 ->  | Z19: =VLOOKUP(W19,チーム表!C:D,2,FALSE) ->  | AA19: × | AB19: =組合表!AL17 ->  | AE19: =VLOOKUP(AB19,チーム表!C:D,2,FALSE) ->  | AG19: B1B4
A20: 15 | C20: =組合表!AG18 -> E1 | D20: E1E4 | F20: =VLOOKUP(C20,チーム表!C:D,2,FALSE) -> 鞍月アタッカーズジュニア | G20: × | H20: =組合表!AH18 -> E4 | I20: E4E1 | K20: =VLOOKUP(H20,チーム表!C:D,2,FALSE) -> ドッジの王子様 | M20: =組合表!AI18 -> F1 | N20: F1F4 | P20: =VLOOKUP(M20,チーム表!C:D,2,FALSE) -> 九十九クラブ | Q20: × | R20: =組合表!AJ18 -> F4 | S20: F4F1 | U20: =VLOOKUP(R20,チーム表!C:D,2,FALSE) -> 寺井クラブＪｒ A | W20: =組合表!AK18 ->  | Z20: =VLOOKUP(W20,チーム表!C:D,2,FALSE) ->  | AA20: × | AB20: =組合表!AL18 ->  | AE20: =VLOOKUP(AB20,チーム表!C:D,2,FALSE) ->  | AG20: E1E4
A21: 16 | C21: =組合表!AG19 -> G1 | D21: =CONCATENATE(C21,H21) -> G1G4 | F21: =VLOOKUP(C21,チーム表!C:D,2,FALSE) -> 鞍月アタッカーズキッズ | G21: × | H21: =組合表!AH19 -> G4 | I21: =CONCATENATE(H21,C21) -> G4G1 | K21: =VLOOKUP(H21,チーム表!C:D,2,FALSE) -> 大門ドッジボールクラブJr | M21: =組合表!AI19 -> H1 | N21: =CONCATENATE(M21,R21) -> H1H4 | P21: =VLOOKUP(M21,チーム表!C:D,2,FALSE) -> 呉羽DBCジュニア | Q21: × | R21: =組合表!AJ19 -> H4 | S21: =CONCATENATE(R21,M21) -> H4H1 | U21: =VLOOKUP(R21,チーム表!C:D,2,FALSE) -> 田上闘球FUTURES | W21: =組合表!AK19 ->  | X21: =CONCATENATE(W21,AB21) ->  | Z21: =VLOOKUP(W21,チーム表!C:D,2,FALSE) ->  | AA21: × | AB21: =組合表!AL19 ->  | AC21: =CONCATENATE(AB21,W21) ->  | AE21: =VLOOKUP(AB21,チーム表!C:D,2,FALSE) ->  | AG21: G1G4
A22: 17 | C22: =組合表!AG20 -> D4 | D22: D4D5 | F22: =VLOOKUP(C22,チーム表!C:D,2,FALSE) -> 大門ドッジボールクラブ | G22: × | H22: =組合表!AH20 -> D5 | I22: D5D4 | K22: =VLOOKUP(H22,チーム表!C:D,2,FALSE) -> 田上闘球DREAMS | M22: =組合表!AI20 -> A1 | N22: A1A3 | P22: =VLOOKUP(M22,チーム表!C:D,2,FALSE) -> 鞍月アタッカーズ | Q22: × | R22: =組合表!AJ20 -> A3 | S22: A3A1 | U22: =VLOOKUP(R22,チーム表!C:D,2,FALSE) -> 小木クラブ | W22: =組合表!AK20 ->  | Z22: =VLOOKUP(W22,チーム表!C:D,2,FALSE) ->  | AA22: × | AB22: =組合表!AL20 ->  | AE22: =VLOOKUP(AB22,チーム表!C:D,2,FALSE) ->  | AG22: D4D5
A23: 18 | C23: =組合表!AG21 -> B1 | D23: B1B3 | F23: =VLOOKUP(C23,チーム表!C:D,2,FALSE) -> 呉羽ドッジボールクラブ | G23: × | H23: =組合表!AH21 -> B3 | I23: B3B1 | K23: =VLOOKUP(H23,チーム表!C:D,2,FALSE) -> 千坂ドッジファイヤーズ | M23: =組合表!AI21 -> C1 | N23: C1C3 | P23: =VLOOKUP(M23,チーム表!C:D,2,FALSE) -> 光陽マーリンズ | Q23: × | R23: =組合表!AJ21 -> C3 | S23: C3C1 | U23: =VLOOKUP(R23,チーム表!C:D,2,FALSE) -> 鵜川ミラクルフェニックス | W23: =組合表!AK21 ->  | Z23: =VLOOKUP(W23,チーム表!C:D,2,FALSE) ->  | AA23: × | AB23: =組合表!AL21 ->  | AE23: =VLOOKUP(AB23,チーム表!C:D,2,FALSE) ->  | AG23: B1B3
A24: 19 | C24: =組合表!AG22 -> E1 | D24: E1E3 | F24: =VLOOKUP(C24,チーム表!C:D,2,FALSE) -> 鞍月アタッカーズジュニア | G24: × | H24: =組合表!AH22 -> E3 | I24: E3E1 | K24: =VLOOKUP(H24,チーム表!C:D,2,FALSE) -> 中郷ミラクルジュニア | M24: =組合表!AI22 -> F1 | N24: F1F3 | P24: =VLOOKUP(M24,チーム表!C:D,2,FALSE) -> 九十九クラブ | Q24: × | R24: =組合表!AJ22 -> F3 | S24: F3F1 | U24: =VLOOKUP(R24,チーム表!C:D,2,FALSE) -> 向本折クラブNew | W24: =組合表!AK22 ->  | Z24: =VLOOKUP(W24,チーム表!C:D,2,FALSE) ->  | AA24: × | AB24: =組合表!AL22 ->  | AE24: =VLOOKUP(AB24,チーム表!C:D,2,FALSE) ->  | AG24: E1E3
A25: 20 | C25: =組合表!AG23 -> G1 | D25: G1G3 | F25: =VLOOKUP(C25,チーム表!C:D,2,FALSE) -> 鞍月アタッカーズキッズ | G25: × | H25: =組合表!AH23 -> G3 | I25: G3G1 | K25: =VLOOKUP(H25,チーム表!C:D,2,FALSE) -> 鵜川フェニックスジュニア | M25: =組合表!AI23 -> H1 | N25: H1H3 | P25: =VLOOKUP(M25,チーム表!C:D,2,FALSE) -> 呉羽DBCジュニア | Q25: × | R25: =組合表!AJ23 -> H3 | S25: H3H1 | U25: =VLOOKUP(R25,チーム表!C:D,2,FALSE) -> 寺井クラブＪｒ B | W25: =組合表!AK23 ->  | Z25: =VLOOKUP(W25,チーム表!C:D,2,FALSE) ->  | AA25: × | AB25: =組合表!AL23 ->  | AE25: =VLOOKUP(AB25,チーム表!C:D,2,FALSE) ->  | AG25: G1G3
A26: 21 | C26: =組合表!AG24 -> D1 | D26: D1D4 | F26: =VLOOKUP(C26,チーム表!C:D,2,FALSE) -> 飯野マジックス | G26: × | H26: =組合表!AH24 -> D4 | I26: D4D1 | K26: =VLOOKUP(H26,チーム表!C:D,2,FALSE) -> 大門ドッジボールクラブ | M26: =組合表!AI24 -> A2 | N26: A2A4 | P26: =VLOOKUP(M26,チーム表!C:D,2,FALSE) -> 針原パイレーツ | Q26: × | R26: =組合表!AJ24 -> A4 | S26: A4A2 | U26: =VLOOKUP(R26,チーム表!C:D,2,FALSE) -> NISHIファイヤースターズ | W26: =組合表!AK24 ->  | Z26: =VLOOKUP(W26,チーム表!C:D,2,FALSE) ->  | AA26: × | AB26: =組合表!AL24 ->  | AE26: =VLOOKUP(AB26,チーム表!C:D,2,FALSE) ->  | AG26: D1D4
A27: 22 | C27: =組合表!AG25 -> B2 | D27: B2B4 | F27: =VLOOKUP(C27,チーム表!C:D,2,FALSE) -> 鳳至ドッジボールクラブ | G27: × | H27: =組合表!AH25 -> B4 | I27: B4B2 | K27: =VLOOKUP(H27,チーム表!C:D,2,FALSE) -> 松任の大魔陣 | M27: =組合表!AI25 -> C2 | N27: C2C4 | P27: =VLOOKUP(M27,チーム表!C:D,2,FALSE) -> 中郷ドッジボールクラブ | Q27: × | R27: =組合表!AJ25 -> C4 | S27: C4C2 | U27: =VLOOKUP(R27,チーム表!C:D,2,FALSE) -> 向本折クラブA | W27: =組合表!AK25 ->  | Z27: =VLOOKUP(W27,チーム表!C:D,2,FALSE) ->  | AA27: × | AB27: =組合表!AL25 ->  | AE27: =VLOOKUP(AB27,チーム表!C:D,2,FALSE) ->  | AG27: B2B4
A28: 23 | C28: =組合表!AG26 -> E2 | D28: E2E4 | F28: =VLOOKUP(C28,チーム表!C:D,2,FALSE) -> 鳳至ジュニア | G28: × | H28: =組合表!AH26 -> E4 | I28: E4E2 | K28: =VLOOKUP(H28,チーム表!C:D,2,FALSE) -> ドッジの王子様 | M28: =組合表!AI26 -> F2 | N28: F2F4 | P28: =VLOOKUP(M28,チーム表!C:D,2,FALSE) -> 千坂ロータスルート | Q28: × | R28: =組合表!AJ26 -> F4 | S28: F4F2 | U28: =VLOOKUP(R28,チーム表!C:D,2,FALSE) -> 寺井クラブＪｒ A | W28: =組合表!AK26 ->  | Z28: =VLOOKUP(W28,チーム表!C:D,2,FALSE) ->  | AA28: × | AB28: =組合表!AL26 ->  | AE28: =VLOOKUP(AB28,チーム表!C:D,2,FALSE) ->  | AG28: E2E4
A29: 24 | C29: =組合表!AG27 -> G2 | D29: G2G4 | F29: =VLOOKUP(C29,チーム表!C:D,2,FALSE) -> 松任の大魔陣Jr. | G29: × | H29: =組合表!AH27 -> G4 | I29: G4G2 | K29: =VLOOKUP(H29,チーム表!C:D,2,FALSE) -> 大門ドッジボールクラブJr | M29: =組合表!AI27 -> H2 | N29: H2H4 | P29: =VLOOKUP(M29,チーム表!C:D,2,FALSE) -> NISHI Jrスターズ | Q29: × | R29: =組合表!AJ27 -> H4 | S29: H4H2 | U29: =VLOOKUP(R29,チーム表!C:D,2,FALSE) -> 田上闘球FUTURES | W29: =組合表!AK27 ->  | Z29: =VLOOKUP(W29,チーム表!C:D,2,FALSE) ->  | AA29: × | AB29: =組合表!AL27 ->  | AE29: =VLOOKUP(AB29,チーム表!C:D,2,FALSE) ->  | AG29: G2G4
A30: 25 | C30: =組合表!AG28 -> D2 | D30: D2D5 | F30: =VLOOKUP(C30,チーム表!C:D,2,FALSE) -> 三馬パワフル | G30: × | H30: =組合表!AH28 -> D5 | I30: D5D2 | K30: =VLOOKUP(H30,チーム表!C:D,2,FALSE) -> 田上闘球DREAMS | M30: =組合表!AI28 -> D1 | N30: D1D3 | P30: =VLOOKUP(M30,チーム表!C:D,2,FALSE) -> 飯野マジックス | Q30: × | R30: =組合表!AJ28 -> D3 | S30: D3D1 | U30: =VLOOKUP(R30,チーム表!C:D,2,FALSE) -> 寺井クラブ | W30: =組合表!AK28 ->  | Z30: =VLOOKUP(W30,チーム表!C:D,2,FALSE) ->  | AA30: × | AB30: =組合表!AL28 ->  | AE30: =VLOOKUP(AB30,チーム表!C:D,2,FALSE) ->  | AG30: D2D5
A31: 26 | C31: =組合表!AG29 -> D2 | D31: =CONCATENATE(C31,H31) -> D2D4 | F31: =VLOOKUP(C31,チーム表!C:D,2,FALSE) -> 三馬パワフル | G31: × | H31: =組合表!AH29 -> D4 | I31: =CONCATENATE(H31,C31) -> D4D2 | K31: =VLOOKUP(H31,チーム表!C:D,2,FALSE) -> 大門ドッジボールクラブ | M31: =組合表!AI29 -> D3 | N31: =CONCATENATE(M31,R31) -> D3D5 | P31: =VLOOKUP(M31,チーム表!C:D,2,FALSE) -> 寺井クラブ | Q31: × | R31: =組合表!AJ29 -> D5 | S31: =CONCATENATE(R31,M31) -> D5D3 | U31: =VLOOKUP(R31,チーム表!C:D,2,FALSE) -> 田上闘球DREAMS | W31: =組合表!AK29 ->  | X31: =CONCATENATE(W31,AB31) ->  | Z31: =VLOOKUP(W31,チーム表!C:D,2,FALSE) ->  | AA31: × | AB31: =組合表!AL29 ->  | AC31: =CONCATENATE(AB31,W31) ->  | AE31: =VLOOKUP(AB31,チーム表!C:D,2,FALSE) ->  | AG31: D2D4
A32: 27 | C32: =組合表!AG30 ->  | F32: =VLOOKUP(C32,チーム表!C:D,2,FALSE) ->  | G32: × | H32: =組合表!AH30 ->  | K32: =VLOOKUP(H32,チーム表!C:D,2,FALSE) ->  | M32: =組合表!AI30 ->  | P32: =VLOOKUP(M32,チーム表!C:D,2,FALSE) ->  | Q32: × | R32: =組合表!AJ30 ->  | U32: =VLOOKUP(R32,チーム表!C:D,2,FALSE) ->  | W32: =組合表!AK30 ->  | Z32: =VLOOKUP(W32,チーム表!C:D,2,FALSE) ->  | AA32: × | AB32: =組合表!AL30 ->  | AE32: =VLOOKUP(AB32,チーム表!C:D,2,FALSE) -> 
A33: 28 | C33: =組合表!AG31 ->  | F33: =VLOOKUP(C33,チーム表!C:D,2,FALSE) ->  | G33: × | H33: =組合表!AH31 ->  | K33: =VLOOKUP(H33,チーム表!C:D,2,FALSE) ->  | M33: =組合表!AI31 ->  | P33: =VLOOKUP(M33,チーム表!C:D,2,FALSE) ->  | Q33: × | R33: =組合表!AJ31 ->  | U33: =VLOOKUP(R33,チーム表!C:D,2,FALSE) ->  | W33: =組合表!AK31 ->  | Z33: =VLOOKUP(W33,チーム表!C:D,2,FALSE) ->  | AA33: × | AB33: =組合表!AL31 ->  | AE33: =VLOOKUP(AB33,チーム表!C:D,2,FALSE) -> 
A34: 29 | C34: =組合表!AG32 ->  | F34: =VLOOKUP(C34,チーム表!C:D,2,FALSE) ->  | G34: × | H34: =組合表!AH32 ->  | K34: =VLOOKUP(H34,チーム表!C:D,2,FALSE) ->  | M34: =組合表!AI32 ->  | P34: =VLOOKUP(M34,チーム表!C:D,2,FALSE) ->  | Q34: × | R34: =組合表!AJ32 ->  | U34: =VLOOKUP(R34,チーム表!C:D,2,FALSE) ->  | W34: =組合表!AK32 ->  | Z34: =VLOOKUP(W34,チーム表!C:D,2,FALSE) ->  | AA34: × | AB34: =組合表!AL32 ->  | AE34: =VLOOKUP(AB34,チーム表!C:D,2,FALSE) -> 
A35: 30 | C35: =組合表!AG33 ->  | F35: =VLOOKUP(C35,チーム表!C:D,2,FALSE) ->  | G35: × | H35: =組合表!AH33 ->  | K35: =VLOOKUP(H35,チーム表!C:D,2,FALSE) ->  | M35: =組合表!AI33 ->  | P35: =VLOOKUP(M35,チーム表!C:D,2,FALSE) ->  | Q35: × | R35: =組合表!AJ33 ->  | U35: =VLOOKUP(R35,チーム表!C:D,2,FALSE) ->  | W35: =組合表!AK33 ->  | Z35: =VLOOKUP(W35,チーム表!C:D,2,FALSE) ->  | AA35: × | AB35: =組合表!AL33 ->  | AE35: =VLOOKUP(AB35,チーム表!C:D,2,FALSE) -> 
A36: 31 | C36: =組合表!AG34 ->  | F36: =VLOOKUP(C36,チーム表!C:D,2,FALSE) ->  | G36: × | H36: =組合表!AH34 ->  | K36: =VLOOKUP(H36,チーム表!C:D,2,FALSE) ->  | M36: =組合表!AI34 ->  | P36: =VLOOKUP(M36,チーム表!C:D,2,FALSE) ->  | Q36: × | R36: =組合表!AJ34 ->  | U36: =VLOOKUP(R36,チーム表!C:D,2,FALSE) ->  | W36: =組合表!AK34 ->  | Z36: =VLOOKUP(W36,チーム表!C:D,2,FALSE) ->  | AA36: × | AB36: =組合表!AL34 ->  | AE36: =VLOOKUP(AB36,チーム表!C:D,2,FALSE) -> 
A37: 32 | C37: =組合表!AG35 ->  | F37: =VLOOKUP(C37,チーム表!C:D,2,FALSE) ->  | G37: × | H37: =組合表!AH35 ->  | K37: =VLOOKUP(H37,チーム表!C:D,2,FALSE) ->  | M37: =組合表!AI35 ->  | P37: =VLOOKUP(M37,チーム表!C:D,2,FALSE) ->  | Q37: × | R37: =組合表!AJ35 ->  | U37: =VLOOKUP(R37,チーム表!C:D,2,FALSE) ->  | W37: =組合表!AK35 ->  | Z37: =VLOOKUP(W37,チーム表!C:D,2,FALSE) ->  | AA37: × | AB37: =組合表!AL35 ->  | AE37: =VLOOKUP(AB37,チーム表!C:D,2,FALSE) -> 
A38: 33 | C38: =組合表!AG36 ->  | F38: =VLOOKUP(C38,チーム表!C:D,2,FALSE) ->  | G38: × | H38: =組合表!AH36 ->  | K38: =VLOOKUP(H38,チーム表!C:D,2,FALSE) ->  | M38: =組合表!AI36 ->  | P38: =VLOOKUP(M38,チーム表!C:D,2,FALSE) ->  | Q38: × | R38: =組合表!AJ36 ->  | U38: =VLOOKUP(R38,チーム表!C:D,2,FALSE) ->  | W38: =組合表!AK36 ->  | Z38: =VLOOKUP(W38,チーム表!C:D,2,FALSE) ->  | AA38: × | AB38: =組合表!AL36 ->  | AE38: =VLOOKUP(AB38,チーム表!C:D,2,FALSE) -> 
A39: 34 | C39: =組合表!AG37 ->  | D39: =CONCATENATE(C39,H39) ->  | F39: =VLOOKUP(C39,チーム表!C:D,2,FALSE) ->  | G39: × | H39: =組合表!AH37 ->  | I39: =CONCATENATE(H39,C39) ->  | K39: =VLOOKUP(H39,チーム表!C:D,2,FALSE) ->  | M39: =組合表!AI37 ->  | N39: =CONCATENATE(M39,R39) ->  | P39: =VLOOKUP(M39,チーム表!C:D,2,FALSE) ->  | Q39: × | R39: =組合表!AJ37 ->  | S39: =CONCATENATE(R39,M39) ->  | U39: =VLOOKUP(R39,チーム表!C:D,2,FALSE) ->  | W39: =組合表!AK37 ->  | X39: =CONCATENATE(W39,AB39) ->  | Z39: =VLOOKUP(W39,チーム表!C:D,2,FALSE) ->  | AA39: × | AB39: =組合表!AL37 ->  | AC39: =CONCATENATE(AB39,W39) ->  | AE39: =VLOOKUP(AB39,チーム表!C:D,2,FALSE) -> 
A40: 35 | C40: =組合表!AG38 ->  | D40: =CONCATENATE(C40,H40) ->  | F40: =VLOOKUP(C40,チーム表!C:D,2,FALSE) ->  | G40: × | H40: =組合表!AH38 ->  | I40: =CONCATENATE(H40,C40) ->  | K40: =VLOOKUP(H40,チーム表!C:D,2,FALSE) ->  | M40: =組合表!AI38 ->  | N40: =CONCATENATE(M40,R40) ->  | P40: =VLOOKUP(M40,チーム表!C:D,2,FALSE) ->  | Q40: × | R40: =組合表!AJ38 ->  | S40: =CONCATENATE(R40,M40) ->  | U40: =VLOOKUP(R40,チーム表!C:D,2,FALSE) ->  | W40: =組合表!AK38 ->  | X40: =CONCATENATE(W40,AB40) ->  | Z40: =VLOOKUP(W40,チーム表!C:D,2,FALSE) ->  | AA40: × | AB40: =組合表!AL38 ->  | AC40: =CONCATENATE(AB40,W40) ->  | AE40: =VLOOKUP(AB40,チーム表!C:D,2,FALSE) -> 
A41: 36 | C41: =組合表!AG39 ->  | D41: =CONCATENATE(C41,H41) ->  | F41: =VLOOKUP(C41,チーム表!C:D,2,FALSE) ->  | G41: × | H41: =組合表!AH39 ->  | I41: =CONCATENATE(H41,C41) ->  | K41: =VLOOKUP(H41,チーム表!C:D,2,FALSE) ->  | M41: =組合表!AI39 ->  | N41: =CONCATENATE(M41,R41) ->  | P41: =VLOOKUP(M41,チーム表!C:D,2,FALSE) ->  | Q41: × | R41: =組合表!AJ39 ->  | S41: =CONCATENATE(R41,M41) ->  | U41: =VLOOKUP(R41,チーム表!C:D,2,FALSE) ->  | W41: =組合表!AK39 ->  | X41: =CONCATENATE(W41,AB41) ->  | Z41: =VLOOKUP(W41,チーム表!C:D,2,FALSE) ->  | AA41: × | AB41: =組合表!AL39 ->  | AC41: =CONCATENATE(AB41,W41) ->  | AE41: =VLOOKUP(AB41,チーム表!C:D,2,FALSE) -> 
A42: 37 | C42: =組合表!AG40 ->  | F42: =VLOOKUP(C42,チーム表!C:D,2,FALSE) ->  | G42: × | H42: =組合表!AH40 ->  | K42: =VLOOKUP(H42,チーム表!C:D,2,FALSE) ->  | M42: =組合表!AI40 ->  | P42: =VLOOKUP(M42,チーム表!C:D,2,FALSE) ->  | Q42: × | R42: =組合表!AJ40 ->  | U42: =VLOOKUP(R42,チーム表!C:D,2,FALSE) ->  | W42: =組合表!AK40 ->  | Z42: =VLOOKUP(W42,チーム表!C:D,2,FALSE) ->  | AA42: × | AB42: =組合表!AL40 ->  | AE42: =VLOOKUP(AB42,チーム表!C:D,2,FALSE) -> 
A43: 38 | C43: =組合表!AG41 ->  | F43: =VLOOKUP(C43,チーム表!C:D,2,FALSE) ->  | G43: × | H43: =組合表!AH41 ->  | K43: =VLOOKUP(H43,チーム表!C:D,2,FALSE) ->  | M43: =組合表!AI41 ->  | P43: =VLOOKUP(M43,チーム表!C:D,2,FALSE) ->  | Q43: × | R43: =組合表!AJ41 ->  | U43: =VLOOKUP(R43,チーム表!C:D,2,FALSE) ->  | W43: =組合表!AK41 ->  | Z43: =VLOOKUP(W43,チーム表!C:D,2,FALSE) ->  | AA43: × | AB43: =組合表!AL41 ->  | AE43: =VLOOKUP(AB43,チーム表!C:D,2,FALSE) -> 
A44: 39 | C44: =組合表!AG42 ->  | F44: =VLOOKUP(C44,チーム表!C:D,2,FALSE) ->  | G44: × | H44: =組合表!AH42 ->  | K44: =VLOOKUP(H44,チーム表!C:D,2,FALSE) ->  | M44: =組合表!AI42 ->  | P44: =VLOOKUP(M44,チーム表!C:D,2,FALSE) ->  | Q44: × | R44: =組合表!AJ42 ->  | U44: =VLOOKUP(R44,チーム表!C:D,2,FALSE) ->  | W44: =組合表!AK42 ->  | Z44: =VLOOKUP(W44,チーム表!C:D,2,FALSE) ->  | AA44: × | AB44: =組合表!AL42 ->  | AE44: =VLOOKUP(AB44,チーム表!C:D,2,FALSE) -> 
A45: 40 | C45: =組合表!AG43 ->  | F45: =VLOOKUP(C45,チーム表!C:D,2,FALSE) ->  | G45: × | H45: =組合表!AH43 ->  | K45: =VLOOKUP(H45,チーム表!C:D,2,FALSE) ->  | M45: =組合表!AI43 ->  | P45: =VLOOKUP(M45,チーム表!C:D,2,FALSE) ->  | Q45: × | R45: =組合表!AJ43 ->  | U45: =VLOOKUP(R45,チーム表!C:D,2,FALSE) ->  | W45: =組合表!AK43 ->  | Z45: =VLOOKUP(W45,チーム表!C:D,2,FALSE) ->  | AA45: × | AB45: =組合表!AL43 ->  | AE45: =VLOOKUP(AB45,チーム表!C:D,2,FALSE) -> 
A46: 41 | C46: 1 | AG46: =I6 -> D2D1 | AH46: =IF(J6="","",J6) -> 
A47: 42 | C47: 2 | AG47: B2B1 | AH47: =IF(J7="","",J7) -> 
A48: 43 | C48: 3 | AG48: E2E1
A49: 44 | C49: 4 | AG49: G2G1
A50: 45 | C50: 5 | AG50: D4D3
A51: 46 | C51: 6 | AG51: B4B3
A52: 47 | C52: 7 | AG52: E4E3
A53: 48 | C53: 8 | AG53: G4G3
A54: 49 | C54: 9 | AG54: D5D1
A55: 50 | C55: 10 | AG55: B3B2
AG56: E3E2
AG57: G3G2
AG58: D3D2
AG59: B4B1
AG60: E4E1
AG61: G4G1
AG62: D5D4
AG63: B3B1
AG64: E3E1
AG65: G3G1
AG66: D4D1
AG67: B4B2
AG68: E4E2
AG69: G4G2
AG70: D5D2
AG71: D4D2
AG86: =N6 -> A1A2 | AH86: =IF(O6="","",O6) -> 
AG87: C1C2 | AH87: =IF(O7="","",O7) -> 
AG88: F1F2
AG89: H1H2
AG90: A3A4
AG91: C3C4
AG92: F3F4
AG93: H3H4
AG94: A2A3
AG95: C2C3
AG96: F2F3
AG97: H2H3
AG98: A1A4
AG99: C1C4
AG100: F1F4
AG101: H1H4
AG102: A1A3
AG103: C1C3
AG104: F1F3
AG105: H1H3
AG106: A2A4
AG107: C2C4
AG108: F2F4
AG109: H2H4
AG110: D1D3
AG111: D3D5
AG126: =S6 -> A2A1 | AH126: =IF(T6="","",T6) -> 
AG127: C2C1 | AH127: =IF(T7="","",T7) -> 
AG128: F2F1
AG129: H2H1
AG130: A4A3
AG131: C4C3
AG132: F4F3
AG133: H4H3
AG134: A3A2
AG135: C3C2
AG136: F3F2
AG137: H3H2
AG138: A4A1
AG139: C4C1
AG140: F4F1
AG141: H4H1
AG142: A3A1
AG143: C3C1
AG144: F3F1
AG145: H3H1
AG146: A4A2
AG147: C4C2
AG148: F4F2
AG149: H4H2
AG150: D3D1
AG151: D5D3
AG166: =X6 ->  | AH166: =IF(Y6="","",Y6) -> 
AH167: =IF(Y7="","",Y7) -> 
AG206: =AC6 ->  | AH206: =IF(AD6="","",AD6) -> 
AH207: =IF(AD7="","",AD7) -> 

Sheet 組合表
Z1: 26
Z2: 52
A3: 1 | B3: 2 | C3: 3 | D3: 4 | E3: 5 | F3: 6 | G3: 7 | H3: 8 | I3: 9 | J3: 10 | K3: 11 | L3: 12 | M3: 13 | N3: 14 | O3: 15 | P3: 16 | Q3: 17 | R3: 18 | S3: 19 | T3: 20 | U3: 21 | V3: 22 | W3: 23 | X3: 24 | Y3: 25 | AG3: Aコート | AI3: Ｂコート | AK3: Ｃコート
B4: 5 | C4: D | D4: D1D2 | E4: D3D4 | F4: D1D5 | G4: D2D3 | H4: D4D5 | I4: D1D4 | J4: D2D5 | K4: D1D3 | L4: D2D4 | M4: D3D5 | AA4: D1D2 | AC4: D1D2 | AD4: A1A2 | AG4: =LEFT(AC4,2) -> D1 | AH4: =RIGHT(AC4,2) -> D2 | AI4: =LEFT(AD4,2) -> A1 | AJ4: =RIGHT(AD4,2) -> A2 | AK4: =LEFT(AE4,2) ->  | AL4: =RIGHT(AE4,2) ->  | AM4: 1
B5: 4 | C5: A | D5: A1A2 | E5: A3A4 | F5: A2A3 | G5: A1A4 | H5: A1A3 | I5: A2A4 | AA5: A1A2 | AC5: B1B2 | AD5: C1C2 | AG5: =LEFT(AC5,2) -> B1 | AH5: =RIGHT(AC5,2) -> B2 | AI5: =LEFT(AD5,2) -> C1 | AJ5: =RIGHT(AD5,2) -> C2 | AK5: =LEFT(AE5,2) ->  | AL5: =RIGHT(AE5,2) ->  | AM5: 2
B6: 4 | C6: B | D6: B1B2 | E6: B3B4 | F6: B2B3 | G6: B1B4 | H6: B1B3 | I6: B2B4 | AA6: B1B2 | AC6: E1E2 | AD6: F1F2 | AG6: E1 | AH6: E2 | AI6: F1 | AJ6: F2 | AM6: 3
B7: 4 | C7: C | D7: C1C2 | E7: C3C4 | F7: C2C3 | G7: C1C4 | H7: C1C3 | I7: C2C4 | AA7: C1C2 | AC7: G1G2 | AD7: H1H2 | AG7: G1 | AH7: G2 | AI7: H1 | AJ7: H2 | AM7: 4
B8: 4 | C8: E | D8: E1E2 | E8: E3E4 | F8: E2E3 | G8: E1E4 | H8: E1E3 | I8: E2E4 | AA8: E1E2 | AC8: D3D4 | AD8: A3A4 | AG8: D3 | AH8: D4 | AI8: A3 | AJ8: A4 | AM8: 5
B9: 4 | C9: F | D9: F1F2 | E9: F3F4 | F9: F2F3 | G9: F1F4 | H9: F1F3 | I9: F2F4 | AA9: F1F2 | AC9: B3B4 | AD9: C3C4 | AG9: B3 | AH9: B4 | AI9: C3 | AJ9: C4 | AM9: 6
B10: 4 | C10: G | D10: G1G2 | E10: G3G4 | F10: G2G3 | G10: G1G4 | H10: G1G3 | I10: G2G4 | AA10: G1G2 | AC10: E3E4 | AD10: F3F4 | AG10: E3 | AH10: E4 | AI10: F3 | AJ10: F4 | AM10: 7
B11: 4 | C11: H | D11: H1H2 | E11: H3H4 | F11: H2H3 | G11: H1H4 | H11: H1H3 | I11: H2H4 | AA11: H1H2 | AC11: G3G4 | AD11: H3H4 | AG11: G3 | AH11: G4 | AI11: H3 | AJ11: H4 | AM11: 8
AA12: D3D4 | AC12: D1D5 | AD12: A2A3 | AG12: D1 | AH12: D5 | AI12: A2 | AJ12: A3 | AM12: 9
AA13: A3A4 | AC13: B2B3 | AD13: C2C3 | AG13: B2 | AH13: B3 | AI13: C2 | AJ13: C3 | AM13: 10
AA14: B3B4 | AC14: E2E3 | AD14: F2F3 | AG14: E2 | AH14: E3 | AI14: F2 | AJ14: F3 | AM14: 11
AA15: C3C4 | AC15: G2G3 | AD15: H2H3 | AG15: G2 | AH15: G3 | AI15: H2 | AJ15: H3 | AM15: 12
AA16: E3E4 | AC16: D2D3 | AD16: A1A4 | AG16: D2 | AH16: D3 | AI16: A1 | AJ16: A4 | AM16: 13
AA17: F3F4 | AC17: B1B4 | AD17: C1C4 | AG17: B1 | AH17: B4 | AI17: C1 | AJ17: C4 | AM17: 14
AA18: G3G4 | AC18: E1E4 | AD18: F1F4 | AG18: E1 | AH18: E4 | AI18: F1 | AJ18: F4 | AM18: 15
AA19: H3H4 | AC19: G1G4 | AD19: H1H4 | AG19: G1 | AH19: G4 | AI19: H1 | AJ19: H4 | AM19: 16
AA20: D1D5 | AC20: D4D5 | AD20: A1A3 | AG20: D4 | AH20: D5 | AI20: A1 | AJ20: A3 | AM20: 17
AA21: A2A3 | AC21: B1B3 | AD21: C1C3 | AG21: B1 | AH21: B3 | AI21: C1 | AJ21: C3 | AM21: 18
AA22: B2B3 | AC22: E1E3 | AD22: F1F3 | AG22: E1 | AH22: E3 | AI22: F1 | AJ22: F3 | AM22: 19
AA23: C2C3 | AC23: G1G3 | AD23: H1H3 | AG23: G1 | AH23: G3 | AI23: H1 | AJ23: H3 | AM23: 20
AA24: E2E3 | AC24: D1D4 | AD24: A2A4 | AG24: D1 | AH24: D4 | AI24: A2 | AJ24: A4 | AM24: 21
AA25: F2F3 | AC25: B2B4 | AD25: C2C4 | AG25: B2 | AH25: B4 | AI25: C2 | AJ25: C4 | AM25: 22
AA26: G2G3 | AC26: E2E4 | AD26: F2F4 | AG26: E2 | AH26: E4 | AI26: F2 | AJ26: F4 | AM26: 23
D27: 1 | E27: 2 | F27: 3 | G27: 4 | H27: 5 | I27: 6 | J27: 7 | K27: 8 | L27: 9 | M27: 10 | N27: 11 | O27: 12 | P27: 13 | Q27: 14 | R27: 15 | S27: 16 | T27: 17 | U27: 18 | V27: 19 | W27: 20 | X27: 21 | AA27: H2H3 | AC27: G2G4 | AD27: H2H4 | AG27: G2 | AH27: G4 | AI27: H2 | AJ27: H4 | AM27: 24
A28: ７チーム | C28: B | D28: =CONCATENATE(C28,1,C28,2) -> B1B2 | E28: =CONCATENATE(C28,3,C28,4) -> B3B4 | F28: =CONCATENATE(C28,5,C28,6) -> B5B6 | G28: =CONCATENATE(C28,1,C28,7) -> B1B7 | H28: =CONCATENATE(C28,2,C28,3) -> B2B3 | I28: =CONCATENATE(C28,4,C28,5) -> B4B5 | J28: =CONCATENATE(C28,6,C28,7) -> B6B7 | K28: =CONCATENATE(C28,1,C28,4) -> B1B4 | L28: =CONCATENATE(C28,2,C28,5) -> B2B5 | M28: =CONCATENATE(C28,3,C28,6) -> B3B6 | N28: =CONCATENATE(C28,4,C28,7) -> B4B7 | O28: =CONCATENATE(C28,1,C28,6) -> B1B6 | P28: =CONCATENATE(C28,5,C28,7) -> B5B7 | Q28: =CONCATENATE(C28,1,C28,3) -> B1B3 | R28: =CONCATENATE(C28,2,C28,4) -> B2B4 | S28: =CONCATENATE(C28,3,C28,5) -> B3B5 | T28: =CONCATENATE(C28,4,C28,6) -> B4B6 | U28: =CONCATENATE(C28,2,C28,7) -> B2B7 | V28: =CONCATENATE(C28,1,C28,5) -> B1B5 | W28: =CONCATENATE(C28,2,C28,6) -> B2B6 | X28: =CONCATENATE(C28,3,C28,7) -> B3B7 | AA28: D2D3 | AC28: D2D5 | AD28: D1D3 | AG28: D2 | AH28: D5 | AI28: D1 | AJ28: D3 | AM28: 25
A29: 6チーム | C29: A | D29: =CONCATENATE(C29,1,C29,2) -> A1A2 | E29: =CONCATENATE(C29,3,C29,4) -> A3A4 | F29: =CONCATENATE(C29,5,C29,6) -> A5A6 | G29: =CONCATENATE(C29,1,C29,3) -> A1A3 | H29: =CONCATENATE(C29,2,C29,4) -> A2A4 | I29: =CONCATENATE(C29,3,C29,5) -> A3A5 | J29: =CONCATENATE(C29,4,C29,6) -> A4A6 | K29: =CONCATENATE(C29,1,C29,5) -> A1A5 | L29: =CONCATENATE(C29,2,C29,6) -> A2A6 | M29: =CONCATENATE(C29,1,C29,4) -> A1A4 | N29: =CONCATENATE(C29,2,C29,5) -> A2A5 | O29: =CONCATENATE(C29,3,C29,6) -> A3A6 | P29: =CONCATENATE(C29,4,C29,5) -> A4A5 | Q29: =CONCATENATE(C29,2,C29,3) -> A2A3 | R29: =CONCATENATE(C29,1,C29,6) -> A1A6 | AA29: A1A4 | AC29: D2D4 | AD29: D3D5 | AG29: D2 | AH29: D4 | AI29: D3 | AJ29: D5 | AM29: 26
A30: 5チーム | C30: D | D30: =CONCATENATE(C30,1,C30,2) -> D1D2 | E30: =CONCATENATE(C30,3,C30,4) -> D3D4 | F30: =CONCATENATE(C30,1,C30,5) -> D1D5 | G30: =CONCATENATE(C30,2,C30,3) -> D2D3 | H30: =CONCATENATE(C30,4,C30,5) -> D4D5 | I30: =CONCATENATE(C30,1,C30,4) -> D1D4 | J30: =CONCATENATE(C30,2,C30,5) -> D2D5 | K30: =CONCATENATE(C30,1,C30,3) -> D1D3 | L30: =CONCATENATE(C30,2,C30,4) -> D2D4 | M30: =CONCATENATE(C30,3,C30,5) -> D3D5 | AA30: B1B4 | AM30: 27
A31: 4チーム | C31: H | D31: =CONCATENATE(C31,1,C31,2) -> H1H2 | E31: =CONCATENATE(C31,3,C31,4) -> H3H4 | F31: =CONCATENATE(C31,2,C31,3) -> H2H3 | G31: =CONCATENATE(C31,1,C31,4) -> H1H4 | H31: =CONCATENATE(C31,1,C31,3) -> H1H3 | I31: =CONCATENATE(C31,2,C31,4) -> H2H4 | AA31: C1C4 | AM31: 28
A32: 3チーム | C32: D | D32: =CONCATENATE(C32,1,C32,2) -> D1D2 | E32: =CONCATENATE(C32,2,C32,3) -> D2D3 | F32: =CONCATENATE(C32,1,C32,3) -> D1D3 | AA32: E1E4 | AM32: 29
AA33: F1F4 | AM33: 30
AA34: G1G4 | AM34: 31
AA35: H1H4 | AM35: 32
AA36: D4D5 | AM36: 33
AA37: A1A3 | AM37: 34
AA38: B1B3 | AG38: =LEFT(AC38,2) ->  | AH38: =RIGHT(AC38,2) ->  | AI38: =LEFT(AD38,2) ->  | AJ38: =RIGHT(AD38,2) ->  | AK38: =LEFT(AE38,2) ->  | AL38: =RIGHT(AE38,2) ->  | AM38: 35
AA39: C1C3 | AM39: 36
AA40: E1E3 | AM40: 37
AA41: F1F3 | AM41: 38
AA42: G1G3 | AM42: 39
AA43: H1H3 | AM43: 40
AA44: D1D4
AA45: A2A4
AA46: B2B4
AA47: C2C4
AA48: E2E4
AA49: F2F4
AA50: G2G4
AA51: H2H4
AA52: D2D5
AA53: D1D3
AA54: D2D4
AA55: D3D5
